Workbook

Sheet Rules
A1: RULES
B4: In budget price:
C5: All white boxes : to be filled by AE. Must be representative of the offer display
D6: Each line for EQ can include (or not) sold engineering studies (columns S to Z)
D7: Only specific design related studies must be sold -> to be decided in Feasability review
D8: Indicate a note on the EQ Unit Cost price if a big part was estimated: example : 50% from previous order MS0450, 25% estimated, 25% consulted
C10: All orange boxes in columns K & L: to be filled by ASM for Selling price
C12: SERVICES : lines 29 and down : AE fills the selling price, no margin applied
B17: In Simplified P&L
C18: The first version exists when turnover > 15k
C19: All next revision will be written in sheet 'Budget Price Final Order' that will help you to fill 'Final Order', without touching the '1st Quotation'
C21: Direct man hours
C22: The number of hours are defined in Feasability review. If no feasability review done, AE to estimate. A basis is below:
C33: Spare Parts will be part of the activity of the Order. For Example, Spare Parts Sold with a Project of new Equipment will be integrated in the Equipment Margin.
I34: For Example, Spare Parts Sold with a Project of Revamping will be integrated in the Revamping Margin.
C36: Spare parts offered with installation offer.
C37: Purchased parts we apply a gross margin of 45%. Selling price = Purchase price/0.55
C38: Proprietary parts we apply a gross margin of 70%. Selling price = Purchase price/0.3
C39: In a near future, we shall offer these two “types” of spare parts lists like options in our offers:
C40: - Recommended spare parts for one year operation (For dosing, Recommended spare parts for startup)
C41: - Recommended spare parts for two years operation.
C42: These lists will be defined with the engineers and used as standards spare parts lists.
C47: Man Hours (Engineering…..) that will be sold will be reported in the Turnover of the activity of the project. For New Equipment project, turnover for man hours sold will be reported in the Equipment Turnover.
F48: For Revamping project, turnover for man hours sold will be reported in the Revamping Turnover.
B50: In Price_List
C51: All the lines you don't want to show in the offer must be hidden (not erased)

Sheet Simplified P&L
B1: Simplified P&L
A2: Quotation : | B2: 731693 | D2: DAS: | G2: FILTRATION | H2: ASM: | J2: LLi
A3: Commercial offer version: | B3: 2 | D3: TAC: | G3: EQUIPMENT | H3: T eng. : | J3: BJOL
A4: Technical offer version: | B4: 4 | D4: Incoterm | G4: FCA - SHANGHAI - CHN | H4: CEGID Order:
G5: 40 weeks on EXW HASLER China workshop basis.
A6: Customer : | B6: Eurochem | D6: Lead time :
A8: Market: | B8: MMF - B1 Phosphated Fertilizers (MAP,DAP,TSP,DCP …) | D8: Project description / comments:
D9: DCP Cake 78m²
A10: Country: | B10: KAZAKHSTAN
A12: Warranty Conditions | B12: 12 months after commissioning, latest 18 months after delivery
D14: Instructions: | H14: = automatically filled out / do not fill out
A15: % Agent Commissions | H15: = to be filled out
A18: Description | D18: 1st Quotation | G18: Final Order | J18: End figure | K18: KPI
A21: TOTAL Turnover: | D21: =SUM(D22:D28) -> 0 | G21: =SUM(G22:G28) -> 1613388.945 | J21: =SUM(J22:J28) -> 0
A22: Equipment | D22: =IF(SUMIFS('Budget Price 1st quotation'!$N:$N,'Budget Price 1st quotation'!$B:$B,"EQUIPMENT")=0,"",SUMIFS('Budget Price 1st quotation'!$N:$N,'Budget Price 1st quotation'!$B:$B,"EQUIPMENT")) ->  | G22: =IF(SUMIFS('Budget Price Final order'!$N:$N,'Budget Price Final order'!$B:$B,"EQUIPMENT")=0,"",SUMIFS('Budget Price Final order'!$N:$N,'Budget Price Final order'!$B:$B,"EQUIPMENT")) -> 1437205.945
A23: Revamping | D23: =IF(SUMIFS('Budget Price 1st quotation'!$N:$N,'Budget Price 1st quotation'!$B:$B,"REVAMPING")=0,"",SUMIFS('Budget Price 1st quotation'!$N:$N,'Budget Price 1st quotation'!$B:$B,"REVAMPING")) ->  | G23: =IF(SUMIFS('Budget Price Final order'!$N:$N,'Budget Price Final order'!$B:$B,"REVAMPING")=0,"",SUMIFS('Budget Price Final order'!$N:$N,'Budget Price Final order'!$B:$B,"REVAMPING")) -> 
A24: Spare Parts | D24: =IF(SUMIFS('Budget Price 1st quotation'!$N:$N,'Budget Price 1st quotation'!$B:$B,"SPARE PARTS")=0,"",SUMIFS('Budget Price 1st quotation'!$N:$N,'Budget Price 1st quotation'!$B:$B,"SPARE PARTS")) ->  | G24: =IF(SUMIFS('Budget Price Final order'!$N:$N,'Budget Price Final order'!$B:$B,"SPARE PARTS")=0,"",SUMIFS('Budget Price Final order'!$N:$N,'Budget Price Final order'!$B:$B,"SPARE PARTS")) -> 
A25: Freight out and Packaging | D25: =IF((SUMIFS('Budget Price 1st quotation'!$N:$N,'Budget Price 1st quotation'!$B:$B,"PACKAGING")+SUMIFS('Budget Price 1st quotation'!$N:$N,'Budget Price 1st quotation'!$B:$B,"TRANSPORT"))=0,"",SUMIFS('Budget Price 1st quotation'!$N:$N,'Budget Price 1st quotation'!$B:$B,"PACKAGING")+SUMIFS('Budget Price 1st quotation'!$N:$N,'Budget Price 1st quotation'!$B:$B,"TRANSPORT")) ->  | G25: =IF((SUMIFS('Budget Price Final order'!$N:$N,'Budget Price Final order'!$B:$B,"PACKAGING")+SUMIFS('Budget Price Final order'!$N:$N,'Budget Price Final order'!$B:$B,"TRANSPORT"))=0,"",SUMIFS('Budget Price Final order'!$N:$N,'Budget Price Final order'!$B:$B,"PACKAGING")+SUMIFS('Budget Price Final order'!$N:$N,'Budget Price Final order'!$B:$B,"TRANSPORT")) -> 17340
A26: Service | D26: =IF(SUMIFS('Budget Price 1st quotation'!$N:$N,'Budget Price 1st quotation'!$B:$B,"SERVICE")=0,"",SUMIFS('Budget Price 1st quotation'!$N:$N,'Budget Price 1st quotation'!$B:$B,"SERVICE")) ->  | G26: =IF(SUMIFS('Budget Price Final order'!$N:$N,'Budget Price Final order'!$B:$B,"SERVICE")=0,"",SUMIFS('Budget Price Final order'!$N:$N,'Budget Price Final order'!$B:$B,"SERVICE")) -> 158843
A27: Warranty Extension | B27: =IF(AND(B12<>"12 months after commissioning, latest 18 months after delivery",B12<>"18 months after commissioning, latest 24 months after delivery",B12<>""),"Extension to quote (6% per adding year)","") ->  | D27: =IF('Budget Price 1st quotation'!N33=0,"",'Budget Price 1st quotation'!N33) ->  | G27: =IF('Budget Price Final order'!N34=0,"",'Budget Price Final order'!N34) -> 
A28: Other (Bank Charge Fees)
A30: Direct External Expenses
A31: Purchasing | D31: =+D32+D38 -> 0 | G31: =+G32+G38 -> 940600.51 | J31: =+J32+J38 -> 0 | K31: =IFERROR(J31/$G31,"") -> 0
A32: Material & Transport Purchasing | D32: =+SUM(D34:D37) -> 0 | G32: =+SUM(G34:G37) -> 934600.51 | J32: =+SUM(J34:J37) -> 0 | K32: =IFERROR(J32/$G32,"") -> 0
A33: Mechanical parts | D33: =+D34+D35 -> 0 | G33: =+G34+G35 -> 789600.51 | J33: =+J34+J35 -> 0 | K33: =IFERROR(J33/$G33,"") -> 0
A34: Third Party | D34: =IF(SUMIFS('Budget Price 1st quotation'!$H:$H,'Budget Price 1st quotation'!$C:$C,"MECA")=0,0,SUMIFS('Budget Price 1st quotation'!$H:$H,'Budget Price 1st quotation'!$C:$C,"MECA"))-D35 -> 0 | G34: =IF(SUMIFS('Budget Price Final order'!$H:$H,'Budget Price Final order'!$C:$C,"MECA")=0,0,SUMIFS('Budget Price Final order'!$H:$H,'Budget Price Final order'!$C:$C,"MECA"))-G35 -> 789600.51 | K34: =IFERROR(J34/$G34,"") -> 0
A35: Hasler China
A36: Electrical parts | D36: =IF(SUMIFS('Budget Price 1st quotation'!$H:$H,'Budget Price 1st quotation'!$C:$C,"ELEC")=0,0,SUMIFS('Budget Price 1st quotation'!$H:$H,'Budget Price 1st quotation'!$C:$C,"ELEC")) -> 0 | G36: =IF(SUMIFS('Budget Price Final order'!$H:$H,'Budget Price Final order'!$C:$C,"ELEC")=0,0,SUMIFS('Budget Price Final order'!$H:$H,'Budget Price Final order'!$C:$C,"ELEC")) -> 132000 | K36: =IFERROR(J36/$G36,"") -> 0
A37: Packaging and Freight Out | D37: =IF((SUMIFS('Budget Price 1st quotation'!$H:$H,'Budget Price 1st quotation'!$B:$B,"PACKAGING")+SUMIFS('Budget Price 1st quotation'!$H:$H,'Budget Price 1st quotation'!$B:$B,"TRANSPORT"))=0,"",SUMIFS('Budget Price 1st quotation'!$H:$H,'Budget Price 1st quotation'!$B:$B,"PACKAGING")+SUMIFS('Budget Price 1st quotation'!$H:$H,'Budget Price 1st quotation'!$B:$B,"TRANSPORT")) ->  | G37: =IF((SUMIFS('Budget Price Final order'!$H:$H,'Budget Price Final order'!$B:$B,"PACKAGING")+SUMIFS('Budget Price Final order'!$H:$H,'Budget Price Final order'!$B:$B,"TRANSPORT"))=0,"",SUMIFS('Budget Price Final order'!$H:$H,'Budget Price Final order'!$B:$B,"PACKAGING")+SUMIFS('Budget Price Final order'!$H:$H,'Budget Price Final order'!$B:$B,"TRANSPORT")) -> 13000 | K37: 0
A38: External Subcontracting & Travel Expenses | D38: =+SUM(D39:D43) -> 0 | G38: =+SUM(G39:G43) -> 6000 | J38: =+SUM(J39:J43) -> 0 | K38: 0
A39: Technical Subcontracting | D39: ='Budget Price 1st quotation'!H29 -> 0 | G39: ='Budget Price Final order'!H30 -> 6000 | K39: 0
A40: Purchasing Subcontracting | D40: ='Budget Price 1st quotation'!H30 -> 0 | G40: ='Budget Price Final order'!H31 -> 0
A41: Service Subcontracting | D41: ='Budget Price 1st quotation'!H31 -> 0 | G41: ='Budget Price Final order'!H32 -> 0
A42: Travel Expenses | D42: ='Budget Price 1st quotation'!H32 -> 0 | G42: ='Budget Price Final order'!H33 -> 0
A43: Miscellaneous | D43: ='Budget Price 1st quotation'!H33 -> 0 | G43: ='Budget Price Final order'!H34 -> 0
A45: Gross Margin on Direct External Costs (M1) | C45: GM1 % | D45: =+D21-D31 -> 0 | F45: GM1 % | G45: =+G21-G31 -> 672788.4352 | I45: GM1 % | J45: =+J21-J31 -> 0 | K45: =IFERROR(J45/$G45,"") -> 0
A47: Equipment (including Spare Parts) | B47: =IF(C47<SUMIFS('Budget Target'!$D$5:$D$16,'Budget Target'!$B$5:$B$16,"EQUIPMENT",'Budget Target'!$C$5:$C$16,'Simplified P&L'!$G$2),"Below Target!","") ->  | C47: =IF($D$22="","",+D47/(SUMIF('Budget Price 1st quotation'!$B:$B,"EQUIPMENT",'Budget Price 1st quotation'!$N:$N)+IF($G$3="EQUIPMENT",SUMIF('Budget Price 1st quotation'!$B:$B,"SPARE PARTS",'Budget Price 1st quotation'!$N:$N)))) ->  | D47: =SUMIF('Budget Price 1st quotation'!$B:$B,"EQUIPMENT",'Budget Price 1st quotation'!$O:$O)+IF(G3="EQUIPMENT",SUMIF('Budget Price 1st quotation'!$B:$B,"SPARE PARTS",'Budget Price 1st quotation'!$O:$O)) -> 0 | E47: =IF(F47<SUMIFS('Budget Target'!$D$5:$D$16,'Budget Target'!$B$5:$B$16,"EQUIPMENT",'Budget Target'!$C$5:$C$16,'Simplified P&L'!$G$2),"Below Target!","") -> Below Target! | F47: =IF($G$22="","",+G47/(SUMIF('Budget Price Final order'!$B:$B,"EQUIPMENT",'Budget Price Final order'!$N:$N)+IF($G$3="EQUIPMENT",SUMIF('Budget Price Final order'!$B:$B,"SPARE PARTS",'Budget Price Final order'!$N:$N)))) -> 0.3545806618 | G47: =SUMIF('Budget Price Final order'!$B:$B,"EQUIPMENT",'Budget Price Final order'!$O:$O)+IF(G3="EQUIPMENT",SUMIF('Budget Price Final order'!$B:$B,"SPARE PARTS",'Budget Price Final order'!$O:$O)) -> 509605.4352 | H47: =IF(I47="","",IF(I47<SUMIFS('Budget Target'!$D$5:$D$16,'Budget Target'!$B$5:$B$16,"EQUIPMENT",'Budget Target'!$C$5:$C$16,'Simplified P&L'!$G$2),"Below Target!","")) ->  | J47: 0
A48: Revamping (including Spare Parts) | B48: =IF(C48<SUMIFS('Budget Target'!$D$5:$D$16,'Budget Target'!$B$5:$B$16,"REVAMPING",'Budget Target'!$C$5:$C$16,'Simplified P&L'!$G$2),"Below Target!","") ->  | C48: =IF($D$23="","",+D48/(SUMIF('Budget Price 1st quotation'!$B:$B,"REVAMPING",'Budget Price 1st quotation'!$N:$N)+IF($G$3="REVAMPING",SUMIF('Budget Price 1st quotation'!$B:$B,"SPARE PARTS",'Budget Price 1st quotation'!$N:$N)))) ->  | D48: =SUMIF('Budget Price 1st quotation'!$B:$B,"REVAMPING",'Budget Price 1st quotation'!$O:$O)+IF(G3="REVAMPING",SUMIF('Budget Price 1st quotation'!$B:$B,"SPARE PARTS",'Budget Price 1st quotation'!$O:$O)) -> 0 | E48: =IF(F48<SUMIFS('Budget Target'!$D$5:$D$16,'Budget Target'!$B$5:$B$16,"REVAMPING",'Budget Target'!$C$5:$C$16,'Simplified P&L'!$G$2),"Below Target!","") ->  | F48: =IF($G$23="","",+G48/(SUMIF('Budget Price Final order'!$B:$B,"REVAMPING",'Budget Price Final order'!$N:$N)+IF($G$3="REVAMPING",SUMIF('Budget Price Final order'!$B:$B,"SPARE PARTS",'Budget Price Final order'!$N:$N)))) ->  | G48: =SUMIF('Budget Price Final order'!$B:$B,"REVAMPING",'Budget Price Final order'!$O:$O)+IF(G3="REVAMPING",SUMIF('Budget Price Final order'!$B:$B,"SPARE PARTS",'Budget Price Final order'!$O:$O)) -> 0 | H48: =IF(I48="","",IF(I48<SUMIFS('Budget Target'!$D$5:$D$16,'Budget Target'!$B$5:$B$16,"REVAMPING",'Budget Target'!$C$5:$C$16,'Simplified P&L'!$G$2),"Below Target!","")) -> 
A49: Freight out and Packaging | B49: =IF(C49<SUMIFS('Budget Target'!$D$5:$D$16,'Budget Target'!$B$5:$B$16,"PORT",'Budget Target'!$C$5:$C$16,'Simplified P&L'!$G$2),"Below Target!","") ->  | C49: =IF($D$25="","",+D49/D25) ->  | D49: =SUMIF('Budget Price 1st quotation'!$B:$B,"PACKAGING",'Budget Price 1st quotation'!$O:$O)+SUMIF('Budget Price 1st quotation'!$B:$B,"TRANSPORT",'Budget Price 1st quotation'!$O:$O) -> 0 | E49: =IF(F49<SUMIFS('Budget Target'!$D$5:$D$16,'Budget Target'!$B$5:$B$16,"PORT",'Budget Target'!$C$5:$C$16,'Simplified P&L'!$G$2),"Below Target!","") ->  | F49: =IF($G$25="","",+G49/G25) -> 0.2502883506 | G49: =SUMIF('Budget Price Final order'!$B:$B,"PACKAGING",'Budget Price Final order'!$O:$O)+SUMIF('Budget Price Final order'!$B:$B,"TRANSPORT",'Budget Price Final order'!$O:$O) -> 4340 | H49: =IF(I49="","",IF(I49<SUMIFS('Budget Target'!$D$5:$D$16,'Budget Target'!$B$5:$B$16,"PORT",'Budget Target'!$C$5:$C$16,'Simplified P&L'!$G$2),"Below Target!","")) -> 
A50: Service | C50: =IF($D$26="","",+D50/D26) ->  | D50: =SUMIF('Budget Price 1st quotation'!$B:$B,"SERVICE",'Budget Price 1st quotation'!$O:$O) -> 0 | F50: =IF($G$26="","",+G50/G26) -> 1 | G50: =SUMIF('Budget Price Final order'!$B:$B,"SERVICE",'Budget Price Final order'!$O:$O) -> 158843
A51: % M1 / TOTAL Turnover | C51: =IF(D21=0,"",+D45/D21) ->  | D51: =IF(E21=0,"",+E45/E21) ->  | F51: =IF(G21=0,"",+G45/G21) -> 0.417003251 | I51: =IF(J21=0,"",+J45/J21) ->  | K51: =IFERROR(I51/$F51,"") -> 
A53: MAN Hours | K53: =IFERROR(J53/$D53,"") -> 
A54: Direct man hours | B54: Direct Hourly Pex Cost Rates: | C54: 1st Quotation Hours Qty | D54: =+D55+D58+D59+D60+D63 -> 0 | F54: Final Order - Hours Qty | G54: =+G55+G58+G59+G60+G63 -> 0 | I54: Final Hours Qty | J54: =+J55+J58+J59+J60+J63 -> 0 | K54: =IFERROR(J54/$G54,"") -> 
A55: Technical department | B55: 50 | C55: =SUM(C56:C57) -> 0 | D55: =SUM(D56:D57) -> 0 | F55: =SUM(F56:F57) -> 0 | G55: =SUM(G56:G57) -> 0 | I55: =SUM(I56:I57) -> 0 | J55: =SUM(J56:J57) -> 0
A56: Mechanical | D56: =+C56*B55 -> 0 | G56: =+F56*B55 -> 0 | J56: =$I$56*$B$55 -> 0
A57: Electrical | D57: =+C57*B55 -> 0 | G57: =+F57*B55 -> 0 | J57: =$I$57*$B$55 -> 0
A58: Purchasing | B58: 50 | D58: =+C58*B58 -> 0 | G58: =+F58*B58 -> 0 | J58: =$I$58*$B$58 -> 0
A59: Project Management | B59: 65 | D59: =+C59*B59 -> 0 | G59: =+F59*B59 -> 0 | J59: =$I$59*$B$59 -> 0
A60: Workshop | B60: 40 | C60: =+C61+C62 -> 0 | D60: =+C60*B60 -> 0 | F60: =+F61+F62 -> 0 | G60: =SUM(G61:G62) -> 0 | I60: =+I61+I62 -> 0 | J60: =SUM(J61:J62) -> 0
A61: Assembling | D61: =+C61*B60 -> 0 | G61: =+F61*B60 -> 0 | J61: =$I$61*$B$60 -> 0
A62: Packaging | D62: =+C62*B60 -> 0 | G62: =+F62*B60 -> 0 | J62: =$I$62*$B$60 -> 0
A63: Service | B63: 50 | D63: =+C63*B63 -> 0 | G63: =+F63*B63 -> 0 | J63: =$I$63*$B$63 -> 0
K64: =IFERROR(J64/$G64,"") -> 
K65: =IFERROR(J65/$G65,"") -> 
A66: Other Costs
A67: Other Costs (Commission, Financial Costs…) | D67: =+D69+D71+D73 -> 0 | G67: =+G69+G71+G73 -> 0 | J67: =+J69+J71+J73 -> 0 | K67: =IFERROR(J67/$G67,"") -> 
A68: % of commission (% CA) | D68: =+B15 -> 0 | G68: =+D68 -> 0 | J68: =+G68 -> 0
A69: Commission | D69: =D68*SUM(D22:D24) -> 0 | G69: =G68*SUM(G22:G24) -> 0 | J69: =J68*SUM(J22:J24) -> 0
A70: % financial cost | D70: 0 | G70: 0 | J70: 0
A71: Financial cost (Bank warranties etc.) | D71: =D70*D21 -> 0 | G71: =G70*G21 -> 0 | J71: =J70*J21 -> 0
A72: Other Cost
A75: TOTAL COST (Ext Exp + Man H + Other) | D75: =+D67+D54+D31 -> 0 | G75: =+G67+G54+G31 -> 940600.51 | J75: =+J67+J54+J31 -> 0 | K75: 0
A77: Margin on TOTAL Direct Costs (M2) | D77: =+D21-D75 -> 0 | G77: =+G21-G75 -> 672788.4352 | J77: =+J21-J75 -> 0 | K77: =IFERROR(J77/$D77,"") -> 
A78: % M2 / TOTAL Turnover | D78: =+D77/D21 ->  | G78: =+G77/G21 -> 0.417003251 | J78: =+J77/J21 ->  | K78: =IFERROR(J78/$D78,"") -> 
A80: % overhead (% turnover) | D80: =+'Budget Target'!D37 -> 0.327953232 | G80: =+D80 -> 0.327953232 | J80: =+G80 -> 0.327953232 | K80: =IFERROR(J80/$D80,"") -> 1
A81: TOTAL OVERHEAD | D81: =+D80*D21 -> 0 | G81: =+G80*G21 -> 529116.1191 | J81: =+J80*J21 -> 0 | K81: =IFERROR(J81/$D81,"") -> 
A83: EBIT (M3) | D83: =+D77-D81 -> 0 | G83: =+G77-G81 -> 143672.3162 | J83: =+J77-J81 -> 0 | K83: =IFERROR(J83/$D83,"") -> 
A84: % EBIT / Turnover | D84: =D83/D21 ->  | G84: =G83/G21 -> 0.08905001897 | J84: =J83/J21 ->  | K84: =IFERROR(J84/$D84,"") -> 

Sheet Budget Price 1st quotation
T1: DIRECT HOURS SOLD
A2: Position | B2: Type of Eqpt | C2: Meca/Elec | D2: Base / Options | E2: DESCRIPTION | F2: RÉFÉRENCE | G2: QTY | H2: TOTAL EQ Cost | I2: TOTAL Hours cost | J2: TOTAL Cost | K2: EQ Unit selling price | L2: Total Hours Selling Price | M2: TOTAL EQ Selling Price | N2: TOTAL Selling Price | O2: Gross Margin on Direct External Costs | P2: Gross Margin on Direct External Costs | Q2: Margin on EQ | R2: Margin on hours | S2: EQ Unit Cost | T2: Nb hours TECH | U2: Hours Unit Cost | V2: Nb hours PUR | W2: Hours Unit Cost | X2: Nb hours PM | Y2: Hours Unit Cost | Z2: Nb hours WORKSHOP | AA2: Hours Unit Cost
A3: 1 | D3: BASE | H3: =+S3*G3 -> 0 | I3: =T3*U3+V3*W3+X3*Y3+Z3*AA3 -> 0 | J3: =I3+H3 -> 0 | M3: =G3*K3 -> 0 | N3: =M3+L3 -> 0 | O3: =+N3-H3 -> 0 | P3: =IF(G3="","",+O3/N3) ->  | Q3: =IF(G3="","",(M3-H3)/M3) ->  | R3: =IF(I3=0,"",(L3-I3)/L3) ->  | U3: ='Simplified P&L'!$B$55 -> 50 | W3: ='Simplified P&L'!$B$58 -> 50 | Y3: ='Simplified P&L'!$B$59 -> 65 | AA3: ='Simplified P&L'!$B$60 -> 40
A4: 0 | D4: BASE | H4: =+S4*G4 -> 0 | I4: =T4*U4+V4*W4+X4*Y4+Z4*AA4 -> 0 | J4: =I4+H4 -> 0 | M4: =G4*K4 -> 0 | N4: =M4+L4 -> 0 | O4: =+N4-H4 -> 0 | P4: =IF(G4="","",+O4/N4) ->  | Q4: =IF(G4="","",(M4-H4)/M4) ->  | R4: =IF(I4=0,"",(L4-I4)/L4) ->  | U4: ='Simplified P&L'!$B$55 -> 50 | W4: ='Simplified P&L'!$B$58 -> 50 | Y4: ='Simplified P&L'!$B$59 -> 65 | AA4: ='Simplified P&L'!$B$60 -> 40
A5: 0 | D5: BASE | H5: 0 | I5: 0 | J5: 0 | M5: 0 | N5: 0 | O5: 0 | Q5: =IF(G5="","",(M5-H5)/M5) ->  | R5: =IF(I5=0,"",(L5-I5)/L5) ->  | U5: ='Simplified P&L'!$B$55 -> 50 | W5: ='Simplified P&L'!$B$58 -> 50 | Y5: ='Simplified P&L'!$B$59 -> 65 | AA5: ='Simplified P&L'!$B$60 -> 40
A6: 0 | D6: BASE | H6: =+S6*G6 -> 0 | I6: =T6*U6+V6*W6+X6*Y6+Z6*AA6 -> 0 | J6: =I6+H6 -> 0 | M6: =G6*K6 -> 0 | N6: =M6+L6 -> 0 | O6: =+N6-H6 -> 0 | P6: =IF(G6="","",+O6/N6) ->  | Q6: =IF(G6="","",(M6-H6)/M6) ->  | R6: =IF(I6=0,"",(L6-I6)/L6) ->  | U6: ='Simplified P&L'!$B$55 -> 50 | W6: ='Simplified P&L'!$B$58 -> 50 | Y6: ='Simplified P&L'!$B$59 -> 65 | AA6: ='Simplified P&L'!$B$60 -> 40
A7: 0 | D7: BASE | H7: 0 | I7: 0 | J7: 0 | M7: 0 | N7: 0 | O7: 0 | U7: ='Simplified P&L'!$B$55 -> 50 | W7: ='Simplified P&L'!$B$58 -> 50 | Y7: ='Simplified P&L'!$B$59 -> 65 | AA7: ='Simplified P&L'!$B$60 -> 40
A8: 0 | D8: BASE | H8: 0 | I8: 0 | J8: 0 | M8: 0 | N8: 0 | O8: 0 | U8: ='Simplified P&L'!$B$55 -> 50 | W8: ='Simplified P&L'!$B$58 -> 50 | Y8: ='Simplified P&L'!$B$59 -> 65 | AA8: ='Simplified P&L'!$B$60 -> 40
A9: 0 | D9: BASE | H9: 0 | I9: 0 | J9: 0 | M9: 0 | N9: 0 | O9: 0 | U9: ='Simplified P&L'!$B$55 -> 50 | W9: ='Simplified P&L'!$B$58 -> 50 | Y9: ='Simplified P&L'!$B$59 -> 65 | AA9: ='Simplified P&L'!$B$60 -> 40
A10: 0 | D10: BASE | H10: =+S10*G10 -> 0 | I10: =T10*U10+V10*W10+X10*Y10+Z10*AA10 -> 0 | J10: =I10+H10 -> 0 | M10: =G10*K10 -> 0 | N10: =M10+L10 -> 0 | O10: =+N10-H10 -> 0 | P10: =IF(G10="","",+O10/N10) ->  | Q10: =IF(G10="","",(M10-H10)/M10) ->  | R10: =IF(I10=0,"",(L10-I10)/L10) ->  | U10: ='Simplified P&L'!$B$55 -> 50 | W10: ='Simplified P&L'!$B$58 -> 50 | Y10: ='Simplified P&L'!$B$59 -> 65 | AA10: ='Simplified P&L'!$B$60 -> 40
A11: 0 | D11: BASE | H11: 0 | I11: 0 | J11: 0 | M11: 0 | N11: 0 | O11: 0 | U11: ='Simplified P&L'!$B$55 -> 50 | W11: ='Simplified P&L'!$B$58 -> 50 | Y11: ='Simplified P&L'!$B$59 -> 65 | AA11: ='Simplified P&L'!$B$60 -> 40
A12: 0 | D12: BASE | H12: 0 | I12: 0 | J12: 0 | M12: 0 | N12: 0 | O12: 0 | U12: ='Simplified P&L'!$B$55 -> 50 | W12: ='Simplified P&L'!$B$58 -> 50 | Y12: ='Simplified P&L'!$B$59 -> 65 | AA12: ='Simplified P&L'!$B$60 -> 40
A13: 0 | D13: BASE | H13: =+S13*G13 -> 0 | I13: =T13*U13+V13*W13+X13*Y13+Z13*AA13 -> 0 | J13: =I13+H13 -> 0 | M13: =G13*K13 -> 0 | N13: =M13+L13 -> 0 | O13: =+N13-H13 -> 0 | P13: =IF(G13="","",+O13/N13) ->  | Q13: =IF(G13="","",(M13-H13)/M13) ->  | R13: =IF(I13=0,"",(L13-I13)/L13) ->  | U13: ='Simplified P&L'!$B$55 -> 50 | W13: ='Simplified P&L'!$B$58 -> 50 | Y13: ='Simplified P&L'!$B$59 -> 65 | AA13: ='Simplified P&L'!$B$60 -> 40
A14: 0 | D14: BASE | H14: 0 | I14: 0 | J14: 0 | M14: 0 | N14: 0 | O14: 0 | U14: ='Simplified P&L'!$B$55 -> 50 | W14: ='Simplified P&L'!$B$58 -> 50 | Y14: ='Simplified P&L'!$B$59 -> 65 | AA14: ='Simplified P&L'!$B$60 -> 40
A15: 0 | D15: BASE | H15: =+S15*G15 -> 0 | I15: =T15*U15+V15*W15+X15*Y15+Z15*AA15 -> 0 | J15: =I15+H15 -> 0 | M15: =G15*K15 -> 0 | N15: =M15+L15 -> 0 | O15: =+N15-H15 -> 0 | P15: =IF(G15="","",+O15/N15) ->  | Q15: =IF(G15="","",(M15-H15)/M15) ->  | R15: =IF(I15=0,"",(L15-I15)/L15) ->  | U15: ='Simplified P&L'!$B$55 -> 50 | W15: ='Simplified P&L'!$B$58 -> 50 | Y15: ='Simplified P&L'!$B$59 -> 65 | AA15: ='Simplified P&L'!$B$60 -> 40
A16: 0 | D16: BASE | H16: 0 | I16: 0 | J16: 0 | M16: 0 | N16: 0 | O16: 0 | U16: ='Simplified P&L'!$B$55 -> 50 | W16: ='Simplified P&L'!$B$58 -> 50 | Y16: ='Simplified P&L'!$B$59 -> 65 | AA16: ='Simplified P&L'!$B$60 -> 40
A17: 0 | D17: BASE | H17: =+S17*G17 -> 0 | I17: =T17*U17+V17*W17+X17*Y17+Z17*AA17 -> 0 | J17: =I17+H17 -> 0 | M17: =G17*K17 -> 0 | N17: =M17+L17 -> 0 | O17: =+N17-H17 -> 0 | P17: =IF(G17="","",+O17/N17) ->  | Q17: =IF(G17="","",(M17-H17)/M17) ->  | R17: =IF(I17=0,"",(L17-I17)/L17) ->  | U17: ='Simplified P&L'!$B$55 -> 50 | W17: ='Simplified P&L'!$B$58 -> 50 | Y17: ='Simplified P&L'!$B$59 -> 65 | AA17: ='Simplified P&L'!$B$60 -> 40
A18: 0 | D18: BASE | H18: 0 | I18: 0 | J18: 0 | M18: 0 | N18: 0 | O18: 0 | U18: ='Simplified P&L'!$B$55 -> 50 | W18: ='Simplified P&L'!$B$58 -> 50 | Y18: ='Simplified P&L'!$B$59 -> 65 | AA18: ='Simplified P&L'!$B$60 -> 40
A19: 0 | D19: BASE | H19: =+S19*G19 -> 0 | I19: =T19*U19+V19*W19+X19*Y19+Z19*AA19 -> 0 | J19: =I19+H19 -> 0 | M19: =G19*K19 -> 0 | N19: =M19+L19 -> 0 | O19: =+N19-H19 -> 0 | P19: =IF(G19="","",+O19/N19) ->  | Q19: =IF(G19="","",(M19-H19)/M19) ->  | R19: =IF(I19=0,"",(L19-I19)/L19) ->  | U19: ='Simplified P&L'!$B$55 -> 50 | W19: ='Simplified P&L'!$B$58 -> 50 | Y19: ='Simplified P&L'!$B$59 -> 65 | AA19: ='Simplified P&L'!$B$60 -> 40
A20: 0 | D20: BASE | H20: 0 | I20: 0 | J20: 0 | M20: 0 | N20: 0 | O20: 0 | U20: ='Simplified P&L'!$B$55 -> 50 | W20: ='Simplified P&L'!$B$58 -> 50 | Y20: ='Simplified P&L'!$B$59 -> 65 | AA20: ='Simplified P&L'!$B$60 -> 40
A21: 0 | D21: BASE | H21: =+S21*G21 -> 0 | I21: =T21*U21+V21*W21+X21*Y21+Z21*AA21 -> 0 | J21: =I21+H21 -> 0 | M21: =G21*K21 -> 0 | N21: =M21+L21 -> 0 | O21: =+N21-H21 -> 0 | P21: =IF(G21="","",+O21/N21) ->  | Q21: =IF(G21="","",(M21-H21)/M21) ->  | R21: =IF(I21=0,"",(L21-I21)/L21) ->  | U21: ='Simplified P&L'!$B$55 -> 50 | W21: ='Simplified P&L'!$B$58 -> 50 | Y21: ='Simplified P&L'!$B$59 -> 65 | AA21: ='Simplified P&L'!$B$60 -> 40
A23: 0 | D23: OPTIONS | H23: =+S23*G23 -> 0 | I23: =T23*U23+V23*W23+X23*Y23+Z23*AA23 -> 0 | J23: =I23+H23 -> 0 | M23: =G23*K23 -> 0 | N23: =M23+L23 -> 0 | O23: =+N23-H23 -> 0 | P23: =IF(G23="","",+O23/N23) ->  | Q23: =IF(G23="","",(M23-H23)/M23) ->  | R23: =IF(I23=0,"",(L23-I23)/L23) ->  | U23: ='Simplified P&L'!$B$55 -> 50 | W23: ='Simplified P&L'!$B$58 -> 50 | Y23: ='Simplified P&L'!$B$59 -> 65 | AA23: ='Simplified P&L'!$B$60 -> 40
A24: 0 | D24: OPTIONS | H24: 0 | I24: 0 | J24: 0 | M24: 0 | N24: 0 | O24: 0 | U24: ='Simplified P&L'!$B$55 -> 50 | W24: ='Simplified P&L'!$B$58 -> 50 | Y24: ='Simplified P&L'!$B$59 -> 65 | AA24: ='Simplified P&L'!$B$60 -> 40
A25: 0 | D25: OPTIONS | H25: =+S25*G25 -> 0 | I25: =T25*U25+V25*W25+X25*Y25+Z25*AA25 -> 0 | J25: =I25+H25 -> 0 | M25: =G25*K25 -> 0 | N25: =M25+L25 -> 0 | O25: =+N25-H25 -> 0 | P25: =IF(G25="","",+O25/N25) ->  | Q25: =IF(G25="","",(M25-H25)/M25) ->  | R25: =IF(I25=0,"",(L25-I25)/L25) ->  | U25: ='Simplified P&L'!$B$55 -> 50 | W25: ='Simplified P&L'!$B$58 -> 50 | Y25: ='Simplified P&L'!$B$59 -> 65 | AA25: ='Simplified P&L'!$B$60 -> 40
A26: 0 | D26: OPTIONS | H26: 0 | I26: 0 | J26: 0 | M26: 0 | N26: 0 | O26: 0 | U26: ='Simplified P&L'!$B$55 -> 50 | W26: ='Simplified P&L'!$B$58 -> 50 | Y26: ='Simplified P&L'!$B$59 -> 65 | AA26: ='Simplified P&L'!$B$60 -> 40
A27: 0 | D27: OPTIONS | H27: 0 | I27: 0 | J27: 0 | M27: 0 | N27: 0 | O27: 0 | U27: ='Simplified P&L'!$B$55 -> 50 | W27: ='Simplified P&L'!$B$58 -> 50 | Y27: ='Simplified P&L'!$B$59 -> 65 | AA27: ='Simplified P&L'!$B$60 -> 40
A29: 0 | B29: ='Simplified P&L'!$G$3 -> EQUIPMENT | D29: Technical Subcontracting | H29: =+S29*G29 -> 0 | I29: =T29*U29+V29*W29+X29*Y29+Z29*AA29 -> 0 | J29: =I29+H29 -> 0 | M29: =G29*K29 -> 0 | N29: =M29+L29 -> 0 | O29: =+N29-H29 -> 0 | P29: =IF(G29="","",+O29/N29) ->  | Q29: =IF(G29="","",(M29-H29)/M29) ->  | R29: =IF(I29=0,"",(L29-I29)/L29) ->  | U29: ='Simplified P&L'!$B$55 -> 50 | W29: ='Simplified P&L'!$B$58 -> 50 | Y29: ='Simplified P&L'!$B$59 -> 65 | AA29: ='Simplified P&L'!$B$60 -> 40
A30: 0 | B30: ='Simplified P&L'!$G$3 -> EQUIPMENT | D30: Purchasing Subcontracting | H30: =+S30*G30 -> 0 | I30: =T30*U30+V30*W30+X30*Y30+Z30*AA30 -> 0 | J30: =I30+H30 -> 0 | M30: =G30*K30 -> 0 | N30: =M30+L30 -> 0 | O30: =+N30-H30 -> 0 | P30: =IF(G30="","",+O30/N30) ->  | Q30: =IF(G30="","",(M30-H30)/M30) ->  | R30: =IF(I30=0,"",(L30-I30)/L30) ->  | U30: ='Simplified P&L'!$B$55 -> 50 | W30: ='Simplified P&L'!$B$58 -> 50 | Y30: ='Simplified P&L'!$B$59 -> 65 | AA30: ='Simplified P&L'!$B$60 -> 40
A31: 0 | B31: SERVICE | D31: Service Subcontracting | H31: 0 | I31: 0 | J31: 0 | M31: 0 | N31: 0 | O31: 0 | P31: =IF(G31="","",+O31/N31) ->  | Q31: =IF(G31="","",(M31-H31)/M31) ->  | U31: ='Simplified P&L'!$B$55 -> 50 | W31: ='Simplified P&L'!$B$58 -> 50 | Y31: ='Simplified P&L'!$B$59 -> 65 | AA31: ='Simplified P&L'!$B$60 -> 40
A32: 0 | B32: ='Simplified P&L'!$G$3 -> EQUIPMENT | D32: Travel Expenses | H32: 0 | I32: 0 | J32: 0 | M32: 0 | N32: 0 | O32: 0 | U32: ='Simplified P&L'!$B$55 -> 50 | W32: ='Simplified P&L'!$B$58 -> 50 | Y32: ='Simplified P&L'!$B$59 -> 65 | AA32: ='Simplified P&L'!$B$60 -> 40
A33: 0 | B33: ='Simplified P&L'!$G$3 -> EQUIPMENT | D33: Miscellaneous (warranty extension) | H33: =+S33*G33 -> 0 | I33: =T33*U33+V33*W33+X33*Y33+Z33*AA33 -> 0 | J33: =I33+H33 -> 0 | M33: =G33*K33 -> 0 | N33: =M33+L33 -> 0 | O33: =+N33-H33 -> 0 | P33: =IF(G33="","",+O33/N33) ->  | U33: ='Simplified P&L'!$B$55 -> 50 | W33: ='Simplified P&L'!$B$58 -> 50 | Y33: ='Simplified P&L'!$B$59 -> 65 | AA33: ='Simplified P&L'!$B$60 -> 40
A35: 0 | B35: PACKAGING | H35: =+S35*G35 -> 0 | I35: =T35*U35+V35*W35+X35*Y35+Z35*AA35 -> 0 | J35: =I35+H35 -> 0 | K35: =ROUNDUP(S35/(1-'Budget Target'!$D$13),-1) -> 0 | M35: =G35*K35 -> 0 | N35: =M35+L35 -> 0 | O35: =+N35-H35 -> 0 | P35: =IF(G35="","",+O35/N35) ->  | Q35: =IF(G35="","",(M35-H35)/M35) ->  | U35: ='Simplified P&L'!$B$55 -> 50 | W35: ='Simplified P&L'!$B$58 -> 50 | Y35: ='Simplified P&L'!$B$59 -> 65 | AA35: ='Simplified P&L'!$B$60 -> 40
A36: 0 | B36: TRANSPORT | E36: ='Simplified P&L'!G4 -> FCA - SHANGHAI - CHN | H36: =+S36*G36 -> 0 | I36: =T36*U36+V36*W36+X36*Y36+Z36*AA36 -> 0 | J36: =I36+H36 -> 0 | K36: =ROUNDUP(S36/(1-'Budget Target'!$D$13),-1) -> 0 | M36: 0 | N36: 0 | O36: 0 | U36: ='Simplified P&L'!$B$55 -> 50 | W36: ='Simplified P&L'!$B$58 -> 50 | Y36: ='Simplified P&L'!$B$59 -> 65 | AA36: ='Simplified P&L'!$B$60 -> 40
A38: 0 | B38: SERVICE | O38: =+N38-H38 -> 0 | P38: =IF(G38="","",+O38/N38) -> 
A39: 0 | B39: SERVICE | O39: =+N39-H39 -> 0 | P39: =IF(G39="","",+O39/N39) -> 
A40: 0 | B40: SERVICE | O40: =+N40-H40 -> 0 | P40: =IF(G40="","",+O40/N40) -> 
A41: 0 | B41: SERVICE | O41: =+N41-H41 -> 0 | P41: =IF(G41="","",+O41/N41) -> 
E43: TOTAL CALCULATED | H43: =SUM(H3:H41) -> 0 | I43: 0 | J43: 0 | K43: 0 | L43: 0 | M43: 0 | N43: 0 | O43: 0

Sheet Budget Price Final order
T1: DIRECT HOURS SOLD
A2: Position | B2: Type of Eqpt | C2: Meca/Elec | D2: Base / Options | E2: DESCRIPTION | F2: RÉFÉRENCE | G2: QTY | H2: TOTAL EQ Cost | I2: TOTAL Hours cost | J2: TOTAL Cost | K2: EQ Unit selling price | L2: Total Hours Selling Price | M2: TOTAL EQ Selling Price | N2: TOTAL Selling Price | O2: Gross Margin on Direct External Costs | P2: Gross Margin on Direct External Costs | Q2: Margin on EQ | R2: Margin on hours | S2: EQ Unit Cost | T2: Nb hours TECH | U2: Hours Unit Cost | V2: Nb hours PUR | W2: Hours Unit Cost | X2: Nb hours PM | Y2: Hours Unit Cost | Z2: Nb hours WORKSHOP | AA2: Hours Unit Cost
A3: 0 | B3: EQUIPMENT | C3: MECA | D3: BASE | E3: Horizontal Vaccum Belt Filter 78B30 (78m²) | G3: 1 | H3: =+S3*G3 -> 365087 | I3: =+(65000*H3/1001603) -> 23692.67564 | J3: =I3+H3 -> 388779.6756 | K3: =+H3/0.62 -> 588850 | L3: =+I3/0.7 -> 33846.67949 | M3: =G3*K3 -> 588850 | N3: =M3+L3 -> 622696.6795 | O3: =+N3-H3 -> 257609.6795 | P3: =IF(G3="","",+O3/N3) -> 0.4137001015 | Q3: =IF(G3="","",(M3-H3)/M3) -> 0.38 | R3: =IF(I3=0,"",(L3-I3)/L3) -> 0.3 | S3: 365087 | U3: ='Simplified P&L'!$B$55 -> 50 | W3: ='Simplified P&L'!$B$58 -> 50 | Y3: ='Simplified P&L'!$B$59 -> 65 | AA3: ='Simplified P&L'!$B$60 -> 40
A4: 0 | B4: EQUIPMENT | C4: MECA | D4: BASE | E4: Manifold | G4: 1 | H4: =+S4*G4 -> 13350.37 | I4: =+(65000*H4/1001603) -> 866.3852345 | J4: =I4+H4 -> 14216.75523 | K4: =+H4/0.71 -> 18803.33803 | L4: =+I4/0.7 -> 1237.693192 | M4: =G4*K4 -> 18803.33803 | N4: =M4+L4 -> 20041.03122 | O4: =+N4-H4 -> 6690.66122 | P4: =IF(G4="","",+O4/N4) -> 0.3338481512 | Q4: =IF(G4="","",(M4-H4)/M4) -> 0.29 | R4: =IF(I4=0,"",(L4-I4)/L4) -> 0.3 | S4: 13350.37 | U4: ='Simplified P&L'!$B$55 -> 50 | W4: ='Simplified P&L'!$B$58 -> 50 | Y4: ='Simplified P&L'!$B$59 -> 65 | AA4: ='Simplified P&L'!$B$60 -> 40
A5: 0 | B5: EQUIPMENT | C5: MECA | D5: BASE | E5: Filtrate Receiver 1 | G5: 1 | H5: 28118.52 | I5: 1824.77868 | J5: 29943.29868 | K5: =+H5/0.71 -> 39603.5493 | L5: 2606.826685 | M5: 39603.5493 | N5: 42210.37598 | O5: 14091.85598 | P5: 0.3338481512 | Q5: =IF(G5="","",(M5-H5)/M5) -> 0.29 | R5: =IF(I5=0,"",(L5-I5)/L5) -> 0.3 | S5: 28118.52 | U5: ='Simplified P&L'!$B$55 -> 50 | W5: ='Simplified P&L'!$B$58 -> 50 | Y5: ='Simplified P&L'!$B$59 -> 65 | AA5: ='Simplified P&L'!$B$60 -> 40
A6: 0 | B6: EQUIPMENT | C6: MECA | D6: BASE | E6: Filtrate Receiver 2 | G6: 1 | H6: 28118.52 | I6: 1824.77868 | J6: 29943.29868 | K6: 39603.5493 | L6: 2606.826685 | M6: 39603.5493 | N6: 42210.37598 | O6: 14091.85598 | P6: 0.3338481512 | Q6: 0.29 | R6: 0.3 | S6: 28118.52 | U6: ='Simplified P&L'!$B$55 -> 50 | W6: ='Simplified P&L'!$B$58 -> 50 | Y6: ='Simplified P&L'!$B$59 -> 65 | AA6: ='Simplified P&L'!$B$60 -> 40
A7: 0 | B7: EQUIPMENT | C7: MECA | D7: BASE | E7: Filtrate Receiver 3 | G7: 1 | H7: 28118.52 | I7: 1824.77868 | J7: 29943.29868 | K7: 39603.5493 | L7: 2606.826685 | M7: 39603.5493 | N7: 42210.37598 | O7: 14091.85598 | P7: 0.3338481512 | Q7: 0.29 | R7: 0.3 | S7: 28118.52 | U7: ='Simplified P&L'!$B$55 -> 50 | W7: ='Simplified P&L'!$B$58 -> 50 | Y7: ='Simplified P&L'!$B$59 -> 65 | AA7: ='Simplified P&L'!$B$60 -> 40
A8: 0 | B8: EQUIPMENT | C8: MECA | D8: BASE | E8: Moisture trap | G8: 1 | H8: 6010.58 | I8: 390.0624299 | J8: 6400.64243 | K8: 8465.605634 | L8: 557.2320427 | M8: 8465.605634 | N8: 9022.837677 | O8: 3012.257677 | P8: 0.3338481512 | Q8: 0.29 | R8: 0.3 | S8: 6010.58 | U8: ='Simplified P&L'!$B$55 -> 50 | W8: ='Simplified P&L'!$B$58 -> 50 | Y8: ='Simplified P&L'!$B$59 -> 65 | AA8: ='Simplified P&L'!$B$60 -> 40
A9: 0 | B9: EQUIPMENT | C9: MECA | D9: BASE | E9: Scrubber | G9: 1 | H9: =+S9*G9 -> 2383 | I9: 154.6471007 | J9: =I9+H9 -> 2537.647101 | K9: 3356.338028 | L9: 220.9244296 | M9: =G9*K9 -> 3356.338028 | N9: =M9+L9 -> 3577.262458 | O9: =+N9-H9 -> 1194.262458 | P9: =IF(G9="","",+O9/N9) -> 0.3338481512 | Q9: =IF(G9="","",(M9-H9)/M9) -> 0.29 | R9: =IF(I9=0,"",(L9-I9)/L9) -> 0.3 | S9: 2383 | U9: ='Simplified P&L'!$B$55 -> 50 | W9: ='Simplified P&L'!$B$58 -> 50 | Y9: ='Simplified P&L'!$B$59 -> 65 | AA9: ='Simplified P&L'!$B$60 -> 40
A10: 0 | B10: EQUIPMENT | C10: MECA | D10: BASE | E10: Cloth & Belt Wash Recirculating Tank | G10: 1 | H10: 5000 | I10: 324.4798588 | J10: 5324.479859 | K10: 7042.253521 | L10: 463.5426554 | M10: 7042.253521 | N10: 7505.796177 | O10: 2505.796177 | P10: 0.3338481512 | Q10: 0.29 | R10: 0.3 | S10: 5000 | U10: ='Simplified P&L'!$B$55 -> 50 | W10: ='Simplified P&L'!$B$58 -> 50 | Y10: ='Simplified P&L'!$B$59 -> 65 | AA10: ='Simplified P&L'!$B$60 -> 40
A11: 0 | B11: EQUIPMENT | C11: MECA | D11: BASE | E11: Filtrate Pump 2 | G11: 1 | H11: 31576 | I11: 2049.155204 | J11: 33625.1552 | K11: 44473.23944 | L11: 2927.364577 | M11: 44473.23944 | N11: 47400.60401 | O11: 15824.60401 | P11: 0.3338481512 | Q11: 0.29 | R11: 0.3 | S11: 31576 | U11: ='Simplified P&L'!$B$55 -> 50 | W11: ='Simplified P&L'!$B$58 -> 50 | Y11: ='Simplified P&L'!$B$59 -> 65 | AA11: ='Simplified P&L'!$B$60 -> 40
A12: 0 | B12: EQUIPMENT | C12: MECA | D12: BASE | E12: Filtrate Pump 3 | G12: 1 | H12: 31576 | I12: 2049.155204 | J12: 33625.1552 | K12: 44473.23944 | L12: 2927.364577 | M12: 44473.23944 | N12: 47400.60401 | O12: 15824.60401 | P12: 0.3338481512 | Q12: 0.29 | R12: 0.3 | S12: 31576 | U12: ='Simplified P&L'!$B$55 -> 50 | W12: ='Simplified P&L'!$B$58 -> 50 | Y12: ='Simplified P&L'!$B$59 -> 65 | AA12: ='Simplified P&L'!$B$60 -> 40
A13: 0 | B13: EQUIPMENT | C13: MECA | D13: BASE | E13: Vacuum Pump | G13: 1 | H13: =+S13*G13 -> 132426 | I13: 8593.913956 | J13: =I13+H13 -> 141019.914 | K13: 186515.493 | L13: 12277.01994 | M13: =G13*K13 -> 186515.493 | N13: =M13+L13 -> 198792.5129 | O13: =+N13-H13 -> 66366.51289 | P13: =IF(G13="","",+O13/N13) -> 0.3338481512 | Q13: =IF(G13="","",(M13-H13)/M13) -> 0.29 | R13: =IF(I13=0,"",(L13-I13)/L13) -> 0.3 | S13: 132426 | U13: ='Simplified P&L'!$B$55 -> 50 | W13: ='Simplified P&L'!$B$58 -> 50 | Y13: ='Simplified P&L'!$B$59 -> 65 | AA13: ='Simplified P&L'!$B$60 -> 40
A14: 0 | B14: EQUIPMENT | C14: ELEC | D14: BASE | E14: Electrical & Control Cabinet | G14: 1 | H14: 114400 | I14: 7424.099169 | J14: 121824.0992 | K14: 161126.7606 | L14: 10605.85596 | M14: 161126.7606 | N14: 171732.6165 | O14: 57332.61652 | P14: 0.3338481512 | Q14: 0.29 | R14: 0.3 | S14: 114400 | U14: ='Simplified P&L'!$B$55 -> 50 | W14: ='Simplified P&L'!$B$58 -> 50 | Y14: ='Simplified P&L'!$B$59 -> 65 | AA14: ='Simplified P&L'!$B$60 -> 40
A15: 0 | B15: EQUIPMENT | C15: ELEC | D15: BASE | E15: Instrumentation & Valves | G15: 1 | H15: =+S15*G15 -> 17600 | I15: 1142.169103 | J15: =I15+H15 -> 18742.1691 | K15: 24788.73239 | L15: 1631.670147 | M15: =G15*K15 -> 24788.73239 | N15: =M15+L15 -> 26420.40254 | O15: =+N15-H15 -> 8820.402541 | P15: =IF(G15="","",+O15/N15) -> 0.3338481512 | Q15: =IF(G15="","",(M15-H15)/M15) -> 0.29 | R15: =IF(I15=0,"",(L15-I15)/L15) -> 0.3 | S15: 17600 | U15: ='Simplified P&L'!$B$55 -> 50 | W15: ='Simplified P&L'!$B$58 -> 50 | Y15: ='Simplified P&L'!$B$59 -> 65 | AA15: ='Simplified P&L'!$B$60 -> 40
A16: 0 | B16: EQUIPMENT | C16: MECA | D16: BASE | E16: Engineering | G16: 1 | H16: 5000 | I16: 324.4798588 | J16: 5324.479859 | K16: 7042.253521 | L16: 463.5426554 | M16: 7042.253521 | N16: 7505.796177 | O16: 2505.796177 | P16: 0.3338481512 | Q16: 0.29 | R16: 0.3 | S16: 5000 | U16: ='Simplified P&L'!$B$55 -> 50 | W16: ='Simplified P&L'!$B$58 -> 50 | Y16: ='Simplified P&L'!$B$59 -> 65 | AA16: ='Simplified P&L'!$B$60 -> 40
A17: 0 | B17: EQUIPMENT | C17: MECA | D17: BASE | E17: High Pressure pump & Ramp | G17: 1 | H17: =+S17*G17 -> 11840 | I17: 768.3683056 | J17: =I17+H17 -> 12608.36831 | K17: 16676.05634 | L17: 1097.669008 | M17: =G17*K17 -> 16676.05634 | N17: =M17+L17 -> 17773.72535 | O17: =+N17-H17 -> 5933.725346 | P17: =IF(G17="","",+O17/N17) -> 0.3338481512 | Q17: =IF(G17="","",(M17-H17)/M17) -> 0.29 | R17: =IF(I17=0,"",(L17-I17)/L17) -> 0.3 | S17: 11840 | U17: ='Simplified P&L'!$B$55 -> 50 | W17: ='Simplified P&L'!$B$58 -> 50 | Y17: ='Simplified P&L'!$B$59 -> 65 | AA17: ='Simplified P&L'!$B$60 -> 40
A18: 0 | B18: EQUIPMENT | C18: MECA | D18: BASE | E18: Fume Hood | G18: 1 | H18: 50803 | I18: 3296.910053 | J18: 54099.91005 | K18: 71553.52113 | L18: 4709.871505 | M18: 71553.52113 | N18: 76263.39263 | O18: 25460.39263 | P18: 0.3338481512 | Q18: 0.29 | R18: 0.3 | S18: 50803 | U18: ='Simplified P&L'!$B$55 -> 50 | W18: ='Simplified P&L'!$B$58 -> 50 | Y18: ='Simplified P&L'!$B$59 -> 65 | AA18: ='Simplified P&L'!$B$60 -> 40
A19: 0 | B19: EQUIPMENT | C19: MECA | D19: BASE | E19: Drip Pan | G19: 1 | H19: =+S19*G19 -> 8746 | I19: 567.580169 | J19: =I19+H19 -> 9313.580169 | K19: 12318.30986 | L19: 810.8288128 | M19: =G19*K19 -> 12318.30986 | N19: =M19+L19 -> 13129.13867 | O19: =+N19-H19 -> 4383.138672 | P19: =IF(G19="","",+O19/N19) -> 0.3338481512 | Q19: =IF(G19="","",(M19-H19)/M19) -> 0.29 | R19: =IF(I19=0,"",(L19-I19)/L19) -> 0.3 | S19: 8746 | U19: ='Simplified P&L'!$B$55 -> 50 | W19: ='Simplified P&L'!$B$58 -> 50 | Y19: ='Simplified P&L'!$B$59 -> 65 | AA19: ='Simplified P&L'!$B$60 -> 40
A20: 0 | B20: EQUIPMENT | C20: MECA | D20: BASE | E20: Cloth & belt washing feeding pump | G20: 1 | H20: 13731 | I20: 891.0865882 | J20: 14622.08659 | K20: 19339.43662 | L20: 1272.98084 | M20: 19339.43662 | N20: 20612.41746 | O20: 6881.41746 | P20: 0.3338481512 | Q20: 0.29 | R20: 0.3 | S20: 13731 | U20: ='Simplified P&L'!$B$55 -> 50 | W20: ='Simplified P&L'!$B$58 -> 50 | Y20: ='Simplified P&L'!$B$59 -> 65 | AA20: ='Simplified P&L'!$B$60 -> 40
A21: 1 | B21: EQUIPMENT | C21: MECA | D21: BASE | E21: Scrubber feeding pump | G21: 1 | H21: =+S21*G21 -> 20216 | I21: =+(65000*H21/1001603) -> 1311.936965 | J21: =I21+H21 -> 21527.93697 | M21: =G21*K21 -> 0 | N21: =M21+L21 -> 0 | O21: =+N21-H21 -> -20216 | P21: =IF(G21="","",+O21/N21) ->  | Q21: =IF(G21="","",(M21-H21)/M21) ->  | R21: =IF(I21=0,"",(L21-I21)/L21) ->  | S21: 20216 | U21: ='Simplified P&L'!$B$55 -> 50 | W21: ='Simplified P&L'!$B$58 -> 50 | Y21: ='Simplified P&L'!$B$59 -> 65 | AA21: ='Simplified P&L'!$B$60 -> 40
A22: 0 | B22: EQUIPMENT | C22: MECA | D22: BASE | E22: document management according to customer specifications | G22: 1 | H22: =+S22*G22 -> 0 | I22: 0 | J22: =I22+H22 -> 0 | L22: 0 | M22: =G22*K22 -> 0 | N22: =M22+L22 -> 0 | O22: =+N22-H22 -> 0 | P22: =IF(G22="","",+O22/N22) ->  | Q22: =IF(G22="","",(M22-H22)/M22) ->  | R22: =IF(I22=0,"",(L22-I22)/L22) ->  | U22: ='Simplified P&L'!$B$55 -> 50 | W22: ='Simplified P&L'!$B$58 -> 50 | X22: 1000 | Y22: ='Simplified P&L'!$B$59 -> 65 | AA22: ='Simplified P&L'!$B$60 -> 40
A24: 0 | B24: EQUIPMENT | C24: MECA | D24: OPTIONS | E24: Cloth Ultrasonic welding machine | G24: 1 | H24: 7500 | I24: =T24*U24+V24*W24+X24*Y24+Z24*AA24 -> 0 | J24: 7500 | K24: =ROUND(J24/0.65,-2) -> 11500 | M24: 11500 | N24: 11500 | O24: 4000 | P24: 0.347826087 | Q24: 0.347826087 | S24: 7500 | U24: ='Simplified P&L'!$B$55 -> 50 | W24: ='Simplified P&L'!$B$58 -> 50 | Y24: ='Simplified P&L'!$B$59 -> 65 | AA24: ='Simplified P&L'!$B$60 -> 40
A25: 0 | D25: OPTIONS | H25: =+S25*G25 -> 0 | I25: =T25*U25+V25*W25+X25*Y25+Z25*AA25 -> 0 | J25: =I25+H25 -> 0 | M25: =G25*K25 -> 0 | N25: =M25+L25 -> 0 | O25: =+N25-H25 -> 0 | P25: =IF(G25="","",+O25/N25) ->  | Q25: =IF(G25="","",(M25-H25)/M25) ->  | R25: =IF(I25=0,"",(L25-I25)/L25) ->  | U25: ='Simplified P&L'!$B$55 -> 50 | W25: ='Simplified P&L'!$B$58 -> 50 | Y25: ='Simplified P&L'!$B$59 -> 65 | AA25: ='Simplified P&L'!$B$60 -> 40
A26: 0 | D26: OPTIONS | H26: 0 | I26: 0 | J26: 0 | M26: 0 | N26: 0 | O26: 0 | U26: ='Simplified P&L'!$B$55 -> 50 | W26: ='Simplified P&L'!$B$58 -> 50 | Y26: ='Simplified P&L'!$B$59 -> 65 | AA26: ='Simplified P&L'!$B$60 -> 40
A27: 0 | D27: OPTIONS | H27: 0 | I27: 0 | J27: 0 | M27: 0 | N27: 0 | O27: 0 | U27: ='Simplified P&L'!$B$55 -> 50 | W27: ='Simplified P&L'!$B$58 -> 50 | Y27: ='Simplified P&L'!$B$59 -> 65 | AA27: ='Simplified P&L'!$B$60 -> 40
A28: 0 | D28: OPTIONS | H28: 0 | I28: 0 | J28: 0 | M28: 0 | N28: 0 | O28: 0 | U28: ='Simplified P&L'!$B$55 -> 50 | W28: ='Simplified P&L'!$B$58 -> 50 | Y28: ='Simplified P&L'!$B$59 -> 65 | AA28: ='Simplified P&L'!$B$60 -> 40
A30: 0 | B30: ='Simplified P&L'!$G$3 -> EQUIPMENT | D30: Technical Subcontracting | E30: Sismic calculation | G30: 1 | H30: =+S30*G30 -> 6000 | I30: =T30*U30+V30*W30+X30*Y30+Z30*AA30 -> 0 | J30: =I30+H30 -> 6000 | K30: =ROUND(J30/0.65,-2) -> 9200 | M30: =G30*K30 -> 9200 | N30: =M30+L30 -> 9200 | O30: =+N30-H30 -> 3200 | P30: =IF(G30="","",+O30/N30) -> 0.347826087 | Q30: =IF(G30="","",(M30-H30)/M30) -> 0.347826087 | R30: =IF(I30=0,"",(L30-I30)/L30) ->  | S30: 6000 | U30: ='Simplified P&L'!$B$55 -> 50 | W30: ='Simplified P&L'!$B$58 -> 50 | Y30: ='Simplified P&L'!$B$59 -> 65 | AA30: ='Simplified P&L'!$B$60 -> 40
A31: 0 | B31: ='Simplified P&L'!$G$3 -> EQUIPMENT | D31: Purchasing Subcontracting | H31: =+S31*G31 -> 0 | I31: =T31*U31+V31*W31+X31*Y31+Z31*AA31 -> 0 | J31: =I31+H31 -> 0 | M31: =G31*K31 -> 0 | N31: =M31+L31 -> 0 | O31: =+N31-H31 -> 0 | P31: =IF(G31="","",+O31/N31) ->  | Q31: =IF(G31="","",(M31-H31)/M31) ->  | R31: =IF(I31=0,"",(L31-I31)/L31) ->  | U31: ='Simplified P&L'!$B$55 -> 50 | W31: ='Simplified P&L'!$B$58 -> 50 | Y31: ='Simplified P&L'!$B$59 -> 65 | AA31: ='Simplified P&L'!$B$60 -> 40
A32: 0 | B32: SERVICE | D32: Service Subcontracting | H32: 0 | I32: 0 | J32: 0 | M32: 0 | N32: 0 | O32: 0 | U32: ='Simplified P&L'!$B$55 -> 50 | W32: ='Simplified P&L'!$B$58 -> 50 | Y32: ='Simplified P&L'!$B$59 -> 65 | AA32: ='Simplified P&L'!$B$60 -> 40
A33: 0 | B33: ='Simplified P&L'!$G$3 -> EQUIPMENT | D33: Travel Expenses | H33: 0 | I33: 0 | J33: 0 | M33: 0 | N33: 0 | O33: 0 | U33: ='Simplified P&L'!$B$55 -> 50 | W33: ='Simplified P&L'!$B$58 -> 50 | Y33: ='Simplified P&L'!$B$59 -> 65 | AA33: ='Simplified P&L'!$B$60 -> 40
A34: 0 | B34: ='Simplified P&L'!$G$3 -> EQUIPMENT | D34: Miscellaneous (warranty extension) | H34: =+S34*G34 -> 0 | I34: =T34*U34+V34*W34+X34*Y34+Z34*AA34 -> 0 | J34: =I34+H34 -> 0 | M34: =G34*K34 -> 0 | N34: =M34+L34 -> 0 | O34: =+N34-H34 -> 0 | P34: =IF(G34="","",+O34/N34) ->  | U34: ='Simplified P&L'!$B$55 -> 50 | W34: ='Simplified P&L'!$B$58 -> 50 | Y34: ='Simplified P&L'!$B$59 -> 65 | AA34: ='Simplified P&L'!$B$60 -> 40
A36: 0 | B36: PACKAGING | G36: 1 | H36: =+S36*G36 -> 13000 | I36: =T36*U36+V36*W36+X36*Y36+Z36*AA36 -> 0 | J36: =I36+H36 -> 13000 | K36: =ROUNDUP(S36/(1-'Budget Target'!$D$13),-1) -> 17340 | M36: =G36*K36 -> 17340 | N36: =M36+L36 -> 17340 | O36: =+N36-H36 -> 4340 | P36: =IF(G36="","",+O36/N36) -> 0.2502883506 | Q36: =IF(G36="","",(M36-H36)/M36) -> 0.2502883506 | S36: 13000 | U36: ='Simplified P&L'!$B$55 -> 50 | W36: ='Simplified P&L'!$B$58 -> 50 | Y36: ='Simplified P&L'!$B$59 -> 65 | AA36: ='Simplified P&L'!$B$60 -> 40
A37: 0 | B37: TRANSPORT | E37: ='Simplified P&L'!G4 -> FCA - SHANGHAI - CHN | H37: =+S37*G37 -> 0 | I37: =T37*U37+V37*W37+X37*Y37+Z37*AA37 -> 0 | J37: =I37+H37 -> 0 | K37: =ROUNDUP(S37/(1-'Budget Target'!$D$13),-1) -> 0 | M37: =G37*K37 -> 0 | N37: 0 | O37: 0 | U37: ='Simplified P&L'!$B$55 -> 50 | W37: ='Simplified P&L'!$B$58 -> 50 | Y37: ='Simplified P&L'!$B$59 -> 65 | AA37: ='Simplified P&L'!$B$60 -> 40
A39: 0 | B39: SERVICE | E39: Erection for 6 weeks | G39: 1 | N39: =2*26920 -> 53840 | O39: =+N39-H39 -> 53840 | P39: =IF(G39="","",+O39/N39) -> 1
A40: 0 | B40: SERVICE | E40: Cold Commissioning for 1 week | G40: 1 | N40: =2*4780.75 -> 9561.5 | O40: =+N40-H40 -> 9561.5 | P40: =IF(G40="","",+O40/N40) -> 1
A41: 0 | B41: SERVICE | E41: Hot Commissioning for 1 week | G41: 1 | N41: =2*4780.75 -> 9561.5 | O41: =+N41-H41 -> 9561.5 | P41: =IF(G41="","",+O41/N41) -> 1
E42: Commissioning Spare Parts | G42: 1 | N42: =2*12330 -> 24660 | O42: =+N42-H42 -> 24660 | P42: =IF(G42="","",+O42/N42) -> 1
A43: 0 | B43: SERVICE | E43: 2 years spare parts | G43: 1 | N43: =2*42940 -> 85880 | O43: =+N43-H43 -> 85880 | P43: =IF(G43="","",+O43/N43) -> 1
E45: TOTAL CALCULATED | H45: =SUM(H3:H43) -> 940600.51 | I45: =SUM(I3:I43) -> 59321.44088 | J45: =SUM(J3:J43) -> 999921.9509 | K45: =SUM(K3:K43) -> 1371675.225 | L45: =SUM(L3:L43) -> 82870.71988 | M45: =SUM(,M3:M43) -> 1371675.225 | N45: =SUM(N3:N43) -> 1638048.945 | O45: =SUM(O3:O43) -> 697448.4352

Sheet Synthèse chiffrage
B3: OFFRE | C3: =[2]Calculations!C3&" _rev"&[2]Calculations!G2 -> 731693 _rev2 | D3: FOR INTERNAL USE ONLY | F3: 2025-02-20
B4: CLIENT | C4: =[2]Calculations!C2 -> Eurochem | F4: ='[2]Offre NEW'!M16 -> Baptiste JOLY
B6: TOTAL sans SERVICES ni PACK & TRANSP | D6: € | E6: %
C7: Prix revient | D7: =D15+D22+D29 -> 1001603.823
C8: Prix consulté | D8: =D16+D23+D30 -> 772370.1781 | E8: =D8/$D$7 -> 0.7711334168 | F8: =E8+E9 -> 0.8386688069
C9: Prix d'après autres affaires | D9: =D17+D24+D31 -> 67643.70481 | E9: =D9/$D$7 -> 0.06753539002
C10: Prix configurateur (+/-10%) | D10: =D18+D25+D32 -> 156589.9398 | E10: =D10/$D$7 -> 0.1563391994
C11: Coût des heures à facturer | D11: =D19+D26+D33 -> 5000 | E11: =D11/$D$7 -> 0.004991993727
B14: FILTRE | D14: € | E14: %
C15: Prix revient | D15: ='[2]Offre NEW'!I7 -> 407540.2754
C16: Prix consulté | D16: ='[2]Cost list'!U11+'[2]Cost list'!U12+'[2]Cost list'!U14+'[2]Cost list'!U16+'[2]Cost list'!U17+'[2]Cost list'!U20+'[2]Cost list'!U21+'[2]Cost list'!U22+'[2]Cost list'!U26+'[2]Cost list'!U31+'[2]Cost list'!U38 -> 277617.0022 | E16: =D16/$D$15 -> 0.6812013905 | F16: =E16+E17 -> 0.6812013905
C17: Prix d'après autres affaires | E17: =D17/$D$15 -> 0
C18: Prix configurateur (+/-10%) | D18: =D15-D16 -> 129923.2731 | E18: =D18/$D$15 -> 0.3187986095
C19: Coût des heures à facturer | E19: =D19/$D$15 -> 0
B21: ACCESSOIRES | D21: € | E21: %
C22: Prix revient | D22: =SUM('[2]Offre NEW'!I27:I62) -> 594063.5474
C23: Prix consulté | D23: ='[2]Offre NEW'!I27+'[2]Offre NEW'!I29+'[2]Offre NEW'!I30+'[2]Offre NEW'!I31+'[2]Offre NEW'!I33+'[2]Offre NEW'!I44+'[2]Offre NEW'!I45+'[2]Offre NEW'!I49+'[2]Offre NEW'!I52+'[2]Offre NEW'!I53+'[2]Offre NEW'!I62+'[2]Offre NEW'!I60 -> 494753.1759 | E23: =D23/$D$22 -> 0.8328287068 | F23: =E23+E24 -> 0.9466948161
C24: Prix d'après autres affaires | D24: ='[2]Offre NEW'!I41+'[2]Offre NEW'!I58+'[2]Offre NEW'!I59 -> 67643.70481 | E24: =D24/$D$22 -> 0.1138661093
C25: Prix configurateur (+/-10%) | D25: =D22-D23-D24-D26 -> 26666.66667 | E25: =D25/$D$22 -> 0.04488857595
C26: Coût des heures à facturer | D26: 5000 | E26: =D26/$D$22 -> 0.008416607991
B28: OPTIONS | D28: € | E28: %
C29: Prix revient
C30: Prix consulté | E30: =D30/$D$29 ->  | F30: =E30+E31 -> 
C31: Prix d'après autres affaires | E31: =D31/$D$29 -> 
C32: Prix configurateur (+/-10%) | E32: =D32/$D$29 -> 
C33: Coût des heures à facturer | E33: =D33/$D$29 -> 
B35: SERVICES | D35: €
C36: Prix revient (=PV/2)
B38: PACK & TRANSPORT | D38: €
C39: Packaging
C40: Transport

Sheet Budget Target
A1: BUDGET TARGET HF
B4: RUBRIQUE ANALYTIQUE | C4: DAS | D4: Margin Rate Target 2023
B5: EQUIPMENT | C5: DOSING | D5: 0.465 | E5: 01/01/2024 -update dans P&L le 19/03/2024
B6: EQUIPMENT | C6: FILTRATION | D6: 0.37
B7: EQUIPMENT | C7: MIXING | D7: 0.27
B8: EQUIPMENT | C8: PROCESSING | D8: 0.5
B9: REVAMPING | C9: DOSING | D9: 0.49 | E9: 01/01/2024 -update dans P&L le 19/03/2024
B10: REVAMPING | C10: FILTRATION | D10: 0.39
B11: REVAMPING | C11: MIXING | D11: 0.45
B12: REVAMPING | C12: PROCESSING | D12: 0.5
B13: PORT | C13: DOSING | D13: 0.25
B14: =+B13 -> PORT | C14: FILTRATION | D14: 0.25
B15: =+B14 -> PORT | C15: MIXING | D15: 0.25
B16: =+B15 -> PORT | C16: PROCESSING | D16: 0.25
B21: TURNOVER | D21: 33350000
B23: DIRECT COSTS: | D23: =+D25+D31+D32+D33+D34 -> 4872269.779 | E23: =+D23/D21 -> 0.1460950458
B25: PEX DIRECT | D25: =SUM(D26:D30) -> 3890886.324 | E25: % Dedicated to Project included 10% of Variation | G25: TOTAL Budget Cost 2023 | H25: TOTAL Budget Cost 2022 | I25: Taux Projet | J25: Taux Other Activity | K25: Taux Alea
B26: Technical Dept | D26: =+G26*E26 -> 1568337.461 | E26: =+I26+K26 -> 0.77 | G26: =2036.80189718573*1000 -> 2036801.897 | H26: 1684049 | I26: 0.67 | J26: =1-I26-K26 -> 0.23 | K26: 0.1 | L26: Based on Hourly Rate Calculation
B27: Purchasing Dept | D27: =+G27*E27 -> 286171.9519 | E27: =+I27+K27 -> 0.65 | G27: =440.2645414358*1000 -> 440264.5414 | H27: 328753 | I27: 0.55 | J27: 0.35 | K27: 0.1
B28: Project Management Wout Pascal F | D28: =+G28*E28 -> 369774.3087 | E28: =+I28+K28 -> 0.9 | G28: =410.860342995827*1000 -> 410860.343 | H28: 322452 | I28: 0.8 | J28: 0.1 | K28: 0.1
B29: Assembling | D29: =+G29*E29 -> 488217.6747 | E29: =+I29+K29 -> 1 | G29: =488.21767472092*1000 -> 488217.6747 | H29: 444862 | I29: 0.9 | K29: 0.1
B30: Service | D30: =+G30*E30 -> 1178384.928 | E30: =+I30+K30 -> 0.85 | G30: =1297.22520957928*1000+89110 -> 1386335.21 | H30: =950566 -> 950566 | I30: 0.75 | J30: 0.15 | K30: 0.1 | L30: Based on Hourly Rate Calculation
B31: COMMISSIONS (HF Only) | D31: =436.211667480582*1000 -> 436211.6675
B32: MISSIONS SERVICE (HF-HD-HM-HS) | D32: =477.67178693926*1000 -> 477671.7869
B33: FRAIS BANCAIRES S/CAUTIONS (HF Only) | D33: 47500
B34: FRAIS S/REMISE DOC & CREDIT DOC (HF Only) | D34: 20000
B36: OVERHEAD COSTS: | D36: =+D38+D39+D40+D41 -> 10937240.29 | E36: =+D36/D21 -> 0.327953232
B37: % Of TOTAL Sales | D37: =+D36/D21 -> 0.327953232
B38: PEX INDIRECT | D38: =+D45-D25 -> 5186515.471
B39: AACE | D39: =+D48-D31-D32-D33-D34-87600 -> 4879890.16
B40: TAXES | D40: =+D49 -> 382332.4796
B41: DEPRECIATIONS | D41: =+D50 -> 488502.1765
B45: PEX TOTAL | D45: =9077.40179511291*1000 -> 9077401.795
B48: AACE | D48: =5948.87361451792*1000 -> 5948873.615
B49: TAXES | D49: =382.332479625026*1000 -> 382332.4796
B50: DEPRECIATIONS | D50: =488.502176494876*1000 -> 488502.1765

Sheet Configuration
A2: Offer language | B2: English | P2: LISTES DEROULANTES | S2: T eng. | W2: ASM | AA2: Market | AF2: DAS | AG2: English | AH2: French | AI2: Chinese
S3: ABOU | T3: Tender engineer | U3: Ahssen Boudeheb | V3: a.boudeheb@hasler.group | W3: ABNA | X3: Business Developer Service & Spare | Y3: Alain Bernard Nankam | Z3: ab.nankam@hasler.group | AA3: CCH - A2 Cement | AF3: DOSING | AG3: Dosing system | AH3: Solution de dosage
A4: Budget proposal | B4: No | P4: DAS | Q4: TAC | S4: AGIB | T4: Tender engineer | U4: Alexis Gilbert | V4: a.gilbert@hasler.group | W4: AHOU | X4: Business Development Manager | Y4: Adrien Hourlier | Z4: a.hourlier@hasler.group | AA4: CCH - E4 Technical Silica (and Bulk) | AF4: FILTRATION | AG4: Filtration system | AH4: Solution de filtration
P5: DOSING | Q5: EQUIPMENT | S5: ANGO | T5: Tender engineer | U5: Ahou N'gotta | V5: ac.n'gotta@hasler.group | W5: BROU | X5: Area Technical Sales Manager | Y5: Benoît Roudaut | Z5: b.roudaut@hasler.group | AA5: CCH - F5 Cement and kiln dust dosing | AF5: MIXING | AG5: Mixing system | AH5: Solution d'agitation
A6: Customer reference | P6: FILTRATION | Q6: REVAMPING | S6: BJOL | T6: Filtration Product Manager | U6: Baptiste Joly | V6: b.joly@hasler.group | W6: CPIS | X6: Area Sales Manager | Y6: Cosimo Piscopiello | Z6: c.piscopiello@hasler.group | AA6: CCH - H4 Soda Ash | AF6: PROCESSING | AG6: Kneading system | AH6: Solution de malaxage
P7: MIXING | Q7: SPARE PARTS | S7: BROU | T7: Area Technical Sales Manager | U7: Benoît Roudaut | V7: b.roudaut@hasler.group | W7: DCRI | X7: Area Sales Manager | Y7: Daniel Criado | Z7: d.criado@hasler.group | AA7: CCH - other | AG7: Commercial offer | AH7: Offre commerciale
P8: PROCESSING | Q8: SERVICE | S8: CCHA | T8: Tender engineer | U8: Chenghao Chai | V8: c.chai@hasler.group | W8: EGUA | X8: Process Engineer | Y8: Enrico Gualdi | Z8: e.gualdi@hasler.group | AA8: MMF - A1 Phosphoric Acid | AG8: Customer reference | AH8: Référence client
Q9: OTHER | S9: EGUA | T9: Process Engineer | U9: Enrico Gualdi | V9: e.gualdi@hasler.group | W9: EVAQ | X9: Area Sales Manager | Y9: Emilie Vaquero | Z9: e.vaquero@hasler.group | AA9: MMF - A3 Phosphate Rock | AG9: Customer | AH9: Client
S10: KSCH | T10: Tender engineer | U10: Konstantin Schilow | V10: k.schilow@hasler.group | W10: LLI | X10: Area Sales Manager | Y10: Leo Li | Z10: l.li@hasler.group | AA10: MMF - B1 Phosphated Fertilizers (MAP,DAP,TSP,DCP …) | AG10: Table of Contents | AH10: Sommaire
P11: MECA | Q11: BASE | S11: MBAL | T11: Trial Technician Filtration | U11: Mélisa Balguy | V11: m.balguy@hasler.group | W11: LMEN | X11: Sales & Marketing Director | Y11: Laurent Menigoz | Z11: l.menigoz@hasler.group | AA11: MMF - I3 Lithium | AG11: Cover Letter | AH11: Lettre d'introduction
P12: ELEC | Q12: OPTIONS | S12: VRUY | T12: Process & Product Director | U12: Victor Ruys | V12: v.ruys@hasler.group | W12: LZHA | X12: Area Sales Manager | Y12: Li Zhang | Z12: l.zhang@hasler.group | AA12: MMF - L3 Zinc and cadmium | AG12: Price List | AH12: Liste de prix
Q13: SERVICES | S13: YMAR | T13: Dosing Product Manager | U13: Yuri Marcuzzo | V13: y.marcuzzo@hasler.group | W13: MJAM | X13: Sales Director | Y13: Michel Jamey | Z13: m.jamey@hasler.group | AA13: MMF - N3 Nickel, Cobalt and Manganese | AG13: Special Terms of Sales | AH13: Conditions particulières de vente
W14: NDEL | X14: Business Development Manager | Y14: Nicolas Delattre | Z14: n.delattre@hasler.group | AA14: MMF - Other | AG14: Delivery Time | AH14: Délai de livraison
P15: 12 months after commissioning, latest 18 months after delivery | Q15: 12 mois après la mise en service, maximum 18 mois après livraison | W15: PTES | X15: Area Sales Manager | Y15: Phirun Tes | Z15: p.tes@hasler.group | AA15: ENV - A5 FGD (Flue-gas & kiln dust/alternative fuels desulfurization) | AG15: Terms of Payment | AH15: Conditions de paiement
P16: 18 months after commissioning, latest 24 months after delivery | Q16: 18 mois après la mise en service, maximum 24 mois après livraison | W16: TOUE | X16: Area Sales Manager | Y16: Toufik Ouerdani | Z16: t.ouerdani@hasler.group | AA16: ENV - B5 Water Treatment | AG16: Warranty | AH16: Garantie
P17: 24 months after commissioning, latest 30 months after delivery | Q17: 24 mois après la mise en service, maximum 30 mois après livraison | W17: WSON | X17: Area Sales Manager | Y17: Wei Song | Z17: w.song@hasler.group | AA17: ENV - E5 Industrial Waste Water Treatment | AG17: Validity | AH17: Durée de validité
P18: 24 months after commissioning, latest 36 months after delivery | Q18: 24 mois après la mise en service, maximum 36 mois après livraison | AA18: ENV - Other | AG18: Contacts | AH18: Coordonnées
P19: 36 months after commissioning, latest 42 months after delivery | Q19: 36 mois après la mise en service, maximum 42 mois après livraison | AA19: DEV - A4 Feed (additives) | AG19: Customer Contact List | AH19: Liste de contacts client
AA20: DEV - B4 CERAMIC & MATERIALS (Catalyst,proppants) | AG20: HASLER France Contact List | AH20: Liste de contacts HASLER France
AA21: DEV - D4 Sealant - Bonding - Adhesives | AG21: General Terms & Conditions of Sale | AH21: Conditions générales de vente
P22: Payment percentage : | AA22: DEV - F4 Battery Pastes | AG22: General Conditions of Intervention | AH22: Conditions générales d'intervention
P23: 0.05 | AA23: DEV - G4 Specialty Polymers and resins and compounds | AG23: This commercial offer is linked to our technical offer ref n° | AH23: Cette offre commerciale est liée à notre offre technique n°
P24: 0.1 | AA24: DEV - I4 Aminated Acids / vitamins / specialty acids (lactic, citric…) | AG24: The following offer is a budget offer, NOT valid for order. | AH24: La presente offre est une offre budgetaire, NON-valable pour commande.
P25: 0.15 | AA25: DEV - J3 Metals recycling | AG25: Our Reference: | AH25: Notre reference:
P26: 0.2 | AA26: DEV - Other | AG26: Offer | AH26: Offre
P27: 0.25 | AG27: Please take into account additional time for delivery of the goods to the contractual incoterm place of destination (to be confirmed after order) | AH27: Prévoir un délai supplémentaire pour l'acheminement de la marchandise au lieu de l'incoterm contractuel (à confirmer apres commande)
P28: 0.3 | AG28: The lead time countdown starts from the receipt of the advance payment due upon ordering. It will be extended by any delay that may occur in order to receive additionally agreed payment instalments. No work will be started before receipt of the agreed advance payment. It is the responsibility of the customer to provide all technical data and intermediary approvals in a timely manner in order to allow the nominal progress of the design, manufacturing and documentation work. Any delay in doing so will affect the global lead time without any liability to Hasler | AH28: Le délai indiqué est estimatif et sera confirmé à réception de votre commande afin de tenir compte de la charge usine au moment du traitement de votre commande. Le délai court à partir de la réception du paiement de l’acompte initial payable à la commande. Il sera prolongé de chaque retard éventuel qui pourrait être mis à recevoir le versement des jalons de paiement contractuels supplémentaires. Aucun travail ne sera entamé avant réception de l’acompte initial convenu. Il est de la responsabilité du client de fournir en temps voulu l’ensemble des données techniques et des validations permettant la progression du travail de conception, de fabrication et de documention. Tout retard de réception impactera d’autant le délai de livraison sans qu’aucune responsabilité ou pénalité ne puisse être imputée à Hasler
P29: 0.35 | AG29: At placing the order, upon receipt of the order confirmation and the corresponding invoice | AH29: A la commande au titre d'acompte, dès réception de la confirmation de commande et de la facture correspondante
P30: 0.4 | AG30: 30 days net after the date of invoice, invoice issued at Ex Works readiness date | AH30: A la mise à disposition du materiel à notre usine (EXW Le Mele sur Sarthe), à 30 jours date de notre facture
P31: 0.45 | AG31: By bank transfer | AH31: Par virement bancaire
P32: 0.5 | AG32: The equipment must not be modified without prior consultation with HASLER Group. Modification without the written consent of HASLER GROUP may invalidate the warranty and any product liability. Any warranty for newly purchased equipment will be void unless HASLER Group has supervised and/or validated on site the assembly and mountingof the equipment. Expertise of abnormal conditions under warranty periods are to be exclusively conducted by HASLER Group. Should the expertise conclude that the causes of the conditions are not related to the warranty then the full expertise will have to be covered by the main contractor or the end user. | AH32: L’équipement ne peut être modifié sans accord préalable de HASLER Group. Toute modification sans le consentement écrit de HASLER Group invaliderait la garantie et toute responsabilité de HASLER Group envers le produit. Toute garantie pour un équipement neuf ne sera effective qu’à la condition qu’HASLER Group ait supervisé et/ou validé sur site le montage et l'assemblage de cet équipement. Les expertises pour des fonctionnements anormaux pendant les périodes de garantie seront exclusivement effectuées par HASLER Group. Si l'expertise conclut que les causes des dysfonctionnments ne sont pas conformes aux termes de la garantie, alors l'expertise complète sera à la charge du contractant principal ou l'utilisateur final.
P33: 0.55 | AG33: 1 month | AH33: 1 mois
P34: 0.6 | AG34: Address | AH34: Adresse
P35: 0.65 | AG35: City | AH35: Ville
P36: 0.7 | AG36: Country | AH36: Pays
P37: 0.75 | AG37: Name | AH37: Nom
P38: 0.8 | AG38: Position | AH38: Fonction
P39: 0.85 | AG39: Contact Details | AH39: Coordonnées
P40: 0.9 | AG40: Purchase Dept | AH40: Sce achat
P41: 0.95 | AG41: Technical Dept | AH41: Technique
P42: 1 | AG42: IMPORTANT / COVID 19 HEALTH PANDEMIC In view of the COVID 19 health pandemic, the delivery times and costs we indicate are currently indicative and cannot be considered contractual. HASLER GROUP obviously does everything in its power to maintain these deadlines and costs as they are stated. However, we reserve the right to update the transport costs before shipping if they should fluctuate. We will notify you in advance of any additional impact. | AH42: IMPORTANT / CONTEXTE SANITAIRE COVID 19 Au regard du contexte sanitaire COVID 19, les délais et frais de livraison que nous indiquons sont aujourd’hui à titre indicatif et ne peuvent être considérés comme contractuels. HASLER GROUP met bien évidemment tout en œuvre pour maintenir ces frais et délais mais se réserve le droit de réactualiser avant expédition les couts de transports si ces derniers devaient fluctuer. Nous vous informerons au préalable de tout impact supplémentaire.
AG43: Are you focusing on optimizing your equipment and your production ? | AH43: Vous souhaitez améliorer votre process ?
AG44: Our experienced engineers are available on request for accurate and dedicated training, expertise or audit. | AH44: Nos ingénieurs experts interviennent chez vous pour des audits techniques et des interventions spécifiques
AG45: Contact us to get more informations: service@hasler.group | AH45: Contactez-nous pour plus d’informations : service@hasler.group
AG46: 1. GENERAL POINTS 1.1. Commercial relations between HASLER France, or one of its subsidiaries representing it (‘Supplier’), and the buyer, referred to as the “Customer”, shall be governed by these General Terms and Conditions of Sale. They constitute the sole basis of any commercial negotiation and shall apply to all points which are not regulated in another manner in writing by mutual Agreement. Customer terms and conditions of Purchase which contradict these General Terms and Conditions of Sale shall only be valid if the Supplier has agreed to them in writing. 1.2. Deviations/additions to these General Terms and Conditions of Sale shall only be valid if the Supplier has expressly accepted them in writing. 1.3. Offers which do not mention a validity period shall be non-binding. Once the validity period has expired, the Supplier reserves the right to accept or not any order. 1.4. The ‘Agreement’ consists of the documents listed below which shall prevail over each other in the following order of priority: - an Agreement signed by both the Customer and the Supplier or the order and its acceptance signed by the Supplier with its comments (if required); - any specific and/or additional special Terms and Conditions of Sale agreed by the Customer and the Supplier; - these General Terms and Conditions of Sale, which form an integral part of the Agreement. 1.5. ‘Works’, specified in the Agreement, consist of the ‘Equipment’ to be delivered (materials, products, equipment, etc.) and the ‘Services’ to be provided (assembly, supervision, commissioning, repair, upgrade, maintenance, etc.) in accordance with Agreement requirements. 1.6. The Supplier shall be free to subcontract all or part of the Equipment and Services under the Agreement. 1.7. The Customer shall refrain from any action or practice with a view to hiring the Supplier’s employees. 1.8. If any provision of the Agreement is deemed invalid or unenforceable in whole or in part by a competent authority, the validity of the other provisions of the Agreement and the rest of the provision in question shall not be affected. 1.9. The headings in these General Terms and Conditions of Sale are indicative and do not affect the content of the relevant provisions. 2. AGREEMENT AND EFFECTIVE DATE 2.1. The Agreement shall enter into effect when the last of the following events occurs (‘Effective Date’): - Agreement signature by the Supplier and the Customer; - receipt by the Supplier of a down payment as provided for in the Agreement or, failing that, receipt by the Customer of the formal acceptance of the order signed by the Supplier; - receipt by the Supplier of an irrevocable and confirmed letter of credit acceptable by the Supplier, or receipt of any other payment guarantee by the Supplier (stand-by letter of credit or other, to be agreed by the Supplier). 2.2. Unless otherwise indicated in the special conditions of sale, the Effective Date shall constitute the date of the beginning of the Supplier’s contractual obligations and the delivery lead time and schedules specified, if applicable, in the Agreement for Equipment, spare parts, and Service provision. 2.3. If more than thirty (30) days pass after the Agreement’s signature without the occurrence of the Effective Date, the Supplier may modify the aforementioned schedules. 3. ORDER, ORDER CONFIRMATION 3.1. Unless there are justified exceptions, the Supplier shall confirm orders in writing. The terms of the written order confirmation shall be the exclusive reference for payment terms, the delivery time, the contents of the delivery, and the scope of the Services, and shall include, where applicable, reservations on the Customer order (HASLER EQ23 document). 3.2. Order changes, as well as oral Agreements shall only be valid if the Supplier has confirmed them in writing to the Customer. 3.3. The Supplier shall be authorised to make changes bringing improvements at any time as long as they do not hinder the guaranteed performance and do not result in an increase in the price for the Customer. 3.4. The submission of an order signed by the Customer implies acceptance by the latter of these General Terms and Conditions of Sale, unless one or more points of these General Terms and Conditions of Sale have resulted in a negotiation and on the condition that these negotiated points are recorded in the written Agreement signed by the Supplier or in the Special Terms and Conditions of Sale which are also signed. 4. PRICE 4.1. Prices are expressed according to the exact Incoterm specified in the Special Terms of Sale, according to the ICC (International Chamber of Commerce) definitions of the latest known review of the offer. 4.2. Prices may be adjusted after entering into the Agreement in the following cases: - price review; - extension of the delivery lead time for one of the reasons listed in 11.3; - change to the scope of the agreed Works; - modifications to the Equipment or performance because the documents provided to the Supplier by the Customer did not correspond to actual conditions or were incomplete. 4.3. If the Effective Date occurs after the offer’s validity date, or if the Agreement completion date is postponed for reasons beyond the Supplier’s liability, the Supplier shall be entitled to update its prices for postponed work, in particular in order to take into account possible increases in the prices of raw materials, energy, and the average cost of living. 4.4. The price is understood and corresponds to the limit of the Services defined in the Agreement’s reference technical offer. 4.5. The Agreement price shall be adjusted to take into account any change in cost for the Supplier resulting from changes in the legislation of the Customer's country. Legislation means any law, order, or regulation, not limited to tax laws, that affects the Supplier in the performance of the obligations under the Agreement. 5. AGREEMENT PERFORMANCE 5.1. Delivery shall meet the standards and requirements applied by the Supplier, valid at the time of the offer, and confirmed when ordering. 5.2. The goods are designed and manufactured in compliance with fundamental health and safety requirements respectively applicable to them. The CE mark of conformity and the establishment of Supplier declarations meet the corresponding directives. 5.3. Good Engineering Practices: Equipment and Services shall conform to good engineering practice and contract specifications. The Customer is required to provide the Supplier with all the information and documents necessary for the Works before signing the Agreement. 5.4. Customer's obligations: throughout the duration of the Works, the Customer shall provide any approval and instruction, material, Works, site access, any Equipment to the extent necessary for the Works (safety rules, special risks, etc.), and, more generally, any support required for the Works which is not part of the Works or the Supplier's responsibility in a timely manner. The customer shall assist the Supplier in obtaining any visa, permit, or licence that may be required for Service provision or for Equipment import and delivery (if applicable). 5.5. Customer supervision: when provided for in the special terms and conditions of sale, the Customer may supervise Agreement execution. To this end, the Customer or its representatives shall have access to the Supplier's facilities during their working hours. The cost of this shall be fully borne by the Customer. Such supervision shall not hinder or delay Agreement execution. 5.6. Supplier recommendations: any advice or recommendation given by the Supplier (or its employees or agents) which is not confirmed in writing by the Supplier, shall be followed or applied entirely at the Customer’s risk and peril, and therefore, the Supplier shall not be held liable for any such advice or recommendations that are not confirmed in this manner. | AH46: 1. GENERALITES 1.1. Les relations commerciales entre la société HASLER France, ou l’une de ses filiales la représentant, nommée « le Fournisseur » par la suite, et l’acheteur, dénommé « le Client », sont régies par les présentes Conditions Générales de Vente. Celles-ci constituent le socle unique de toute négociation commerciale, et s’appliquent à tous les points qui ne sont pas réglementés d’une autre manière par écrit selon accord réciproque. Des conditions du Client qui sont en contradiction avec ces Conditions Générales de Vente ne sont valables que si le Fournisseur s’est déclaré par écrit d’accord avec elles. 1.2. Des divergences / compléments à ces Conditions Générales de Vente ne sont valables que si le Fournisseur les a acceptés expressément et par écrit. 1.3. Les offres qui ne mentionnent pas de délai de validité sont sans engagement. Une fois le délai de validité écoulé, le Fournisseur se réserve le droit d’accepter ou non toute commande s’y référant. 1.4. « Le Contrat » est constitué des documents énumérés ci-après et prévalant les uns sur les autres dans l'ordre de priorité suivant : - un accord signé par le Client et le Fournisseur, ou la commande et son acceptation signées par le Fournisseur avec ses commentaires éventuels ; - toutes conditions de vente spécifiques et / ou spéciales complémentaires convenues par le Client et le Fournisseur ; - les présentes Conditions Générales de Vente, qui font partie intégrante du Contrat. 1.5. « Les Travaux », précisés dans le Contrat, sont constitués de « l’Équipement » à livrer (matériaux, produits, équipements, …) et des « Services » à exécuter (Travaux de montage, supervision, mise en service, réparation, mise à niveau, maintenance, …) conformément aux exigences du Contrat. 1.6. Le Fournisseur est libre de sous-traiter tout ou partie de l’équipement et des services du Contrat. 1.7. Le Client s’abstiendra de toute action ou pratique en vue d’embaucher du personnel du Fournisseur. 1.8. Si une disposition du Contrat est jugée invalide ou inapplicable par une autorité compétente, en tout ou en partie, la validité des autres dispositions du Contrat et le reste de la disposition en question n’en seront pas affectés. 1.9. Les titres des présentes Conditions Générale de Vente sont indicatifs et n’affectent pas le contenu des clauses pertinentes. 2. CONTRAT ET DATE D’ENTREE EN VIGUEUR 2.1. Le Contrat entrera en vigueur lorsque le dernier des événements suivants se produira (« Date d'entrée en vigueur ») : - signature du Contrat par le Fournisseur et le Client - réception par le Fournisseur d'un acompte tel que prévu au Contrat, ou par défaut, réception par le Client de l'acceptation formelle de la commande signée par le Fournisseur - réception par le Fournisseur d'un crédit documentaire irrévocable et confirmé acceptable par le Fournisseur, ou réception de toute autre garantie de paiement par le Fournisseur (lettre de crédit stand-by ou autre, à convenir par le Fournisseur) 2.2. Sauf indication contraire dans les conditions particulières de vente, la Date d'entrée en vigueur constituera la date de début des obligations contractuelles du Fournisseur et du délai de livraison et des calendriers spécifiés le cas échéant dans le Contrat de l'Équipement, des pièces de rechange et des prestations de Service. 2.3. S'il devait y avoir plus de trente (30) jours après la signature du Contrat sans occurrence de la date d'entrée en vigueur, le Fournisseur aurait le droit de modifier les calendriers susmentionnés. 3. COMMANDE, CONFIRMATION DE COMMANDE 3.1. Sauf exception justifiée, le Fournisseur confirme les commandes par écrit. Les termes de la confirmation de commande écrite sont la référence exclusive pour les termes de paiement, le délai, le contenu de la livraison et l’étendue des prestations, et intègrent, le cas échéant, des réserves sur la commande du Client (document HASLER EQ23). 3.2. Des modifications de commande, ainsi que des accords oraux ne sont valables que si le Fournisseur les a confirmés par écrit au Client. 3.3. Le Fournisseur est autorisé à procéder en tout temps à des modifications apportant des améliorations dans la mesure où celles-ci n’entravent pas les performances garanties et n'entraînent pas une hausse du prix pour le Client. 3.4. La soumission d'une commande signée par le Client vaut l'acceptation par celui-ci des présentes Conditions Générales de Vente, sauf si un ou plusieurs points de ces CGV ont donné lieu à une négociation, et à la condition que ces points négociés soient retracés dans le Contrat écrit signé du Fournisseur ou dans des Conditions Particulières de Ventes également signées. 4. PRIX 4.1. Les prix sont exprimés selon l’Incoterm exact spécifié dans les conditions particulières de vente, selon les définitions ICC (Chambre de Commerce International) de la dernière révision connue à l’offre. 4.2. Des adaptations de prix après la conclusion du Contrat peuvent être opérées dans les cas suivants : - une révision de prix a été convenue, - une prolongation du délai de livraison a eu lieu pour l’une des raisons sous point 11.3, - l’étendue des Travaux convenus a été modifiée, - des modifications ont été apportées au matériel ou à l’exécution, parce que les documents mis à la disposition du Fournisseur par le Client ne correspondaient pas aux conditions réelles ou étaient incomplets. 4.3. Dans le cas où la Date d'entrée en vigueur survient après la date de validité de l'offre, ou dans le cas où la date d'achèvement du Contrat est reportée pour des raisons indépendantes de la responsabilité du Fournisseur, le Fournisseur serait en droit de mettre à jour ses prix pour les Travaux reportés, en particulier afin de prendre en compte des éventuelles augmentations de prix des matières premières, de l'énergie et du coût moyen de la vie. 4.4. Le prix s’entend et correspond à la limite de prestations définies dans l’offre technique de référence du Contrat. 4.5. Le prix du Contrat sera ajusté pour tenir compte de toute modification de coût pour le Fournisseur résultant de modifications de la législation du pays du Client. La législation désigne toute loi, ordonnance, réglementation, non limitée aux lois fiscales, qui affecte le Fournisseur dans l’exécution des obligations en vertu du Contrat. 5. EXECUTION DU CONTRAT 5.1. La livraison répond aux normes et prescriptions appliquées par le Fournisseur, valables au moment de l’offre, et confirmées à la commande. 5.2. Les marchandises sont conçues et fabriquées en respectant les exigences fondamentales de sécurité et de santé qui leur sont respectivement applicables. La marque CE de conformité et l’établissement des déclarations du Fournisseur répondent aux directives correspondantes. 5.3. Bonnes pratiques d’ingénierie : l’Equipement et les Services seront conformes aux bonnes pratiques d’ingénierie et aux spécifications du Contrat. Le Client est tenu de fournir au Fournisseur toutes les informations et documents nécessaires aux Travaux avant la signature du Contrat. 5.4. Obligations du Client : pendant toute la durée des Travaux, le Client devra fournir à temps toute approbation et instruction, matériel, travaux, accès au chantier et à tout équipement dans la mesure nécessaire aux Travaux (règles de sécurité, risques particuliers, …) et plus généralement tout support requis pour les Travaux tant qu’il ne fait pas partie des Travaux ou de la responsabilité du Fournisseur. Le Client doit aider le Fournisseur à obtenir tout visa, permis ou licence qui peut être nécessaire pour l’exécution des Services ou pour l’importation et la livraison de l’Equipement (le cas échéant). 5.5. Supervision du Client : lorsque cela est prévu dans les conditions particulières de vente, le Client peut superviser l’exécution du Contrat. A cet effet, le Client ou ses représentants auront accès aux installations du Fournisseur pendant leurs heures de travail. Le coût de celle-ci est entièrement à la charge du Client. Cette surveillance ne doit pas entraver ni retarder l’exécution du Contrat. 5.6. Recommandations du Fournisseur : tout conseil ou recommandation donné par le Fournisseur (ou ses employés ou agents) qui n’est pas confirmé par écrit par le Fournisseur, est suivi ou appliqué entièrement aux risques et périls du Client, et en conséquence, le Fournisseur ne sera pas responsable de tels conseils ou recommandations qui ne sont pas ainsi confirmés.
AG47: 6. CHANGES – AMENDMENTS – VARIATIONS 6.1. During Agreement execution, the Supplier may make changes to the Equipment as required by mandatory circumstances, such as a modification of technical standards, manufacturing methods, or laws and regulations, affecting the terms of Agreement execution. However, these modifications shall not affect the fundamental characteristics of the Equipment and Services specified in the Agreement. 6.2. If these modifications have effects which prevent or make more difficult compliance with certain Agreement provisions, in particular those relating to prices or delivery lead times, the Supplier shall submit the appropriate supporting documents to the Customer and the Customer and the Supplier shall sign an Amendment to their Agreement setting out the changes required. 6.3. All changes to the Agreement shall be documented in writing and signed by the Supplier and the Customer. Under no circumstances shall the Supplier be held liable for the performance of Works other than those expressly mentioned in the Agreement by its employees at the Customer's request. 7. PAYMENT 7.1. The Customer shall make payments in accordance with the agreed terms at the Supplier's tax domicile without deducting any discounts, charges, taxes, duties, customs duties, allowances, Supplier delay penalties or other charges. In the absence of other Agreements, the price shall be paid in two instalments: one third upon receipt of the order confirmation and two thirds upon delivery or notice of availability. An invoice recalling the down payment paid and the balance payable shall be issued. The down payment shall be paid upon receipt of the corresponding invoice. Unless otherwise agreed, any other invoice shall be paid within 30 (thirty) days from the date of the invoice. In the case of early payment, no discount shall be granted. 7.2. The payment terms and commitments shall remain in force when the acceptance, transport, delivery, assembly, and commissioning of Equipment or Services are delayed or made impossible for reasons beyond the Supplier’s control. The same applies when non-essential parts fail or when touch-up work is necessary without preventing the use of Equipment or a service. 7.3. In the event of late payment, the Supplier reserves the right to immediately stop deliveries and planned service provision. It is authorised to charge interest from the day following the payment date appearing on the invoice, at the rate of 3 (three) times the French legal interest rate. In addition, a minimum fixed fee of 40 euros for recovery costs shall be due as of right, without any reminder being necessary, without prejudice to the Supplier being able to charge a greater amount than said fixed fee if it has incurred higher recovery costs. This fee shall apply to each invoice paid late. 7.4. If the Customer is in default, the Supplier is authorised to cease the activities inherent to the Agreement and withhold deliveries and Services in progress. If, within a reasonable period of time, the Supplier does not obtain sufficient guarantees, it may withdraw from the Agreement, demand damages and, if necessary, take back the goods supplied under the Agreement at the Customer's expense. 8. TAXES 8.1. Unless otherwise specified in the regulations of European Union countries, where the Agreement provides for the delivery of Equipment within the European Union, Equipment delivery shall be exempt from VAT provided that the Customer provides the Supplier with its VAT number or that of the end user, if the latter is a resident of the European Union, with the order. 8.2. In this case, the Customer or end user shall pay the applicable VAT in accordance with the tax rules applicable in their own country. If the VAT number is not attached to the Agreement, the Equipment shall be subject to VAT in the Customer's country, calculated at the rate in force on the invoice date. Any tax adjustment, penalty, or interest on late payment which may become due as a result of the Supplier’s use of said VAT number shall be reimbursed by the Customer to the Supplier within 30 (thirty) days of the presentation of proof of payment thereof. 8.3. For France, the prices indicated are exclusive of VAT. This shall be applied to invoicing in accordance with the laws in force. 9. RETENTION OF TITLE Delivery shall remain the Supplier’s property until full payment of the Equipment. The Customer has an obligation to participate in measures aimed at the protection of property. In particular, it shall identify precisely the goods delivered and not paid for in its warehouses, so as to allow, if necessary, an effective claim. It authorises the Supplier, at its own expense, to carry out any inspection of this identification on the Customer's premises. The Customer shall also bear the costs of registering or reporting the retention of title in the public registers/books in accordance with applicable national laws and the costs incurred by the Supplier to complete all the formalities necessary for this purpose. Until the retention of title is lifted, the Customer shall insure and maintain the delivered goods. 10. FORCE MAJEURE 10.1. Under no circumstances shall the Supplier be liable for non-compliance with its obligations due to a case of Force Majeure. Force Majeure shall be defined as any event preventing the full or partial performance of the Agreement which cannot be overcome despite a reasonable effort on the part of the Supplier or its agents. 10.2. Force Majeure includes, but is not limited to, the following events: labour disputes or strikes, shortage of skilled workers or raw materials, major incidents affecting the Supplier's agents, fires, explosions, mobilisations, action or failure to act by public Services or government authorities, acts of war, sabotage, embargoes, insurrection, riots, breach of the peace, major manufacturing issues such as tool accidents or business failure, or late deliveries or with defects in raw materials, semi-finished or finished products, scrapping of essential parts, administrative measures or shortcomings, natural phenomena, interruptions or delays in transport, and epidemics. 10.3. If the case of Force Majeure continues for more than 3 (three) months and the Customer and the Supplier have not agreed on the terms of continuation of the Agreement, the Supplier may terminate the Agreement within a period of 30 (thirty) days after written notification to the Customer, in which case the provisions of the TERMINATION clause shall apply. 11. DELIVERY LEAD TIME 11.1. The delivery lead time shall begin from the Effective Date. 11.2. Unless otherwise agreed, where delivery takes place on the Supplier's premises, the delivery lead time is considered to have been complied with when the goods are ready to be delivered or, by derogation, accepted in accordance with what has been agreed. 11.3. The delivery time shall be appropriately extended: - when points 4 and 5 of section 5 (Agreement execution) reach the Supplier late; - when the Customer modifies the specifications necessary for Agreement execution after the Effective Date; - in the event of a case of Force Majeure (section 10); - if an external inspection, mandated by the Customer in writing on placing the order, delays the lead time initially planned. 11.4. If such uncontrollable events prevent deliveries and service provision within the agreed deadlines, the Customer shall not be entitled to any compensation. 11.5. If a specific date is agreed instead of a delivery lead time, it shall be equivalent to the last day of the delivery lead time. The previous points in this section shall apply in a similar manner. | AH47: 6. MODIFICATION – AMENDEMENTS – VARIATIONS 6.1. Pendant l’exécution du Contrat, le Fournisseur peut introduire des changements dans l’Equipement comme requis par des circonstances obligatoires telles que la modification des normes techniques, ou des méthodes de fabrication, ou des dispositions législatives et réglementaires, affectant les conditions d’exécution du Contrat. Ces modifications ne doivent cependant pas affecter les caractéristiques fondamentales des équipements et services spécifiés dans le Contrat. 6.2. Si ces modifications ont des effets qui empêchent ou rendent plus difficile le respect de certaines dispositions du Contrat, notamment celles relatives aux prix ou aux délais de livraison, le Fournisseur soumettra au Client les pièces justificatives appropriées et le Client et le Fournisseur signeront un Avenant à leur Contrat fixant les modifications requises. 6.3. Toutes les modifications au Contrat seront documentées par écrit signées par le Fournisseur et le Client. La responsabilité du Fournisseur ne peut en aucun cas être engagée pour l’exécution par ses employés, à la demande du Client, des Travaux autres que ceux expressément mentionnés dans le Contrat. 7. PAIEMENT 7.1. Le Client doit effectuer les paiements conformément aux conditions convenues au domicile fiscal du Fournisseur sans déduction d’escomptes, de frais, d’impôts, de taxes, de droits de douane, d’indemnités, de pénalités de retard du Fournisseur ou autres redevances. A défaut d’autres accords, le prix est à régler en deux tranches, à savoir : un tiers à la réception de la confirmation de commande, deux tiers à la livraison ou à l’avis de disponibilité. Une facture rappelant l’acompte versé et le solde à payer sera émise. L’acompte est à payer dès réception de la facture correspondante. Toute autre facture doit être réglée, sauf accord particulier, dans un délai de 30 (trente) jours à compter de la date d’émission de la facture. Dans le cas d’un paiement anticipé, aucune remise ni escompte n’est accordé. 7.2. Les conditions et engagements de paiement demeurent de rigueur lorsque l’acceptation, le transport, la livraison, le montage, la mise en service de l’installation ou des prestations sont retardés ou rendus impossibles pour des raisons dont le Fournisseur n’est pas responsable. Il en va de même lorsque des pièces non essentielles font défaut ou lorsque des travaux de retouche s’avèrent nécessaires sans qu’ils empêchent l’utilisation d’une installation ou d’une prestation. 7.3. En cas de retard de paiement, le Fournisseur se réserve le droit à l’arrêt immédiat des livraisons et prestations prévues. Il est autorisé à facturer des intérêts à partir du jour suivant la date de règlement figurant sur la facture, au taux de 3 (trois) fois le taux d’intérêt légal français. En outre, une indemnité forfaitaire minimum de 40 euros pour frais de recouvrement sera due de plein droit, sans qu’aucun rappel ne soit nécessaire, sans préjudice de la faculté du Fournisseur qui aurait exposé des frais de recouvrement d’un montant supérieur au montant forfaitaire susvisé. Cette indemnité s’applique à chaque facture payée en retard. 7.4. Si le Client est en retard de paiement, le Fournisseur est autorisé à cesser la poursuite des activités inhérentes au Contrat et à retenir les livraisons et prestations en cours. Si, dans l’espace d’un délai raisonnable, le Fournisseur n'obtient pas des garanties suffisantes, il a le droit de se désister du Contrat, d’exiger des dommages-intérêts et de reprendre le cas échéant la marchandise fournie dans le cadre du Contrat aux frais du Client. 8. TAXES 8.1. Sauf indication contraire dans la réglementation des pays de l'Union européenne, où le Contrat prévoit la livraison de matériel dans l'Union européenne, la livraison du matériel sera exonérée de TVA à condition que le Client fournisse au Fournisseur en même temps que la commande son numéro de TVA ou celui de l'utilisateur final si ce dernier est résident de l'Union européenne. 8.2. Dans ce cas, le Client ou l'utilisateur final est responsable du paiement de la TVA applicable conformément aux règles fiscales applicables dans son propre pays. Si le numéro de TVA n'est pas joint au Contrat, le matériel sera soumis à la TVA dans le pays du Client, calculée au taux en vigueur à la date de facturation. Tout redressement fiscal, pénalité ou intérêts de retard qui pourraient devenir dus du fait de l'utilisation dudit numéro de TVA par le Fournisseur sera remboursé par le Client au Fournisseur dans un délai de 30 (trente) jours à compter de la présentation d'une preuve de paiement de celui-ci. 8.3. Concernant la France, les prix indiqués sont hors TVA. Celle-ci est appliquée à la facturation conformément à la législation en vigueur. 9. RESERVE DE PROPRIETE La livraison reste la propriété du Fournisseur jusqu’au règlement intégral de l’Equipement. Le Client a l’obligation de participer aux mesures visant la protection de la propriété. En particulier, il s’oblige à identifier précisément la marchandise livrée et non payée dans ses entrepôts, de façon à en permettre, le cas échéant, une revendication efficace. Il habilite à ses frais le Fournisseur à procéder à tout contrôle de cette identification dans les locaux du Client. Le Client prend également à sa charge les frais d’’inscription ou de signalisation de la réserve de propriété dans les registres / livres publics conformément aux lois nationales applicables et les frais du Fournisseur à accomplir toutes les formalités nécessaires à cet effet. Jusqu’à la levée de la réserve de propriété, le Client s’engage à assurer et entretenir la marchandise livrée. 10. FORCE MAJEURE 10.1. Le Fournisseur ne sera en aucun cas responsable du non-respect de ses obligations du fait d’un cas de Force Majeure. La Force Majeure sera définie comme tout événement qui empêche l’exécution totale ou partielle du Contrat et qui ne peut être surmonté malgré un effort raisonnable de la part du Fournisseur ou de ses agents. 10.2. La Force Majeure comprend, mais sans s’y limiter, les événements suivants : conflits de travail ou grèves, pénurie de travailleurs qualifiés ou de matières premières, incidents majeurs affectant les agents du Fournisseur, incendies, explosions, mobilisations, action ou manquement à acte des services publics ou des autorités gouvernementales, actes de guerre, sabotage, embargos, insurrection, émeutes, rupture de la paix, problèmes majeurs de fabrication tels que les accidents d’outils ou panne d’entreprise, ou livraisons tardives ou avec défauts des matières premières, produits semi-finis ou finis, la mise au rebut de pièces essentielles, des mesures administratives ou manquements, des phénomènes naturels, des interruptions ou retards de transport, épidémies. 10.3. Si l’événement de Force Majeure se poursuit pendant plus de 3 (trois) mois et que le Client et le Fournisseur ne se sont pas mis d’accord sur les modalités de continuation du Contrat, le Fournisseur aura le droit de résilier le Contrat dans un délai de 30 (trente) jours après notification écrite au Client, auquel cas la disposition de la clause de RÉSILIATION (14) s’applique. 11. DELAI DE LIVRAISON 11.1. Le délai de livraison débute à partir de la date d’Entrée en vigueur. 11.2. Sauf autre accord, la livraison intervenant dans les locaux du Fournisseur, le délai de livraison est considéré comme respecté lorsque la marchandise est prête à être livrée voire, par dérogation, réceptionnée conformément à ce qui a été convenu. 11.3. Le délai de livraison est prolongé de manière appropriée : - lorsque les points 4 et 5 spécifiés chapitre 5 (Exécution du Contrat) parviennent avec retard au Fournisseur - lorsque les spécifications nécessaires à la réalisation du Contrat sont modifiées plus tard que la date d’Entrée en vigueur par le Client - lors d’un cas de Force Majeure (chapitre 10) - si une inspection externe, mandatée par le Client par écrit lors de sa commande, retarde le délai initialement prévu. 11.4. Si de tels événements non maîtrisables empêchent l’exécution des livraisons et prestations dans les délais convenus, le Client n’a droit à aucun dédommagement. 11.5. Si une date précise est convenue à la place d’un délai de livraison, celle-ci équivaut au dernier jour du délai de livraison. Les points précédents de ce chapitre s’appliquent de manière analogue.
AG48: 12. DELAY PENALTIES If the Supplier does not comply with the schedule due to its own fault and if a summons to deliver has been issued by the Customer, the Supplier shall, at the Customer's request and within 15 (fifteen) days from said request, pay delay compensation calculated on the basis of the Agreement price (excluding tax) of the delayed Work at a rate of 0.5% per week up to a maximum of 5% of the delayed Work. The compensation indicated above shall constitute the limit of the Supplier's liability for delay and, as such, shall be considered as full discharge. No delay compensation payment shall be imposed on the Supplier for delays due to circumstances attributable to the Customer, a case of Force Majeure, or when such delays have not resulted in loss for the Customer. Delay compensation is not applicable to the documentary part. 13. CONFIDENTIALITY, OWNERSHIP 13.1. The indications of weights, measures, performance, etc. appearing in catalogues, brochures, and offers etc. are reference values entailing no commitment. 13.2. The Supplier shall retain ownership of its studies, plans, models, data, and test results as well as any document issued and provided to the Customer, or of which the Customer may have cognisance during Agreement execution. The Customer may only use this information and documents for Agreement execution. These documents and information shall be treated confidentially and shall not be distributed, published, or generally disclosed to third parties without the Supplier’s express prior written authorisation, to which they shall be returned immediately upon request from the latter in the event of Agreement termination. They shall also not be used for the manufacture of machinery, Equipment, or parts thereof. 13.3. Provided that the Supplier has been paid the full amount contractually due, the Supplier shall grant the Customer a free and non-exclusive right to use the aforementioned documents exclusively for the upkeep and maintenance of the Equipment subject to its work. 14. TERMINATION 14.1. Except in cases of Force Majeure, each party may terminate the Agreement at any time in the event that the other party does not fulfil a substantial obligation imposed on it under the Agreement and does not take satisfactory measures to remedy this within 20 (twenty) days of receipt, by the defaulting party, of a written notice to this effect sent by recorded delivery with advice of receipt or of any equivalent notification from which emerges a sufficient warning. 14.2. If the Customer cancels an order, the Supplier shall be entitled to remuneration for deliveries made and Services already provided, or, if no delivery has yet been made, to the reimbursement of sums incurred by the Supplier with subcontractors. The remuneration and reimbursements mentioned above shall be increased by a withdrawal penalty equivalent to 10% of the order’s value. 14.3. Termination of the Agreement in whole or in part, for any reason, shall not affect or prejudice the COMMERCIAL GUARANTEE (19), CONFIDENTIALITY, OWNERSHIP (13), and LAW AND ARBITRATION (22) provisions in this agreement. 15. PACKAGING, DELIVERY, STORAGE 15.1 The place of performance of the Works for the Customer and for the Supplier is one of the Supplier's premises, at the Supplier's choice, even if the delivery has taken place carriage paid, CIF, FOB, or under similar conditions. 15.2. Packaging is provided by the Supplier but in no case shall it be taken back. 15.3. For EXW deliveries, transport and insurance costs shall be borne by the Customer in accordance with the provisions of the designated Incoterm. 15.4. Claims for damage, loss etc. arising from transport shall be reported upon receipt of delivery and certified by the last carrier. 15.5. Whatever the Equipment’s point of delivery and the means of transport, within a period of 15 (fifteen) days from the Supplier’s notification of availability for delivery, the Supplier shall be authorised, on behalf of the Customer, to store the Equipment at the Customer's expense. The Supplier shall be deemed to have delivered this Equipment to the Customer on entry into storage and shall be entitled to payment upon presentation of the warehouse receipt in place of any bill of lading or similar document otherwise required under the Agreement. The risk shall be transferred to the Customer on entry into storage, but title shall only be transferred in accordance with the RETENTION OF TITLE provision. 15.6. Similarly, if shipment is delayed by the Customer, the Supplier may agree, upon written request from the Customer and at the Customer's sole expense and risk, to store the Equipment. The Supplier shall invoice a sum equal to 0.6% of the price excluding tax of the Equipment to be stored per week of postponement with a waiting period of 15 (fifteen) calendar days. The storage period shall in no case exceed 6 (six) months from the Customer's request. These provisions in no way modify the Customer's payment obligations. 16. TRANSFER OF RISK 16.1. Risk transfers pass to the Customer according to the Incoterm determined by the Agreement. 16.2. If shipment is delayed or made impossible for reasons not attributable to the Supplier, the risk shall be transferred to the Customer at the initially scheduled EXW delivery time. From that moment, the goods shall be stored and insured at the Customer’s expense and risk. 17. INSPECTION AND ACCEPTANCE 17.1. Before shipping, each installation shall be subject to the usual inspections. If the Customer wishes to be present during the inspection of its delivery, it shall stipulate this in writing when placing the order. 17.2. Regarding spare parts orders, unless otherwise specified in the order, only electronics shall be subject to the usual inspections. 17.3. The Customer may accept the delivery itself or have it accepted by a person appointed for this purpose. In accordance with the provisions of Article 11.2 above, and unless otherwise provided for in the same article, acceptance shall take place at the manufacturer's plant and shall include a functional test without product. In all cases, the costs shall be fully borne by the Customer. 17.4. The Customer is required to inspect the deliveries and Services within five (5) working days and to immediately communicate any possible defect in writing to the Supplier. Otherwise, deliveries and Services shall be deemed to have been accepted. 17.5. In addition, if the Customer did not choose the carrier, it shall preserve Supplier’s rights with this carrier by notifying the carrier, within three (3) days, not including bank holidays, which follow that of said acceptance, of any damage or loss, by reasoned letter sent by recorded delivery or by extra judicial act, in accordance with Article L133-3 of the French Commercial Code. 18. ASSEMBLY AND COMMISSIONING 18.1. The Customer shall have assembly carried out by suitably qualified personnel under the Supplier’s supervision. 18.2. Commissioning and inspection of assembly work shall be carried out by the Supplier’s personnel or personnel authorised by the Supplier. 18.3. The Services provided shall be the subject of an acceptance report immediately after their completion. 18.4. In the case of assembly and/or commissioning carried out by the Customer, outside the context indicated above, the latter shall not claim the benefit of contractual guarantees. | AH48: 12. INDEMNITES DE RETARD Si le Fournisseur ne respecte pas le calendrier en raison de sa propre faute et si une sommation à livrer a été délivrée par le Client, le Fournisseur doit, à la demande du Client et dans un délai de 15 (quinze) jours à compter de ladite sommation, payer des indemnités de retard calculées sur la base du prix du Contrat (hors taxes) des Travaux retardés à raison de 0,5% par semaine jusqu’à un maximum de 5% des Travaux retardés. L’indemnité indiquée ci-dessus constituera la limite de responsabilité du Fournisseur pour retard et sera à ce titre considérée comme forfaitaire et libératoire. Aucune indemnité de retard ne sera imposée au Fournisseur pour retards dus à des circonstances imputables au Client ou à un cas de force majeure, ou lorsque de tels retards n’ont pas entraîné de dommages pour le Client. Les indemnités de retard ne sont pas applicables à la partie documentaire. 13. CONFIDENTIALITE, PROPRIETE 13.1. Les indications de poids, de mesures, de prestations, etc. figurant dans les catalogues, prospectus et offres etc. sont des valeurs de référence sans engagement. 13.2. Le Fournisseur conserve la propriété de ses études, plans, modèles, données et résultats d’essais ainsi que tout document émis et communiqué au Client, ou dont le Client peut avoir eu connaissance en exécution du Contrat. Ces informations et documents ne peuvent être utilisés que par le Client exclusivement pour l’exécution du Contrat. Ces documents et informations seront traités de manière confidentielle et ne seront pas distribués, publiés ou généralement communiqués à des tiers sans autorisation expresse préalable et écrite du Fournisseur, à qui ils seront immédiatement retournés sur simple demande de celui-ci en cas de résiliation du Contrat. Ils ne doivent pas non plus être utilisés pour la fabrication de machines, équipements ou de parties de ceux-ci. 13.3. A condition que le Fournisseur ait été payé de l’intégralité du montant restant dû contractuellement, le Fournisseur accorde au Client un droit libre et non exclusif d’utiliser les documents susmentionnés exclusivement pour entretenir et assurer la maintenance de l’Equipement soumis à ses Travaux. 14. RESILIATION 14.1. Sauf en cas de Force Majeure, chaque partie a le droit de résilier le Contrat à tout moment dans le cas où l’autre Partie ne remplit pas une obligation substantielle qui lui est imposée par le Contrat et ne prend pas les mesures satisfaisantes pour y remédier dans les 20 (vingt) jours suivant la réception par la Partie défaillante d’un avis écrit à cet effet, par lettre recommandée avec demande d’avis de réception, ou toute notification équivalente de laquelle ressort une interpellation suffisante. 14.2. Si le Client résilie une commande, le Fournisseur a droit à la rémunération des livraisons et prestations déjà fournies, ou, si aucune livraison n’a encore été faite, au remboursement des sommes engagées par le Fournisseur auprès des sous-traitants. La rémunération et les remboursements cités ci-dessus, seront majorés d’une indemnité de dédit équivalant à 10% de la valeur de la commande. 14.3. La résiliation du Contrat en tout ou en partie, pour quelque raison que ce soit, n’affectera ni ne préjugera les dispositions des clauses de GARANTIE COMMERCIALE (19), de CONFIDENTIALITE, PROPRIETE (13) et de DROIT ET ARBITRAGE (22) des présentes. 15. EMBALLAGE, LIVRAISON, STOCKAGE 15.1 Le lieu d'exécution des Travaux pour le Client et pour le Fournisseur est un des locaux du Fournisseur, au choix du Fournisseur, et cela même si la livraison a eu lieu Franco, CIF, FOB ou à des conditions analogues. 15.2. La prestation d’emballage est assurée par le Fournisseur mais en aucun cas il n’est repris. 15.3. Lors de livraisons « EXW », les frais de transport et d’assurances sont à la charge du Client conformément aux dispositions de l’Incoterm désigné. 15.4. Les réclamations concernant des dommages, pertes etc. découlant du transport sont à signaler dès la réception de la livraison et à faire attester par le dernier transporteur. 15.5. Quels que soient le point de livraison et les moyens de transport de l’Equipement dans un délai de 15 (quinze) jours à compter de la notification par le Fournisseur de la disponibilité à la livraison, le Fournisseur sera autorisé, au nom du Client, à entreposer l’Equipement aux frais du Client. Le Fournisseur sera réputé avoir livré cet Equipement au Client lors de l’entreposage et aura droit au paiement sur présentation du récépissé d’entrepôt à la place de tout connaissement ou document similaire autrement requis par le Contrat. Le risque sera transféré au Client lors du stockage, mais le titre ne passera que conformément aux dispositions de la clause de RESERVE DE PROPPRIETE. 15.6. De même, si l’expédition est retardée du fait du Client, le Fournisseur peut accepter, sur demande écrite du Client et aux frais et risques exclusifs de ce dernier, de stocker le matériel. Le Fournisseur facturera une somme égale à 0,6% du prix hors taxe du matériel à stocker par semaine de report avec un délai de carence de 15 (quinze) jours calendaires. La durée de stockage ne pourra en aucun cas excéder 6 (six) mois à compter de la demande du Client. Ces dispositions ne modifient en rien les obligations de paiement du Client. 16. TRANSFERT DE RISQUES 16.1. Les transferts de risques passent au Client en fonction de l’Incoterm déterminé par le Contrat. 16.2. Si l’expédition est retardée ou rendue impossible pour des raisons non imputables au Fournisseur, le risque passe au Client au moment initialement prévu pour la livraison « EXW ». A partir de ce moment, la marchandise est stockée et assurée aux frais et aux risques du Client. 17. CONTROLE ET RECEPTION 17.1. Avant l’expédition, chaque installation est soumise à un contrôle usuel. Si le Client souhaite être présent lors du contrôle de sa livraison, il doit le stipuler par écrit lorsqu’il passe la commande. 17.2. Concernant les commandes de pièces de rechange, sauf spécification particulière dans la commande, seule l’électronique est soumise à un contrôle usuel. 17.3. Le Client peut réceptionner la livraison lui-même ou la faire réceptionner par une personne mandatée à cet effet. Conformément aux stipulations de l’article 11.2 ci-dessus, et sauf dérogation prévue au même article, la réception a lieu dans l’usine du fabricant et comprend un contrôle de fonctionnement sans produit. Les coûts sont dans tous les cas à la charge du Client. 17.4. Le Client a l’obligation de vérifier les livraisons et prestations dans un délai de cinq (5) jours ouvrés et de communiquer tout défaut éventuel immédiatement et par écrit au Fournisseur. A défaut, les livraisons et prestations sont réputées acceptées. 17.5. En outre, dans l’hypothèse où le Client n’aurait pas fait le choix du transporteur, il doit préserver les droits du Fournisseur auprès de ce transporteur, en notifiant au voiturier, dans les trois (3) jours, non compris les jours fériés, qui suivent celui de ladite réception, toute avarie ou perte, par lettre motivée envoyée sous forme recommandée ou acte extra judiciaire, conformément aux dispositions de l’article L133-3 du code de Commerce. 18. MONTAGE ET MISE EN SERVICE 18.1. Le Client est tenu d’effectuer le montage par du personnel dûment qualifié, sous la supervision du Fournisseur. 18.2. La mise en service et le contrôle des travaux de montage doivent être effectués par du personnel du Fournisseur ou autorisé par le Fournisseur. 18.3. Les Services réalisés font l’objet d’un procès-verbal d’acceptation immédiatement après leur achèvement. 18.4. Dans le cas d’un montage et/ou d’une mise en service effectués par le Client, en dehors du contexte indiqué ci-dessus, celui-ci ne pourra pas prétendre à bénéficier des garanties contractuelles.
AG49: 19. COMMERCIAL GUARANTEE 19.1. Unless the Customer has the same specialty as the Supplier, this commercial guarantee does not preclude the legal guarantee against hidden defects provided for in Articles 1641 et seq. of the French Civil Code. During the commercial guarantee period, the Supplier shall promptly and upon written notice from the Customer repair or replace, at its option, all parts that the Customer proves to be defective or unusable. All parts replaced shall become the Supplier's property. 19.2. The Supplier shall only bear the costs resulting from the repair or replacement of defective parts in its Workshops. The Supplier shall, in no case, be liable for expenses other than those chargeable under this guarantee provision. If the defective parts cannot be repaired or replaced in its Workshops for reasons which are not attributable to it, all additional costs resulting therefrom, in particular travel costs, shall be borne by the Customer as well as all expenses incurred by the Customer or a third party during the Equipment’s immobilisation due to work in accordance with the guarantee. 19.3. Any other claim from the Customer based on a defective delivery, in particular damages and Agreement termination, shall be excluded under this commercial guarantee. 19.4. The guarantee period is twelve months. It shall take effect when the Equipment is ready to be shipped or upon completion of commissioning if the Supplier also provides this service, in accordance with Article 11.2 above. If shipment or commissioning is delayed for reasons that are not attributable to the Supplier, the commercial guarantee shall end no later than eighteen months after the time the Equipment was ready for shipment. 19.5. The replaced parts shall benefit from the same commercial guarantee period as the main object. However, this commercial guarantee shall cease no later than eighteen months after the start of the commercial guarantee for the main object or, if the shipment or commissioning of the main object has been delayed for reasons which are not attributable to the Supplier, no later than twenty-four months from the time the main object was ready for shipment. 19.6. The following cases are excluded from the commercial guarantee: - damage due to natural wear and tear, insufficient maintenance, incorrect handling, excessive use, the use of operating means according to factory specifications, the use of contraindicated operation, chemical or electrolytic influences, power surges or lightning strikes, corrosion, erosion, cavitation or similar phenomena, civil engineering and faulty assembly work that has not been carried out by the Supplier, as well as for other causes not attributable to it; - defects attributable to the design, material, or manufacturing or assembly techniques imposed by the Customer and for which the Supplier submitted written comments to the Customer; - non-compliance with the Supplier's instructions; - maintenance of the Equipment, specified in the Agreement, by the Customer or by third parties, under conditions not previously approved by the Supplier in writing; - routine maintenance or replacement of parts required by normal wear and tear of the Equipment or by exposure of the Equipment to the elements; - defects or damage caused by error or negligence of the Equipment user, a case of Force Majeure, or unforeseeable circumstances. The components and parts of the Equipment comply with standards, design characteristics, and quality measurements that correspond to specific requirements and are appropriate for the use for which the Equipment is intended. Therefore, the Supplier's guarantee obligation shall automatically expire if all or part of the components or parts of the Equipment are replaced by components or parts not supplied by the Supplier. 19.7. The commercial guarantee shall cease if the Customer (or third parties) makes changes or repairs to the delivery without the Supplier’s written consent or if the Customer does not immediately take appropriate measures to prevent the damage from worsening and enable the Supplier to remedy the defect. 19.8. If the Customer does not assert in writing, before the expiry of the commercial guarantee period, specific claims arising from the latter, the Supplier shall be released from its obligations under said guarantee. 19.9. The Supplier's guarantee under this provision is in place and excludes any other guarantee or commitment of any kind. 19.10. For deliveries from another manufacturer, the Supplier shall only assume the commercial guarantee as part of the subcontractor's obligations. 20. SUSPENSION 20.1. If Agreement execution is suspended due to a case of Force Majeure or as a result of the Customer, the Supplier’s Agreement execution period shall be extended. Any subsequent costs incurred by the Supplier shall be reimbursed by the Customer. 20.2. If Agreement execution is suspended for any reason and continues for more than 3 (three) months, the Supplier or Customer may, at any time during this uninterrupted suspension, terminate the Agreement with written notice of more than 30 (thirty) days. 21. LIABILITY 21.1. The Supplier undertakes to deliver Equipment in accordance with the Agreement. 21.2. Once the Customer has fulfilled its obligation of inspection in accordance with Article 17.4 of these General Terms and Conditions of Sale, the Supplier shall fulfil its obligations under Article 1641 et seq. of the French Civil Code and the commercial guarantee. 21.3. Under no circumstances shall the Supplier's liability under the Agreement exceed the amount excluding tax of the sums collected under the Agreement. 21.4. Under no circumstances shall the Supplier be held liable for any immaterial damage, such as loss of profit, loss of production, operation, etc. suffered by the Customer. 21.5. The Customer shall waive all recourse against the Supplier to obtain compensation for the financial consequences of any damage caused to third parties and shall pay compensation to the Supplier for all claims by third parties directly or indirectly related to Agreement execution. The conditions mentioned above are understood to be exclusive of hidden defects. 22. LAW AND ARBITRATION 22.1. The Agreement is governed and interpreted in accordance with French law. 22.2. The language of proceedings shall be French. 22.3. In the event of a dispute between the Customer and the Supplier on a technical matter, the parties agree to have recourse to the ICC International Centre for Expertise in Paris, in accordance with the ICC’s rules of Technical Expertise. 22.4. If, at any time, any question, dispute, or difference arises between the Customer and the Supplier, the parties shall attempt to reasonably settle the matter. If any dispute related to the Agreement (including any dispute as to its validity, meaning, effect, or termination) cannot be settled by the Customer and the Supplier within 6 (six) weeks of initial notification of the case, the Customer and the Supplier agree that it shall be finally settled by arbitration in accordance with the Rules of Arbitration of the ICC. | AH49: 19. GARANTIE COMMERCIALE 19.1. Sauf si le Client est de même spécialité que le Fournisseur, la présente garantie commerciale ne fait pas obstacle à la garantie légale des vices cachés prévue par les articles 1641 et suivants du Code Civil. Pendant la période de garantie commerciale, le Fournisseur s’engage à réparer ou à remplacer à son choix aussi rapidement que possible et sur sommation écrite du Client, toutes les pièces que le Client prouvera être défectueuses ou inutilisables. Les pièces remplacées deviennent la propriété du Fournisseur. 19.2. Le Fournisseur ne supporte que les frais résultant de la réparation ou du remplacement des pièces défectueuses dans ses ateliers. Le Fournisseur ne peut en aucun cas être tenu de supporter des dépenses autres que celles imputables en vertu de cette clause de garantie. Si les pièces défectueuses ne peuvent pas être réparées ou remplacées dans ses ateliers pour des raisons qui ne lui sont pas imputables, tous les frais supplémentaires qui en résultent, en particulier les frais de déplacement, sont à la charge du Client. De même que les dépenses encourues par le Client ou par une tierce personne durant l’immobilisation de l’Equipement en raison de l’exécution des travaux conformément à la garantie. 19.3. Est exclue, dans le cadre de la présente garantie commerciale, toute autre prétention du Client fondée sur une livraison défectueuse, notamment des dommages-intérêts et la résiliation du Contrat. 19.4. La durée de la garantie commerciale est de 12 mois. Elle prend effet lorsque le matériel est prêt à être expédié ou à l’achèvement de la mise en service si le Fournisseur assure également celle-ci, conformément aux stipulations de l’article 11.2 ci-dessus Si l’expédition ou la mise en service sont retardées pour des raisons qui ne sont pas imputables au Fournisseur, la garantie commerciale prend fin au plus tard 18 mois à partir du moment où le matériel a été prêt à être expédié. 19.5. Les pièces remplacées bénéficient du même délai de garantie commerciale que l’objet principal. Cette garantie commerciale cesse cependant au plus tard 18 mois après le début de la garantie commerciale pour l’objet principal ou, si l’expédition ou la mise en service de l’objet principal ont été retardées pour des raisons qui ne sont pas imputables au Fournisseur, au plus tard 24 mois à partir du moment où l’objet principal a été prêt à être expédié. 19.6. Sont exclus de la garantie commerciale les cas suivants : - dommages dus à l’usure naturelle, à l’insuffisance d’entretien, à une fausse manipulation, à un usage excessif, à l’emploi de moyens d’exploitation des prescriptions d’usine, à l’emploi de moyens d’exploitation contre-indiqués, à des influences chimiques ou électrolytiques, à des surtensions ou à des coups de foudre, à des corrosions, érosions, cavitations ou des phénomènes semblables, à des travaux de génie civil et de montage défectueux qui n’ont pas été exécutés par le Fournisseur, ainsi qu’à d’autres causes qui ne lui sont pas imputables. - défauts imputables à la conception, au matériau, aux techniques de fabrication ou de montage imposés par le Client et pour lesquelles le Fournisseur a donné des commentaires écrits au Client. - non-respect des instructions du Fournisseur - entretien de l’équipement, spécifié dans le Contrat, par le Client ou par des tiers, dans des conditions non préalablement approuvées par écrit par le Fournisseur - entretien courant ou remplacement de pièces requis par l'usure normale de l'Equipement ou par l'exposition de l'Equipement aux intempéries - défauts ou dégradation causés par une erreur ou une négligence de l'utilisateur de l'Equipement, ou par un événement de Force Majeure ou des circonstances imprévisibles Les composants et les pièces de l'Equipement sont conformes aux normes, aux caractéristiques de conception et aux mesures de qualité qui correspondent à des exigences spécifiques et sont appropriés pour l'utilisation à laquelle l'Equipement est destiné. Par conséquent, l'obligation de garantie du Fournisseur expirera automatiquement si tout ou une partie des composants ou pièces de l'Equipement sont remplacés par des composants ou des pièces non fournis par le Fournisseur. 19.7. La garantie commerciale cesse si le Client (ou des tiers) effectue des modifications ou des réparations sur la livraison sans l’accord écrit du Fournisseur, ou si le Client ne prend pas immédiatement les mesures appropriées pour éviter que le dommage ne s’aggrave et pour permettre au Fournisseur de remédier au défaut. 19.8. Si le Client ne fait pas valoir par écrit, jusqu’à l’expiration du délai de garantie commerciale, des prétentions déterminées découlant de cette dernière, le Fournisseur est délié de ses obligations du chef de ladite garantie. 19.9. La garantie du Fournisseur en vertu de cette clause est en place et exclut toute autre garantie ou engagement de toute sorte. 19.10. Pour des livraisons provenant d’un autre constructeur, le Fournisseur n’assume la garantie commerciale que dans le cadre des obligations du sous-traitant. 20. SUSPENSION 20.1. Si l’exécution du Contrat est suspendue en raison d’un cas de Force Majeure ou du fait du Client, la période d’exécution du Contrat par le Fournisseur est donc prolongée. Tous les frais ultérieurs rencontrés par le Fournisseur seront remboursés par le Client. 20.2. Si l’exécution du Contrat est suspendue pour une raison quelconque et que cette suspension se poursuit pendant plus de 3 (trois) mois, le Fournisseur ou le Client aura le droit à tout moment pendant cette suspension ininterrompue de résilier le Contrat avec un préavis écrit de plus de 30 (trente) jours. 21. RESPONSABILITE 21.1. Le Fournisseur s’engage à exécuter la livraison de l’Equipement conformément au Contrat. 21.2. Une fois le Client ayant rempli son obligation de vérification conformément à l’article 17.4 des présentes CGV, le Fournisseur s’engage à remplir ses obligations relatives à la l’article 1641 et suivants du Code Civil et à la garantie commerciale. 21.3. En aucun cas la responsabilité du Fournisseur au titre du Contrat ne pourra excéder le montant HT des sommes perçues au titre du Contrat. 21.4. En aucun cas le Fournisseur ne peut être tenu responsable pour tous préjudices immatériels tels que pertes de profit, pertes de production, d’exploitation etc… subis par le Client. 21.5. Le Client renonce à tout recours contre le Fournisseur pour obtenir réparation des conséquences pécuniaires de tous préjudices causés à des tiers et indemnisera le Fournisseur de toutes réclamations de tiers, liés directement ou indirectement à l’exécution du Contrat. Les conditions évoquées ci-dessus s’entendent hors vice caché. 22. DROIT ET ARBITRAGE 22.1. Le Contrat est régi et interprété conformément au droit français. 22.2. La langue de procédure est le français. 22.3. En cas de différend entre le Client et le Fournisseur sur une question technique, le Client et le Fournisseur conviennent de recourir au Centre International d’Expertise Technique de la Chambre de Commerce Internationale à Paris, conformément aux règles d’Expertise Technique de la CCI. 22.4. Si à tout moment une question, un différend ou une différence survient entre le Client et le Fournisseur, ils tenteront de parvenir à un règlement raisonnable de la question. Si un différend survenant en relation avec le Contrat (y compris tout différend quant à sa validité, sa signification, son effet ou sa résiliation) ne devait pas être réglé par le Client et le Fournisseur dans les 6 (six) semaines suivant la notification initiale de l’affaire, le Client et le Fournisseur conviennent qu’il sera définitivement réglé par arbitrage conformément au Règlement de conciliation et d’arbitrage de la Chambre de Commerce Internationale à Paris.
AH50: semaines sur la base d'une mise à disposition EXW HASLER à notre usine
AG51: - Prices for erection supervision and commissioning exclude travel and accommodation costs. After intervention, an invoice will be issued for the additional days according to the attached price, as well as accommodation and travel costs with supporting documents. - The warranty period is only valid if erection supervision and commissioning is provided by Hasler. | AH51: - Les prix de supervision du montage et de mise en route s’entendent hors frais de voyage et d’hébergement. Après intervention une facture sera établie pour les jours supplémentaires selon tarif joint, ainsi que les frais d’hébergement et de voyage sur justificatifs. - La période de garantie n’est valable que sous réserve d’une supervision de montage et de mise en route assurée par Hasler.
AG52: HASLER FRANCE A HASLER GROUP company Dear Customer, The name of the company that you knew as HASLER Group SAS has changed to HASLER France SAS. This is only a change of name. Our legal registration number remains 514 743 038 - RCS Vienne France. Please make sure that all of your documents well refer to HASLER FRANCE. Address: 496 Rue Louis Breguet City: 38780 Pont-Évêque Country: France | AH52: HASLER FRANCE Une société de HASLER GROUP Cher client, La société que vous connaissiez sous le nom de HASLER Group SAS change et devient désormais HASLER France SAS. Ceci est uniquement un changement de nom. Notre numéro d'enregistrement reste 514 743 038 - RCS Vienne France. Merci de vérifier que l'ensemble de vos documents font désormais référence à HASLER FRANCE. Adresse : 496 Rue Louis Breguet Ville : 38780 Pont-Évêque Pays : France
AF53: PAYMENT TERM | AJ53: choix selon langue choisie
AG54: Advance payment at order upon receipt of invoice | AH54: A la commande contre facture d’acompte | AJ54: =IF(Configuration!$B$2="Français",AH54,AG54) -> Advance payment at order upon receipt of invoice
AG55: Advance payment at order upon receipt of invoice and advance payment guarantee of the same amount | AH55: A la commande contre facture d’acompte et garantie de remboursement d’acompte du même montant | AJ55: =IF(Configuration!$B$2="Français",AH55,AG55) -> Advance payment at order upon receipt of invoice and advance payment guarantee of the same amount
AG56: At approval of General Arrangement Drawings upon receipt of invoice | AH56: A la validation des plans d’ensemble | AJ56: =IF(Configuration!$B$2="Français",AH56,AG56) -> At approval of General Arrangement Drawings upon receipt of invoice
AG57: At order of main components upon receipt of invoice and evidencing unpriced Purchase Orders | AH57: A l’approvisionnement des composants principaux sous présentation de justificatifs | AJ57: =IF(Configuration!$B$2="Français",AH57,AG57) -> At order of main components upon receipt of invoice and evidencing unpriced Purchase Orders
AG58: At readiness for shipment upon receipt of invoice and evidencing goods ready (coupled with immediate payment) | AH58: A la mise à disposition du matériel (liste de colisage à fournir) | AJ58: =IF(Configuration!$B$2="Français",AH58,AG58) -> At readiness for shipment upon receipt of invoice and evidencing goods ready (coupled with immediate payment)
AG59: At shipment upon receipt of invoice and shipping documents | AH59: A l’expédition | AJ59: =IF(Configuration!$B$2="Français",AH59,AG59) -> At shipment upon receipt of invoice and shipping documents
AG60: At shipment, upon receipt of invoice, shipping documents and Performance bond of 5% of Equipment value | AH60: A l’expédition contre liste de colisage et garantie de bonne execution de 5% du montant total du contrat | AJ60: =IF(Configuration!$B$2="Français",AH60,AG60) -> At shipment, upon receipt of invoice, shipping documents and Performance bond of 5% of Equipment value
AG61: At shipment, upon receipt of invoice, shipping documents and Performance bond of 10% of Equipment value | AH61: A l’expédition contre liste de colisage et garantie de bonne execution de 10% du montant total du contrat | AJ61: =IF(Configuration!$B$2="Français",AH61,AG61) -> At shipment, upon receipt of invoice, shipping documents and Performance bond of 10% of Equipment value
AG62: At commissioning supervised by HASLER, upon receipt of invoice to be issued at latest 12 months after delivery date | AH62: A la mise en service au plus tard 12 mois après la date de livraison | AJ62: =IF(Configuration!$B$2="Français",AH62,AG62) -> At commissioning supervised by HASLER, upon receipt of invoice to be issued at latest 12 months after delivery date
AG63: At commissioning supervised by HASLER, upon receipt of invoice to be issued at latest 12 months after delivery date and Warranty bond of 5% of Equipment value | AH63: A la mise en service au plus tard 12 mois après la date de livraison et fourniture d’une garantie pour défauts d’un montant de 5% du montant total du contrat | AJ63: =IF(Configuration!$B$2="Français",AH63,AG63) -> At commissioning supervised by HASLER, upon receipt of invoice to be issued at latest 12 months after delivery date and Warranty bond of 5% of Equipment value
AG64: At commissioning supervised by HASLER, upon receipt of invoice to be issued at latest 12 months after delivery date and Warranty bond of 10% of Equipment value value | AH64: A la mise en service au plus tard 12 mois après la date de livraison et fourniture d’une garantie pour défauts d’un montant de 10% du montant total du contrat | AJ64: =IF(Configuration!$B$2="Français",AH64,AG64) -> At commissioning supervised by HASLER, upon receipt of invoice to be issued at latest 12 months after delivery date and Warranty bond of 10% of Equipment value value
AG65: At Factory Acceptance Test upon receipt of invoice | AH65: A la réception sur le site du fournisseur | AJ65: =IF(Configuration!$B$2="Français",AH65,AG65) -> At Factory Acceptance Test upon receipt of invoice
AG66: At Site Acceptance Test upon receipt of invoice | AH66: Après tests sur le site du client | AJ66: =IF(Configuration!$B$2="Français",AH66,AG66) -> At Site Acceptance Test upon receipt of invoice
AG67: At cold commissioning upon receipt of invoice | AH67: A la mise en service à vide | AJ67: =IF(Configuration!$B$2="Français",AH67,AG67) -> At cold commissioning upon receipt of invoice
AG68: At hot commissioning upon receipt of invoice | AH68: A la mise en service avec matière | AJ68: =IF(Configuration!$B$2="Français",AH68,AG68) -> At hot commissioning upon receipt of invoice
AG69: At on-site erection upon receipt of invoice | AH69: Au montage | AJ69: =IF(Configuration!$B$2="Français",AH69,AG69) -> At on-site erection upon receipt of invoice
AG70: At commissioning supervised by HASLER, upon receipt of invoice (for services payable 100% once job done) | AH70: A la fin de la prestation de mise en service | AJ70: =IF(Configuration!$B$2="Français",AH70,AG70) -> At commissioning supervised by HASLER, upon receipt of invoice (for services payable 100% once job done)
AF72: PAYMENT MODE
AG73: By bank transfer | AH73: par Virement bancaire | AJ73: =IF(Configuration!$B$2="Français",AH73,AG73) -> By bank transfer
AG74: By irrevocable and confirmed letter of credit, remitted 30 days max after Purchase Order | AH74: par lettre de crédit irrévocable et confirmée, transmise au fournisseur au maximum 30 jours après la date de création de la commande, payable à vue | AJ74: =IF(Configuration!$B$2="Français",AH74,AG74) -> By irrevocable and confirmed letter of credit, remitted 30 days max after Purchase Order
AG75: Cash Against Documents (CAD) through bank | AH75: par remise documentaire, payable à vue | AJ75: =IF(Configuration!$B$2="Français",AH75,AG75) -> Cash Against Documents (CAD) through bank
AF77: PAYMENT CREDIT TIME
AG78: Immediate | AH78: jour de facture | AJ78: =IF(Configuration!$B$2="Français",AH78,AG78) -> Immediate
AG79: within 15 days net | AH79: à 15 jours net | AJ79: =IF(Configuration!$B$2="Français",AH79,AG79) -> within 15 days net
AG80: within 30 days net | AH80: à 30 jours net | AJ80: =IF(Configuration!$B$2="Français",AH80,AG80) -> within 30 days net
AG81: within 45 days net | AH81: à 45 jours net | AJ81: =IF(Configuration!$B$2="Français",AH81,AG81) -> within 45 days net
AG82: payable at sight against shipping documents (for LC only) | AH82: payable à vue contre remise documentaire | AJ82: =IF(Configuration!$B$2="Français",AH82,AG82) -> payable at sight against shipping documents (for LC only)
AG85: The name of the company you knew as HASLER Group SAS changed to HASLER France SAS. This is only a change of name. Our legal registration number remains 514 743 038 - RCS Vienne France. Mind that all your documents refer to HASLER FRANCE. | AH85: La société que vous connaissiez sous le nom de HASLER Group SAS change et devient désormais HASLER France SAS. Ceci est uniquement un changement de nom. Notre numéro d'enregistrement reste 514 743 038 - RCS Vienne France. Merci de vérifier que l'ensemble de vos documents font désormais référence à HASLER FRANCE.

Sheet Main cover
C15: INSERT TEMPLATE
J32: =IF(Configuration!B2="Français",VLOOKUP('Simplified P&L'!G2,Configuration!AF3:AH6,3),VLOOKUP('Simplified P&L'!G2,Configuration!AF3:AH6,2)) -> Filtration system
J33: =CONCATENATE(IF(Configuration!B4="Yes",CONCATENATE("[","Budget","] "),""),IF(Configuration!B2="Français",Configuration!AH7,Configuration!AG7)," N° ",'Simplified P&L'!B2,"-",'Simplified P&L'!B3,"_COMM") -> Commercial offer N° 731693-2_COMM
J34: Project : DCP Filter
J35: =IF(Configuration!B6="","",IF(Configuration!B2="Français",Configuration!AH8,Configuration!AG8)&" : "&Configuration!B6) -> 
J37: ='Simplified P&L'!B6 -> Eurochem
I38: =TODAY() -> 2025-10-17

Sheet cover_L
B6: =IF(Configuration!B2="Français",Configuration!AH10,Configuration!AG10) -> Table of Contents
C8: =IF(Configuration!B2="Français",Configuration!AH11,Configuration!AG11) -> Cover Letter
C9: =IF(Configuration!B2="Français",Configuration!AH12,Configuration!AG12) -> Price List
C10: =IF(Configuration!B2="Français",Configuration!AH13,Configuration!AG13) -> Special Terms of Sales
D11: =IF(Configuration!B2="Français",Configuration!AH14,Configuration!AG14) -> Delivery Time
D12: INCOTERM
D13: =IF(Configuration!B2="Français",Configuration!AH15,Configuration!AG15) -> Terms of Payment
D14: =IF(Configuration!B2="Français",Configuration!AH16,Configuration!AG16) -> Warranty
D15: =IF(Configuration!B2="Français",Configuration!AH17,Configuration!AG17) -> Validity
C16: =IF(Configuration!B2="Français",Configuration!AH18,Configuration!AG18) -> Contacts
D17: =IF(Configuration!B2="Français",Configuration!AH19,Configuration!AG19) -> Customer Contact List
D18: =IF(Configuration!B2="Français",Configuration!AH20,Configuration!AG20) -> HASLER France Contact List
C19: =IF(Configuration!B2="Français",Configuration!AH21,Configuration!AG21) -> General Terms & Conditions of Sale
C20: =IF(W19="","",IF(Configuration!B2="Français",Configuration!AH22,Configuration!AG22)) -> 
C24: =CONCATENATE(IF(Configuration!B2="Français",Configuration!AH23,Configuration!AG23),'Simplified P&L'!B2,"-",'Simplified P&L'!B4,"_TECH") -> This commercial offer is linked to our technical offer ref n° 731693-4_TECH
C26: =_xlfn.SINGLE(IF(Configuration!B4="Yes",IF(Configuration!B2="Français",Configuration!AH24,Configuration!AG24),"")) -> 
C38: =C8 -> Cover Letter
C40: =CONCATENATE(IF(Configuration!B2="Français",Configuration!AH25,Configuration!AG25),'Simplified P&L'!B2,"-",'Simplified P&L'!B3) -> Our Reference: 731693-2
C69: =VLOOKUP('Simplified P&L'!J3,Configuration!S3:V13,3,FALSE) -> Baptiste Joly | Y69: Yong LI
C70: =VLOOKUP('Simplified P&L'!J3,Configuration!S3:V13,2,FALSE) -> Filtration Product Manager | Y70: =VLOOKUP('Simplified P&L'!J2,Configuration!W3:Z19,2,FALSE) -> Area Sales Manager

Sheet PRICE_LIST (hidden)
B3: =CONCATENATE(IF(Configuration!B2="Français",Configuration!AH12,Configuration!AG12)," - ",IF(Configuration!B2="Français",Configuration!AH26,Configuration!AG26)," n° ",'Simplified P&L'!B2,"-",'Simplified P&L'!B3) -> Price List - Offer n° 731693-2
B5: =IF(Configuration!B2="Français","Offre de prix Equipement","Equipment Price List") -> Equipment Price List | N5: OPTIONS
B6: Item | C6: Reference | D6: =IF(Configuration!B2="Français","Qté","Qty") -> Qty | F6: =IF(Configuration!B2="Français","Prix de vente unitaire (€ HT)","Unit Sale Price (€ ex VAT)") -> Unit Sale Price (€ ex VAT) | J6: =IF(Configuration!B2="Français","Prix de vente total (€ HT)","Total Sale Price (€ ex VAT)") -> Total Sale Price (€ ex VAT) | N6: =J6 -> Total Sale Price (€ ex VAT)
B7: GRAVIT LIMESTONE | C7: GRAVIT | D7: 1 | F7: =ROUND(IF(B7=0,0,IF('Simplified P&L'!$B$3=0,'Budget Price 1st quotation'!K3+('Budget Price 1st quotation'!L3/'Budget Price 1st quotation'!G3),'Budget Price Final order'!K3+('Budget Price Final order'!L3/'Budget Price Final order'!G3))),0) -> 622697 | J7: =F7*D7 -> 622697
B8: Rod closing gate | C8: Rod closing Gate | D8: 1 | F8: =ROUND(IF(B8=0,0,IF('Simplified P&L'!$B$3=0,'Budget Price 1st quotation'!K5+('Budget Price 1st quotation'!L5/'Budget Price 1st quotation'!G5),'Budget Price Final order'!K5+('Budget Price Final order'!L5/'Budget Price Final order'!G5))),0) -> 42210 | J8: =F8*D8 -> 42210
B9: CONTROL CABINET LIMESTONE | C9: Control | D9: 1 | F9: =ROUND(IF(B9=0,0,IF('Simplified P&L'!$B$3=0,'Budget Price 1st quotation'!K6+('Budget Price 1st quotation'!L6/'Budget Price 1st quotation'!G6),'Budget Price Final order'!K6+('Budget Price Final order'!L6/'Budget Price Final order'!G6))),0) -> 42210 | J9: =F9*D9 -> 42210
B11: GRAVIT GYPSUM Field controller | C11: GRAVIT + SCMIII Field | D11: 1 | F11: =ROUND(IF(B11=0,0,IF('Simplified P&L'!$B$3=0,'Budget Price 1st quotation'!K7+('Budget Price 1st quotation'!L7/'Budget Price 1st quotation'!G7),'Budget Price Final order'!K7+('Budget Price Final order'!L7/'Budget Price Final order'!G7))),0) -> 42210 | J11: =F11*D11 -> 42210
B13: GRAVIT CLINKER | C13: GRAVIT | D13: 1 | F13: =ROUND(IF(B13=0,0,IF('Simplified P&L'!$B$3=0,'Budget Price 1st quotation'!K8+('Budget Price 1st quotation'!L8/'Budget Price 1st quotation'!G8),'Budget Price Final order'!K8+('Budget Price Final order'!L8/'Budget Price Final order'!G8))),0) -> 9023 | J13: =F13*D13 -> 9023
B14: CONTROL CABINET CLINKER | C14: Control | D14: 1 | F14: =ROUND(IF(B14=0,0,IF('Simplified P&L'!$B$3=0,'Budget Price 1st quotation'!K9+('Budget Price 1st quotation'!L9/'Budget Price 1st quotation'!G9),'Budget Price Final order'!K9+('Budget Price Final order'!L9/'Budget Price Final order'!G9))),0) -> 3577 | J14: =F14*D14 -> 3577
B15: Option - Rod closing gate | C15: Rod closing Gate | D15: 1 | N15: =ROUND(D15*IF(B15=0,0,IF('Simplified P&L'!$B$14=0,'Budget Price 1st quotation'!K23+('Budget Price 1st quotation'!L23/ 'Budget Price 1st quotation'!G23),'Budget Price Final order'!K24+('Budget Price Final order'!L24/'Budget Price Final order'!G24))),0) -> 
B17: Option - SCM III loose part | C17: SCM III | D17: 2 | N17: =ROUND(D17*IF(B17=0,0,IF('Simplified P&L'!$B$15=0,'Budget Price 1st quotation'!K24+('Budget Price 1st quotation'!L24/ 'Budget Price 1st quotation'!G24),'Budget Price Final order'!K25+('Budget Price Final order'!L25/'Budget Price Final order'!G25))),0) -> 
D19: =IF(Configuration!B2="Français","GRAND TOTAL EQUIPEMENT, € (hors taxes)","GRAND TOTAL EQUIPMENT, € (excluding VAT)") -> GRAND TOTAL EQUIPMENT, € (excluding VAT) | J19: =SUM(J7:M17) -> 761927
B21: =IF(Configuration!B2="Français","Frais d'Emballage & Livraison","Packing & Delivery Costs") -> Packing & Delivery Costs | N21: =J6 -> Total Sale Price (€ ex VAT)
B22: =IF(Configuration!B2="Français","Emballage","Packing") -> Packing | D22: =IF('Simplified P&L'!$B$3=0,'Budget Price 1st quotation'!E35,'Budget Price Final order'!E36) -> 0 | N22: =ROUND(IF('Simplified P&L'!$B$3=0,IF('Budget Price 1st quotation'!N35=0,IF(Configuration!B2="Français","Non inclus","Not included"),'Budget Price 1st quotation'!M35),IF('Budget Price Final order'!N36=0,IF(Configuration!B2="Français","Non inclus","Not included"),'Budget Price Final order'!M36)),0) -> 17340
B23: =IF(Configuration!B2="Français","Transport","Freight") -> Freight | D23: =IF('Simplified P&L'!$B$3=0,'Budget Price 1st quotation'!E36,'Budget Price Final order'!E37) -> FCA - SHANGHAI - CHN | N23: =ROUND(IF('Simplified P&L'!$B$3=0,IF('Budget Price 1st quotation'!N36=0,IF(Configuration!B2="Français","Non inclus","Not included"),'Budget Price 1st quotation'!M36),IF('Budget Price Final order'!N37=0,IF(Configuration!B2="Français","Non inclus","Not included"),'Budget Price Final order'!M37)),0) -> 
B26: Services price list
B27: Item | D27: Reference | J27: =D6 -> Qty | N27: =J6 -> Total Sale Price (€ ex VAT)
B28: =IF('Simplified P&L'!$B$3=0,'Budget Price 1st quotation'!E38,'Budget Price Final order'!E39) -> Erection for 6 weeks | D28: =IF('Simplified P&L'!$B$3=0,'Budget Price 1st quotation'!F38,'Budget Price Final order'!F39) -> 0 | J28: =IF('Simplified P&L'!$B$3=0,'Budget Price 1st quotation'!G38,'Budget Price Final order'!G39) -> 1 | N28: =IF('Simplified P&L'!$B$3=0,'Budget Price 1st quotation'!N38,'Budget Price Final order'!N39) -> 53840
B29: =IF('Simplified P&L'!$B$3=0,'Budget Price 1st quotation'!E39,'Budget Price Final order'!E40) -> Cold Commissioning for 1 week | D29: =IF('Simplified P&L'!$B$3=0,'Budget Price 1st quotation'!F39,'Budget Price Final order'!F40) -> 0 | J29: =IF('Simplified P&L'!$B$3=0,'Budget Price 1st quotation'!G39,'Budget Price Final order'!G40) -> 1 | N29: =IF('Simplified P&L'!$B$3=0,'Budget Price 1st quotation'!N39,'Budget Price Final order'!N40) -> 9561.5
B30: =IF('Simplified P&L'!$B$3=0,'Budget Price 1st quotation'!E40,'Budget Price Final order'!E41) -> Hot Commissioning for 1 week | D30: =IF('Simplified P&L'!$B$3=0,'Budget Price 1st quotation'!F40,'Budget Price Final order'!F41) -> 0 | J30: =IF('Simplified P&L'!$B$3=0,'Budget Price 1st quotation'!G40,'Budget Price Final order'!G41) -> 1 | N30: =IF('Simplified P&L'!$B$3=0,'Budget Price 1st quotation'!N40,'Budget Price Final order'!N41) -> 9561.5
B31: =IF('Simplified P&L'!$B$3=0,'Budget Price 1st quotation'!E41,'Budget Price Final order'!E43) -> 2 years spare parts | D31: =IF('Simplified P&L'!$B$3=0,'Budget Price 1st quotation'!F41,'Budget Price Final order'!F43) -> 0 | J31: =IF('Simplified P&L'!$B$3=0,'Budget Price 1st quotation'!G41,'Budget Price Final order'!G43) -> 1 | N31: =IF('Simplified P&L'!$B$3=0,'Budget Price 1st quotation'!N41,'Budget Price Final order'!N43) -> 85880
B32: =IF(Configuration!B2="Français",Configuration!AH51,Configuration!AG51) -> - Prices for erection supervision and commissioning exclude travel and accommodation costs. After intervention, an invoice will be issued for the additional days according to the attached price, as well as accommodation and travel costs with supporting documents. - The warranty period is only valid if erection supervision and commissioning is provided by Hasler.
C60: Services price list

Sheet Feuil1 (hidden)

Sheet Quotation
Q1: FR | R1: 1
Q2: GB | R2: 2
C4: =[2]cover_L!C7&" "&IF('[2]Offre NEW'!C3="FR","- Offre N° ","- Offer N° ")&'[2]récap interne pour DIRECTION'!B6 -> Price List - Offer N° 731693_01rev2
C7: =IF('[2]Offre NEW'!C3="FR","Filtre","Filter") -> Filter | D7: =IF('[2]Offre NEW'!C3="FR","Taille (m²)","Size (m²)") -> Size (m²) | F7: =IF('[2]Offre NEW'!C3="FR","Largeur (m)","Width (m)") -> Width (m) | H7: =IF('[2]Offre NEW'!C3="FR","Qté","Qty") -> Qty | I7: =IF('[2]Offre NEW'!C3="FR","GRAND TOTAL EQUIPEMENT, € (hors taxes)","GRAND TOTAL EQUIPMENT, € (excluding VAT)") -> GRAND TOTAL EQUIPMENT, € (excluding VAT)
B8: 1 | C8: ='[2]Offre NEW'!C7 -> Filter | D8: =[2]Calculations!$C$9 -> 78 | F8: =[2]Calculations!$E$9/1000 -> 3 | H8: ='[2]Offre NEW'!H7 -> 1
D10: ='[2]Offre NEW'!D9 -> MOC
C11: ='[2]Offre NEW'!C10 -> Frame | D11: ='[2]Offre NEW'!D10 -> 316L
C12: ='[2]Offre NEW'!C11 -> Vacuum box | D12: FRP
C13: ='[2]Offre NEW'!C12 -> Slurry Feeder | D13: FRP
C14: ='[2]Offre NEW'!C13 -> Cake Washing Feeder | D14: FRP
C15: ='[2]Offre NEW'!C14 -> Collection through | D15: ='[2]Offre NEW'!D14 -> POLYPROPYLENE
C16: ='[2]Offre NEW'!C15 -> Cake discharge hopper | D16: ='[2]Offre NEW'!D15 -> Rubber lined carbon steel
C17: ='[2]Offre NEW'!C16 -> Cloth & belt support rollers | D17: ='[2]Offre NEW'!D16 -> 316L
C18: ='[2]Offre NEW'!C17 -> Belt | D18: ='[2]Offre NEW'!D17 -> EPDM
C19: ='[2]Offre NEW'!C18 -> Curbs | D19: ='[2]Offre NEW'!D18 -> EPDM
C20: ='[2]Offre NEW'!C19 -> Filter Cloth
C21: ='[2]Offre NEW'!C20 -> Gear box type planetary
C22: ='[2]Offre NEW'!C21 -> Safety guards according CE rules
C23: ='[2]Offre NEW'!C22 -> Local control panel
D24: ='[2]Offre NEW'!D23 -> Power (kW)
C25: ='[2]Offre NEW'!C24 -> Electric motor | D25: ='[2]Offre NEW'!D24 -> 45 kW
C27: =IF('[2]Offre NEW'!C3="FR","Accessoires","Accessories") -> Accessories | D27: =IF('[2]Offre NEW'!C3="FR","Matériau","MOC") -> MOC | E27: Ø (mm) | F27: =IF('[2]Offre NEW'!C3="FR","Débit (m3/h)","Flowrate (m3/h)") -> Flowrate (m3/h) | G27: =IF('[2]Offre NEW'!C3="FR","Puissance (kW)","Power (kW)") -> Power (kW) | H27: =IF('[2]Offre NEW'!C3="FR","Qté","Qty") -> Qty
B28: 2 | C28: Manifold | D28: FRP | E28: 450 | H28: 1
B29: 3 | C29: Filtrate Receiver 1 | D29: Rubber lined carbon steel | E29: 2000 | H29: 1
B30: 4 | C30: Filtrate Receiver 2 | D30: Rubber lined carbon steel | E30: 2000 | H30: 1
B31: 5 | C31: Filtrate Receiver 3 | D31: Rubber lined carbon steel | E31: 2000 | H31: 1
B32: 6 | C32: Moisture trap | D32: FRP | E32: 1600 | H32: 1
B33: 7 | C33: Scrubber | D33: FRP | E33: 600 | H33: 1
B34: 8 | C34: Cloth & Belt Wash Recirculating Tank | D34: Rubber lined carbon steel | E34: 2 m3 | H34: 1
B35: 9 | C35: Filtrate Pump 2 | D35: C276 | F35: 70 | G35: 11 | H35: 1
B36: 10 | C36: Filtrate Pump 3 | D36: C276 | F36: 70 | G36: 11 | H36: 1
B37: 11 | C37: Vacuum Pump | D37: CS ceramic coated | F37: 11700 | G37: 250 | H37: 1
B38: 12 | C38: Electrical & Control Cabinet | H38: 1
B39: 13 | C39: Instrumentation & Valves | H39: 1
B40: 14 | C40: Engineering | D40: Cat. 1 (HASLER Standard) | H40: 1
B41: 15 | C41: High Pressure pump & Ramp | G41: 15 | H41: 1
B42: 16 | C42: Fume Hood | D42: SS316L + PPH | H42: 1
B43: 17 | C43: Drip Pan | D43: PPH | H43: 1
B44: 18 | C44: Cloth & belt washing feeding pump | D44: CD4MCu | F44: 20 | G44: 7.5 | H44: 1
B45: 19 | C45: Scrubber feeding pump | D45: CD4MCu | F45: 55 | G45: 15 | H45: 1
B46: 20
B47: 21
B48: 22
B49: 23
B50: 24
B51: 25
B52: 26
B53: 27
B54: 28
B55: 29
B56: 30
B57: 31
B58: 32
B59: 33
B60: 34
B61: 35
B62: 36
B63: 37
B64: 38
B65: 39
B66: 40
B67: 41
B68: GRAND TOTAL EQUIPMENT excluding Options, € (excluding VAT) | I68: =SUM('Budget Price Final order'!N3:N22)+'Budget Price Final order'!N30 -> 1425705.945
B74: Packing and Delivery costs | I74: Total Sale Price (€ ex VAT)
B76: Packing | I76: NOT QUOTED YET
B77: Freight | D77: ='Simplified P&L'!G4 -> FCA - SHANGHAI - CHN | I77: ='Budget Price Final order'!N37 -> 0

Sheet Quotation2
Q1: FR | R1: 1
Q2: GB | R2: 2
C4: =[2]cover_L!C7&" "&IF('[2]Offre NEW'!C3="FR","- Offre N° ","- Offer N° ")&'[2]récap interne pour DIRECTION'!B6 -> Price List - Offer N° 731693_01rev2
C7: Options | H7: Qty | I7: Unit Sale Price (€ ex VAT) | J7: Total Sale Price (€ ex VAT)
B8: A | C8: Cloth Ultrasonic welding machine | H8: 1 | I8: ='Budget Price Final order'!N24 -> 11500 | J8: =H8*I8 -> 11500
B9: B
B10: C
B11: D
B12: E
B13: F
B14: G
B15: H
B16: I
B17: J
B18: =IF('[2]Offre NEW'!C3="FR","GRAND TOTAL OPTIONS, € (hors taxes)","GRAND TOTAL OPTIONS, € (excluding VAT)") -> GRAND TOTAL OPTIONS, € (excluding VAT) | J18: =SUM(J8:J17) -> 11500
C21: SERVICE PRICE LIST - Offer N°731693_01rev2
C22: Spare Parts & Services | H22: Qty | I22: Unit Sale Price (€ ex VAT) | J22: Total Sale Price (€ ex VAT)
B23: A | C23: Erection for 6 weeks | H23: 1 | I23: ='Budget Price Final order'!N39 -> 53840 | J23: =H23*I23 -> 53840
B24: B | C24: Cold Commissioning for 1 week | H24: 1 | I24: ='Budget Price Final order'!N40 -> 9561.5 | J24: 9561.5
B25: C | C25: Hot Commissioning for 1 week | H25: 1 | I25: ='Budget Price Final order'!N41 -> 9561.5 | J25: 9561.5
B26: D | C26: Commissioning Spare Parts | H26: 1 | I26: ='Budget Price Final order'!N42 -> 24660 | J26: 24660
B27: E | C27: 2 Year Spare Parts | H27: 1 | I27: ='Budget Price Final order'!N43 -> 85880 | J27: 85880
B28: F
B29: G
B30: H
B31: I
B32: J | C32: - Prices for erection supervision and commissioning exclude travel and accommodation costs. After intervention, an invoice will be issued for the additional days according to the attached price, as well as accommodation and travel costs with supporting documents. - The warranty period is only valid if erection supervision and commissioning is provided by Hasler.
B33: =IF('[2]Offre NEW'!C20="FR","GRAND TOTAL SERVICES/PDR, € (hors taxes)","GRAND TOTAL SERVICES/SPARE PARTS, € (excluding VAT)") -> GRAND TOTAL SERVICES/SPARE PARTS, € (excluding VAT) | J33: =SUM(J23:J32) -> 183503
J59: =J8+SUM(J26:J58) -> 305543
J72: =J59+J69 -> 305543

Sheet Quotation3 (hidden)
Q1: FR | R1: 1
Q2: GB | R2: 2
C4: =[2]cover_L!C7&" "&IF('[2]Offre NEW'!C3="FR","- Offre N° ","- Offer N° ")&'[2]récap interne pour DIRECTION'!B6 -> Price List - Offer N° 731693_01rev2
C7: Spare Parts & Services | H7: Qty | I7: Unit Sale Price (€ ex VAT) | J7: Total Sale Price (€ ex VAT)
B8: A | C8: Erection for 6 weeks | H8: 1 | I8: ='Budget Price Final order'!N39 -> 53840 | J8: =H8*I8 -> 53840
B9: B | C9: Cold Commissioning for 1 week | H9: 1 | I9: ='Budget Price Final order'!N40 -> 9561.5 | J9: 9561.5
B10: C | C10: Hot Commissioning for 1 week | H10: 1 | I10: ='Budget Price Final order'!N41 -> 9561.5 | J10: 9561.5
B11: D | C11: Commissioning Spare Parts | H11: 1 | I11: ='Budget Price Final order'!N42 -> 24660 | J11: 24660
B12: E | C12: 2 Year Spare Parts | H12: 1 | I12: ='Budget Price Final order'!N43 -> 85880 | J12: 85880
B13: F
B14: G
B15: H
B16: I
B17: J | C17: - Prices for erection supervision and commissioning exclude travel and accommodation costs. After intervention, an invoice will be issued for the additional days according to the attached price, as well as accommodation and travel costs with supporting documents. - The warranty period is only valid if erection supervision and commissioning is provided by Hasler.
B18: =IF('[2]Offre NEW'!C3="FR","GRAND TOTAL SERVICES/PDR, € (hors taxes)","GRAND TOTAL SERVICES/SPARE PARTS, € (excluding VAT)") -> GRAND TOTAL SERVICES/SPARE PARTS, € (excluding VAT) | J18: =SUM(J8:J17) -> 183503

Sheet STS
B3: =IF(Configuration!B2="Français",CONCATENATE(Configuration!AH13," - ",Configuration!AH26," n° ",'Simplified P&L'!B2),CONCATENATE(Configuration!AG13," - ",Configuration!AG26," N° ",'Simplified P&L'!B2,"-",'Simplified P&L'!B3)) -> Special Terms of Sales - Offer N° 731693-2
B5: =cover_L!D11 -> Delivery Time
B7: =IF(Configuration!B2="Français",IF(MID('Simplified P&L'!G5,2,1)="",LEFT('Simplified P&L'!G5,1) & Configuration!AH50,LEFT('Simplified P&L'!G5,2) & " " & Configuration!AH50),'Simplified P&L'!G5) -> 40 weeks on EXW HASLER China workshop basis.
B9: =IF(Configuration!B2="Français",Configuration!AH27,Configuration!AG27) -> Please take into account additional time for delivery of the goods to the contractual incoterm place of destination (to be confirmed after order)
B11: =IF(Configuration!B2="Français",Configuration!AH28,Configuration!AG28) -> The lead time countdown starts from the receipt of the advance payment due upon ordering. It will be extended by any delay that may occur in order to receive additionally agreed payment instalments. No work will be started before receipt of the agreed advance payment. It is the responsibility of the customer to provide all technical data and intermediary approvals in a timely manner in order to allow the nominal progress of the design, manufacturing and documentation work. Any delay in doing so will affect the global lead time without any liability to Hasler
B18: =cover_L!D12 -> INCOTERM
B20: ='Simplified P&L'!G4 -> FCA - SHANGHAI - CHN
B23: =cover_L!D13 -> Terms of Payment
B25: =IF(Configuration!B2="Français","Numéro #","Instalment #") -> Instalment # | E25: =IF(Configuration!B2="Français","Pourcentage de paiement","Payment Percentage ") -> Payment Percentage | J25: =IF(Configuration!B2="Français","Terme de paiement","Payment Term") -> Payment Term | R25: =IF(Configuration!B2="Français","Mode de paiement","Payment Mode") -> Payment Mode | W25: =IF(Configuration!B2="Français","Délai de paiement","Payment Credit Time") -> Payment Credit Time
B26: 1 | E26: 0.2 | J26: Advance payment at order upon receipt of invoice | R26: By bank transfer | W26: within 15 days net
B27: 2 | E27: 0.1 | J27: At approval of General Arrangement Drawings upon receipt of invoice | R27: By bank transfer | W27: within 30 days net
B28: 3 | E28: 0.2 | J28: At order of main components upon receipt of invoice and evidencing unpriced Purchase Orders | R28: By bank transfer | W28: within 30 days net
B29: 4 | E29: 0.5 | J29: At readiness for shipment upon receipt of invoice, FAT and documents evidencing goods ready (coupled with immediate payment) | R29: By irrevocable and confirmed letter of credit, remitted 30 days max after Purchase Order | W29: Immediate
B30: 5
B31: 6
B33: =IF(Configuration!B2="Français",Configuration!AH85,Configuration!AG85) -> The name of the company you knew as HASLER Group SAS changed to HASLER France SAS. This is only a change of name. Our legal registration number remains 514 743 038 - RCS Vienne France. Mind that all your documents refer to HASLER FRANCE.
B37: =cover_L!D14 -> Warranty
B39: =IF(Configuration!B2="Français",VLOOKUP('Simplified P&L'!B12,Configuration!P15:Q20,2),'Simplified P&L'!B12) -> 12 months after commissioning, latest 18 months after delivery
B41: =IF(Configuration!B2="Français",Configuration!AH32,Configuration!AG32) -> The equipment must not be modified without prior consultation with HASLER Group. Modification without the written consent of HASLER GROUP may invalidate the warranty and any product liability. Any warranty for newly purchased equipment will be void unless HASLER Group has supervised and/or validated on site the assembly and mountingof the equipment. Expertise of abnormal conditions under warranty periods are to be exclusively conducted by HASLER Group. Should the expertise conclude that the causes of the conditions are not related to the warranty then the full expertise will have to be covered by the main contractor or the end user.
B43: =cover_L!D15 -> Validity
B45: =IF(Configuration!B2="Français",Configuration!AH33,Configuration!AG33) -> 1 month
B48: =cover_L!C16 -> Contacts
B51: =cover_L!D17 -> Customer Contact List
B52: ='Simplified P&L'!B6 -> Eurochem
B53: =CONCATENATE(IF(Configuration!B2="Français",Configuration!AH34,Configuration!AG34)," :") -> Address : | H53: Fill here
B54: =CONCATENATE(IF(Configuration!B2="Français",Configuration!AH35,Configuration!AG35)," :") -> City : | H54: Fill here
B55: =CONCATENATE(IF(Configuration!B2="Français",Configuration!AH36,Configuration!AG36)," :") -> Country : | H55: Fill here
B56: Telephone : | H56: Fill here
B57: Internet : | H57: Fill here
F59: =IF(Configuration!B2="Français",Configuration!AH37,Configuration!AG37) -> Name | L59: =IF(Configuration!B2="Français",Configuration!AH38,Configuration!AG38) -> Position | R59: =IF(Configuration!B2="Français",Configuration!AH39,Configuration!AG39) -> Contact Details
B60: =IF(Configuration!B2="Français",Configuration!AH40,Configuration!AG40) -> Purchase Dept
B61: =IF(Configuration!B2="Français",Configuration!AH41,Configuration!AG41) -> Technical Dept
B64: =cover_L!D18 -> HASLER France Contact List
B65: Hasler France
B66: =CONCATENATE(IF(Configuration!B2="Français",Configuration!AH34,Configuration!AG34),":") -> Address: | H66: 496 Rue Louis Breguet
B67: =CONCATENATE(IF(Configuration!B2="Français",Configuration!AH35,Configuration!AG35),":") -> City: | H67: 38780 Pont-Évêque
B68: =CONCATENATE(IF(Configuration!B2="Français",Configuration!AH36,Configuration!AG36),":") -> Country: | H68: France
B69: Telephone: | H69: +33 4 74 16 11 50
B70: Website: www.hasler-gp.com
F72: =IF(Configuration!B2="Français",Configuration!AH37,Configuration!AG37) -> Name | L72: =IF(Configuration!B2="Français",Configuration!AH38,Configuration!AG38) -> Position | R72: =IF(Configuration!B2="Français",Configuration!AH39,Configuration!AG39) -> Contact Details
B73: Commercial Dept | F73: =cover_L!Y69 -> Yong LI | L73: =cover_L!Y70 -> Area Sales Manager | R73: =VLOOKUP('Simplified P&L'!J2,Configuration!W3:Z19,4,FALSE) -> l.li@hasler.group
B74: =IF(Configuration!B2="Français",Configuration!AH41,Configuration!AG41) -> Technical Dept | F74: =cover_L!C69 -> Baptiste Joly | L74: =cover_L!C70 -> Filtration Product Manager | R74: =VLOOKUP('Simplified P&L'!J3,Configuration!S3:V13,4,FALSE) -> b.joly@hasler.group
B79: =IF(Configuration!B2="Français",Configuration!AH43,Configuration!AG43) -> Are you focusing on optimizing your equipment and your production ?
B80: =IF(Configuration!B2="Français",Configuration!AH44,Configuration!AG44) -> Our experienced engineers are available on request for accurate and dedicated training, expertise or audit.
B81: =IF(Configuration!B2="Français",Configuration!AH45,Configuration!AG45) -> Contact us to get more informations: service@hasler.group

Sheet Customer_services
C6: PRICE LIST 2025 - Worldwide CUSTOMER SERVICES
C11: Type of Service | E11: FILTRATION / PROCESSING : - Erection Supervision - Equipment Maintenance (4) - Mechanical Audit of Equipment (3) | F11: DOSING / MIXING : - Commissioning - Erection Supervision - Equipment Maintenance (4) | G11: FILTRATION / PROCESSING: - Laboratory Tests - Commissioning - Training - Process Audit (3)
C12: Category of Staff | E12: Technician or Audit Technician | F12: Dosing Specialist | G12: Process Engineer
C13: Daily rate (for 8 working hours) | D13: Monday to Friday maxi 40 h/week | E13: =1130*1.05*1.03 -> 1222.095 | F13: =1250*1.03*1.05 -> 1351.875 | G13: =1360*1.03*1.05 -> 1470.84
D14: Hourly rate base | E14: (153 €/h) | F14: (169 €/h) | G14: (184 €/h)
D15: Saturday | E15: =ROUND(E13*1.5,-1) -> 1830 | F15: =ROUND(F13*1.5,-1) -> 2030 | G15: =G13*1.5 -> 2206.26
D16: Sunday or Bank holiday | E16: =E13*2 -> 2444.19 | F16: =F13*2 -> 2703.75 | G16: =G13*2 -> 2941.68
C17: Additional price for overtime worked | D17: During day between 40 & 43 h | E17: + 25 % | F17: +25% | G17: + 25 %
D18: During day between 44 & 48 h | E18: + 50 % | F18: +50% | G18: +50%
D19: During night (from 22:00 & 6:00) | E19: +50% | F19: +50% | G19: +50%
C20: Detailed audit report (3) | E20: =900*1.05*1.03 -> 973.35 | G20: =900*1.05*1.03 -> 973.35
C21: Price for one day of journey | E21: =ROUND(0.75*E13,-1) -> 920 | F21: =ROUND(0.75*F13,-1) -> 1010 | G21: =0.75*G13 -> 1103.13
C22: Price for one day off (1) | E22: =ROUND(0.5*E13,-1) -> 610 | F22: =ROUND(0.5*F13,-1) -> 680 | G22: =ROUND(0.5*G13,-1) -> 740
C24: Type of Service | E24: FILTRATION / PROCESSING : - Equipment Control - Belt Filters / Rotary Filters - UCP
C25: Category of Staff | E25: Process Engineer
C26: Daily rate (for 8 working hours) | D26: First test day | E26: On request
D27: Additional test day | E27: On request
C29: Travel expenses (2) | D29: By car | E29: 1,30 €/km + 15% increased costs
D30: Other way | E30: Actual costs increased of 15%
C31: Lodging expenses (2) | E31: Group 1 According to URSAFF website: https://www.economie.gouv.fr/dgfip/mission_taux_chancellerie/frais
C32: Administrative Fee | E32: 336 € for intervention preparation, writting of report, ….
C34: Validity | E34: From 1st January to 31st December 2024
C35: Payment terms | E35: 100% at invoice receipt and by bank transfer, one invoice per month
C37: (1) One day minimum after 6 consecutive working days
C38: (2) Contact us for all included packages
C39: (3) Writing of a complete and detailed audit report after each visit on site
C40: (4) Before any maintenance intervention, make sure of the availability of the necessary parts
C42: NOTE
C43: This price list is associated to our General Conditions of Intervention

Sheet Services_client (hidden)
E1: TARIF 2016 - France OFFRE DE SERVICES
C6: TARIF 2024 - France OFFRE DE SERVICES
C11: Type de service | E11: FILTRATION / PROCESSING : - Supervision de Montage - Maintenance d'équipements (4) - Audit mécanique d'équipements (3) | F11: DOSAGE / AGITATION : - Mise en service - Supervision de Montage - Maintenance d'équipements (4) | G11: FILTRATION / PROCESSING : - Essais - Mise en service - Formation - Audit process (3)
C12: Catégorie de personnel | E12: Technicien ou Auditeur technique | F12: Spécialiste Dosage | G12: Ingénieur Process
C13: Tarif forfaitaire journalier (pour 8 heures travaillées) | D13: Lundi au Vendredi maxi 40 h/semaine | E13: =940*1.05*1.03 -> 1016.61 | F13: =1065*1.05*1.03 -> 1151.7975 | G13: =1360*1.05*1.03 -> 1470.84
D14: Taux horaire de base | E14: (127 €/h) | F14: (144 €/h) | G14: (184 €/h)
D15: Samedi | E15: =E13*1.5 -> 1524.915 | F15: =ROUND(F13*1.5,-1) -> 1730 | G15: =G13*1.5 -> 2206.26
D16: Dimanche ou férié | E16: =E13*2 -> 2033.22 | F16: =F13*2 -> 2303.595 | G16: =G13*2 -> 2941.68
C17: Majoration Heures Supp. | D17: En journée entre 40 et 43 h | E17: + 25 % | F17: +25% | G17: + 25 %
D18: En journée entre 44 et 48 h | E18: + 50 % | F18: +50% | G18: +50%
D19: De nuit (entre 22:00 et 6:00) | E19: +50% | F19: +50% | G19: +50%
C20: Rapport d'audit détaillé (3) | E20: =900*1.05*1.03 -> 973.35 | G20: =900*1.05*1.03 -> 973.35
C21: Tarif journée de voyage | E21: =ROUND(0.75*E13,-1) -> 760 | F21: =ROUND(0.75*F13,-1) -> 860 | G21: =0.75*G13 -> 1103.13
C22: Tarif jour non travaillé (1) | E22: =0.5*E13 -> 508.305 | F22: =ROUND(0.5*F13,-1) -> 580 | G22: =0.5*G13 -> 735.42
C24: Type de service | E24: FILTRATION / PROCESSING : - Pilotage d'équipements RPA dans votre usine - Filtres à bande/rotatifs - malaxeurs
C25: Catégorie de personnel | E25: Ingénieur process
C26: Tarif forfaitaire journalier (pour 8 heures travaillées) | D26: 1ère journée | E26: Nous consulter
D27: Journée supplémentaire | E27: Nous consulter
C29: Frais de voyage (2) | D29: En voiture | E29: 1,30 €/km + frais majorés de 15%
D30: Voiture location | E30: 120€/j
D31: Train | E31: Estimation du Prix du billet de train
D32: Avions | E32: Frais réels majorés de 15%
C33: Frais d'hébergement (2) | E33: Groupe 1 Suivant site URSAFF: https://www.economie.gouv.fr/dgfip/mission_taux_chancellerie/frais
C34: Frais administratifs | E34: 336 € pour préparation de l'intervention, rédaction rapport de mission, ….
C36: Validité | E36: Du 1er Janvier au 31 Décembre 2024
C37: Conditions de paiement | E37: 100% à réception de facture par virement, une facture par mois sera établie
C39: (1) 1 journée minimum après 6 jours de travail consécutifs
C40: (2) Consultez nous pour des forfaits tout compris
C41: (3) Rédaction d'un rapport d'audit détaillé à l'issue de la visite sur site
C42: (4) Avant toute intervention de maintenance, veuillez vous assurer de la disponibilité des pièces nécessaires
C44: NOTA
C45: Ce tarif est associé à nos conditions générales d'intervention

Sheet GTC
A2: DISCOVER HASLER GROUP
B51: =cover_L!C19 -> General Terms & Conditions of Sale
B52: =IF(Configuration!B2="Français",Configuration!AH46,Configuration!AG46) -> 1. GENERAL POINTS 1.1. Commercial relations between HASLER France, or one of its subsidiaries representing it (‘Supplier’), and the buyer, referred to as the “Customer”, shall be governed by these General Terms and Conditions of Sale. They constitute the sole basis of any commercial negotiation and shall apply to all points which are not regulated in another manner in writing by mutual Agreement. Customer terms and conditions of Purchase which contradict these General Terms and Conditions of Sale shall only be valid if the Supplier has agreed to them in writing. 1.2. Deviations/additions to these General Terms and Conditions of Sale shall only be valid if the Supplier has expressly accepted them in writing. 1.3. Offers which do not mention a validity period shall be non-binding. Once the validity period has expired, the Supplier reserves the right to accept or not any order. 1.4. The ‘Agreement’ consists of the documents listed below which shall prevail over each other in the following order of priority: - an Agreement signed by both the Customer and the Supplier or the order and its acceptance signed by the Supplier with its comments (if required); - any specific and/or additional special Terms and Conditions of Sale agreed by the Customer and the Supplier; - these General Terms and Conditions of Sale, which form an integral part of the Agreement. 1.5. ‘Works’, specified in the Agreement, consist of the ‘Equipment’ to be delivered (materials, products, equipment, etc.) and the ‘Services’ to be provided (assembly, supervision, commissioning, repair, upgrade, maintenance, etc.) in accordance with Agreement requirements. 1.6. The Supplier shall be free to subcontract all or part of the Equipment and Services under the Agreement. 1.7. The Customer shall refrain from any action or practice with a view to hiring the Supplier’s employees. 1.8. If any provision of the Agreement is deemed invalid or unenforceable in whole or in part by a competent authority, the validity of the other provisions of the Agreement and the rest of the provision in question shall not be affected. 1.9. The headings in these General Terms and Conditions of Sale are indicative and do not affect the content of the relevant provisions. 2. AGREEMENT AND EFFECTIVE DATE 2.1. The Agreement shall enter into effect when the last of the following events occurs (‘Effective Date’): - Agreement signature by the Supplier and the Customer; - receipt by the Supplier of a down payment as provided for in the Agreement or, failing that, receipt by the Customer of the formal acceptance of the order signed by the Supplier; - receipt by the Supplier of an irrevocable and confirmed letter of credit acceptable by the Supplier, or receipt of any other payment guarantee by the Supplier (stand-by letter of credit or other, to be agreed by the Supplier). 2.2. Unless otherwise indicated in the special conditions of sale, the Effective Date shall constitute the date of the beginning of the Supplier’s contractual obligations and the delivery lead time and schedules specified, if applicable, in the Agreement for Equipment, spare parts, and Service provision. 2.3. If more than thirty (30) days pass after the Agreement’s signature without the occurrence of the Effective Date, the Supplier may modify the aforementioned schedules. 3. ORDER, ORDER CONFIRMATION 3.1. Unless there are justified exceptions, the Supplier shall confirm orders in writing. The terms of the written order confirmation shall be the exclusive reference for payment terms, the delivery time, the contents of the delivery, and the scope of the Services, and shall include, where applicable, reservations on the Customer order (HASLER EQ23 document). 3.2. Order changes, as well as oral Agreements shall only be valid if the Supplier has confirmed them in writing to the Customer. 3.3. The Supplier shall be authorised to make changes bringing improvements at any time as long as they do not hinder the guaranteed performance and do not result in an increase in the price for the Customer. 3.4. The submission of an order signed by the Customer implies acceptance by the latter of these General Terms and Conditions of Sale, unless one or more points of these General Terms and Conditions of Sale have resulted in a negotiation and on the condition that these negotiated points are recorded in the written Agreement signed by the Supplier or in the Special Terms and Conditions of Sale which are also signed. 4. PRICE 4.1. Prices are expressed according to the exact Incoterm specified in the Special Terms of Sale, according to the ICC (International Chamber of Commerce) definitions of the latest known review of the offer. 4.2. Prices may be adjusted after entering into the Agreement in the following cases: - price review; - extension of the delivery lead time for one of the reasons listed in 11.3; - change to the scope of the agreed Works; - modifications to the Equipment or performance because the documents provided to the Supplier by the Customer did not correspond to actual conditions or were incomplete. 4.3. If the Effective Date occurs after the offer’s validity date, or if the Agreement completion date is postponed for reasons beyond the Supplier’s liability, the Supplier shall be entitled to update its prices for postponed work, in particular in order to take into account possible increases in the prices of raw materials, energy, and the average cost of living. 4.4. The price is understood and corresponds to the limit of the Services defined in the Agreement’s reference technical offer. 4.5. The Agreement price shall be adjusted to take into account any change in cost for the Supplier resulting from changes in the legislation of the Customer's country. Legislation means any law, order, or regulation, not limited to tax laws, that affects the Supplier in the performance of the obligations under the Agreement. 5. AGREEMENT PERFORMANCE 5.1. Delivery shall meet the standards and requirements applied by the Supplier, valid at the time of the offer, and confirmed when ordering. 5.2. The goods are designed and manufactured in compliance with fundamental health and safety requirements respectively applicable to them. The CE mark of conformity and the establishment of Supplier declarations meet the corresponding directives. 5.3. Good Engineering Practices: Equipment and Services shall conform to good engineering practice and contract specifications. The Customer is required to provide the Supplier with all the information and documents necessary for the Works before signing the Agreement. 5.4. Customer's obligations: throughout the duration of the Works, the Customer shall provide any approval and instruction, material, Works, site access, any Equipment to the extent necessary for the Works (safety rules, special risks, etc.), and, more generally, any support required for the Works which is not part of the Works or the Supplier's responsibility in a timely manner. The customer shall assist the Supplier in obtaining any visa, permit, or licence that may be required for Service provision or for Equipment import and delivery (if applicable). 5.5. Customer supervision: when provided for in the special terms and conditions of sale, the Customer may supervise Agreement execution. To this end, the Customer or its representatives shall have access to the Supplier's facilities during their working hours. The cost of this shall be fully borne by the Customer. Such supervision shall not hinder or delay Agreement execution. 5.6. Supplier recommendations: any advice or recommendation given by the Supplier (or its employees or agents) which is not confirmed in writing by the Supplier, shall be followed or applied entirely at the Customer’s risk and peril, and therefore, the Supplier shall not be held liable for any such advice or recommendations that are not confirmed in this manner.
B102: =IF(Configuration!B2="Français",Configuration!AH47,Configuration!AG47) -> 6. CHANGES – AMENDMENTS – VARIATIONS 6.1. During Agreement execution, the Supplier may make changes to the Equipment as required by mandatory circumstances, such as a modification of technical standards, manufacturing methods, or laws and regulations, affecting the terms of Agreement execution. However, these modifications shall not affect the fundamental characteristics of the Equipment and Services specified in the Agreement. 6.2. If these modifications have effects which prevent or make more difficult compliance with certain Agreement provisions, in particular those relating to prices or delivery lead times, the Supplier shall submit the appropriate supporting documents to the Customer and the Customer and the Supplier shall sign an Amendment to their Agreement setting out the changes required. 6.3. All changes to the Agreement shall be documented in writing and signed by the Supplier and the Customer. Under no circumstances shall the Supplier be held liable for the performance of Works other than those expressly mentioned in the Agreement by its employees at the Customer's request. 7. PAYMENT 7.1. The Customer shall make payments in accordance with the agreed terms at the Supplier's tax domicile without deducting any discounts, charges, taxes, duties, customs duties, allowances, Supplier delay penalties or other charges. In the absence of other Agreements, the price shall be paid in two instalments: one third upon receipt of the order confirmation and two thirds upon delivery or notice of availability. An invoice recalling the down payment paid and the balance payable shall be issued. The down payment shall be paid upon receipt of the corresponding invoice. Unless otherwise agreed, any other invoice shall be paid within 30 (thirty) days from the date of the invoice. In the case of early payment, no discount shall be granted. 7.2. The payment terms and commitments shall remain in force when the acceptance, transport, delivery, assembly, and commissioning of Equipment or Services are delayed or made impossible for reasons beyond the Supplier’s control. The same applies when non-essential parts fail or when touch-up work is necessary without preventing the use of Equipment or a service. 7.3. In the event of late payment, the Supplier reserves the right to immediately stop deliveries and planned service provision. It is authorised to charge interest from the day following the payment date appearing on the invoice, at the rate of 3 (three) times the French legal interest rate. In addition, a minimum fixed fee of 40 euros for recovery costs shall be due as of right, without any reminder being necessary, without prejudice to the Supplier being able to charge a greater amount than said fixed fee if it has incurred higher recovery costs. This fee shall apply to each invoice paid late. 7.4. If the Customer is in default, the Supplier is authorised to cease the activities inherent to the Agreement and withhold deliveries and Services in progress. If, within a reasonable period of time, the Supplier does not obtain sufficient guarantees, it may withdraw from the Agreement, demand damages and, if necessary, take back the goods supplied under the Agreement at the Customer's expense. 8. TAXES 8.1. Unless otherwise specified in the regulations of European Union countries, where the Agreement provides for the delivery of Equipment within the European Union, Equipment delivery shall be exempt from VAT provided that the Customer provides the Supplier with its VAT number or that of the end user, if the latter is a resident of the European Union, with the order. 8.2. In this case, the Customer or end user shall pay the applicable VAT in accordance with the tax rules applicable in their own country. If the VAT number is not attached to the Agreement, the Equipment shall be subject to VAT in the Customer's country, calculated at the rate in force on the invoice date. Any tax adjustment, penalty, or interest on late payment which may become due as a result of the Supplier’s use of said VAT number shall be reimbursed by the Customer to the Supplier within 30 (thirty) days of the presentation of proof of payment thereof. 8.3. For France, the prices indicated are exclusive of VAT. This shall be applied to invoicing in accordance with the laws in force. 9. RETENTION OF TITLE Delivery shall remain the Supplier’s property until full payment of the Equipment. The Customer has an obligation to participate in measures aimed at the protection of property. In particular, it shall identify precisely the goods delivered and not paid for in its warehouses, so as to allow, if necessary, an effective claim. It authorises the Supplier, at its own expense, to carry out any inspection of this identification on the Customer's premises. The Customer shall also bear the costs of registering or reporting the retention of title in the public registers/books in accordance with applicable national laws and the costs incurred by the Supplier to complete all the formalities necessary for this purpose. Until the retention of title is lifted, the Customer shall insure and maintain the delivered goods. 10. FORCE MAJEURE 10.1. Under no circumstances shall the Supplier be liable for non-compliance with its obligations due to a case of Force Majeure. Force Majeure shall be defined as any event preventing the full or partial performance of the Agreement which cannot be overcome despite a reasonable effort on the part of the Supplier or its agents. 10.2. Force Majeure includes, but is not limited to, the following events: labour disputes or strikes, shortage of skilled workers or raw materials, major incidents affecting the Supplier's agents, fires, explosions, mobilisations, action or failure to act by public Services or government authorities, acts of war, sabotage, embargoes, insurrection, riots, breach of the peace, major manufacturing issues such as tool accidents or business failure, or late deliveries or with defects in raw materials, semi-finished or finished products, scrapping of essential parts, administrative measures or shortcomings, natural phenomena, interruptions or delays in transport, and epidemics. 10.3. If the case of Force Majeure continues for more than 3 (three) months and the Customer and the Supplier have not agreed on the terms of continuation of the Agreement, the Supplier may terminate the Agreement within a period of 30 (thirty) days after written notification to the Customer, in which case the provisions of the TERMINATION clause shall apply. 11. DELIVERY LEAD TIME 11.1. The delivery lead time shall begin from the Effective Date. 11.2. Unless otherwise agreed, where delivery takes place on the Supplier's premises, the delivery lead time is considered to have been complied with when the goods are ready to be delivered or, by derogation, accepted in accordance with what has been agreed. 11.3. The delivery time shall be appropriately extended: - when points 4 and 5 of section 5 (Agreement execution) reach the Supplier late; - when the Customer modifies the specifications necessary for Agreement execution after the Effective Date; - in the event of a case of Force Majeure (section 10); - if an external inspection, mandated by the Customer in writing on placing the order, delays the lead time initially planned. 11.4. If such uncontrollable events prevent deliveries and service provision within the agreed deadlines, the Customer shall not be entitled to any compensation. 11.5. If a specific date is agreed instead of a delivery lead time, it shall be equivalent to the last day of the delivery lead time. The previous points in this section shall apply in a similar manner.
B153: =IF(Configuration!B2="Français",Configuration!AH48,Configuration!AG48) -> 12. DELAY PENALTIES If the Supplier does not comply with the schedule due to its own fault and if a summons to deliver has been issued by the Customer, the Supplier shall, at the Customer's request and within 15 (fifteen) days from said request, pay delay compensation calculated on the basis of the Agreement price (excluding tax) of the delayed Work at a rate of 0.5% per week up to a maximum of 5% of the delayed Work. The compensation indicated above shall constitute the limit of the Supplier's liability for delay and, as such, shall be considered as full discharge. No delay compensation payment shall be imposed on the Supplier for delays due to circumstances attributable to the Customer, a case of Force Majeure, or when such delays have not resulted in loss for the Customer. Delay compensation is not applicable to the documentary part. 13. CONFIDENTIALITY, OWNERSHIP 13.1. The indications of weights, measures, performance, etc. appearing in catalogues, brochures, and offers etc. are reference values entailing no commitment. 13.2. The Supplier shall retain ownership of its studies, plans, models, data, and test results as well as any document issued and provided to the Customer, or of which the Customer may have cognisance during Agreement execution. The Customer may only use this information and documents for Agreement execution. These documents and information shall be treated confidentially and shall not be distributed, published, or generally disclosed to third parties without the Supplier’s express prior written authorisation, to which they shall be returned immediately upon request from the latter in the event of Agreement termination. They shall also not be used for the manufacture of machinery, Equipment, or parts thereof. 13.3. Provided that the Supplier has been paid the full amount contractually due, the Supplier shall grant the Customer a free and non-exclusive right to use the aforementioned documents exclusively for the upkeep and maintenance of the Equipment subject to its work. 14. TERMINATION 14.1. Except in cases of Force Majeure, each party may terminate the Agreement at any time in the event that the other party does not fulfil a substantial obligation imposed on it under the Agreement and does not take satisfactory measures to remedy this within 20 (twenty) days of receipt, by the defaulting party, of a written notice to this effect sent by recorded delivery with advice of receipt or of any equivalent notification from which emerges a sufficient warning. 14.2. If the Customer cancels an order, the Supplier shall be entitled to remuneration for deliveries made and Services already provided, or, if no delivery has yet been made, to the reimbursement of sums incurred by the Supplier with subcontractors. The remuneration and reimbursements mentioned above shall be increased by a withdrawal penalty equivalent to 10% of the order’s value. 14.3. Termination of the Agreement in whole or in part, for any reason, shall not affect or prejudice the COMMERCIAL GUARANTEE (19), CONFIDENTIALITY, OWNERSHIP (13), and LAW AND ARBITRATION (22) provisions in this agreement. 15. PACKAGING, DELIVERY, STORAGE 15.1 The place of performance of the Works for the Customer and for the Supplier is one of the Supplier's premises, at the Supplier's choice, even if the delivery has taken place carriage paid, CIF, FOB, or under similar conditions. 15.2. Packaging is provided by the Supplier but in no case shall it be taken back. 15.3. For EXW deliveries, transport and insurance costs shall be borne by the Customer in accordance with the provisions of the designated Incoterm. 15.4. Claims for damage, loss etc. arising from transport shall be reported upon receipt of delivery and certified by the last carrier. 15.5. Whatever the Equipment’s point of delivery and the means of transport, within a period of 15 (fifteen) days from the Supplier’s notification of availability for delivery, the Supplier shall be authorised, on behalf of the Customer, to store the Equipment at the Customer's expense. The Supplier shall be deemed to have delivered this Equipment to the Customer on entry into storage and shall be entitled to payment upon presentation of the warehouse receipt in place of any bill of lading or similar document otherwise required under the Agreement. The risk shall be transferred to the Customer on entry into storage, but title shall only be transferred in accordance with the RETENTION OF TITLE provision. 15.6. Similarly, if shipment is delayed by the Customer, the Supplier may agree, upon written request from the Customer and at the Customer's sole expense and risk, to store the Equipment. The Supplier shall invoice a sum equal to 0.6% of the price excluding tax of the Equipment to be stored per week of postponement with a waiting period of 15 (fifteen) calendar days. The storage period shall in no case exceed 6 (six) months from the Customer's request. These provisions in no way modify the Customer's payment obligations. 16. TRANSFER OF RISK 16.1. Risk transfers pass to the Customer according to the Incoterm determined by the Agreement. 16.2. If shipment is delayed or made impossible for reasons not attributable to the Supplier, the risk shall be transferred to the Customer at the initially scheduled EXW delivery time. From that moment, the goods shall be stored and insured at the Customer’s expense and risk. 17. INSPECTION AND ACCEPTANCE 17.1. Before shipping, each installation shall be subject to the usual inspections. If the Customer wishes to be present during the inspection of its delivery, it shall stipulate this in writing when placing the order. 17.2. Regarding spare parts orders, unless otherwise specified in the order, only electronics shall be subject to the usual inspections. 17.3. The Customer may accept the delivery itself or have it accepted by a person appointed for this purpose. In accordance with the provisions of Article 11.2 above, and unless otherwise provided for in the same article, acceptance shall take place at the manufacturer's plant and shall include a functional test without product. In all cases, the costs shall be fully borne by the Customer. 17.4. The Customer is required to inspect the deliveries and Services within five (5) working days and to immediately communicate any possible defect in writing to the Supplier. Otherwise, deliveries and Services shall be deemed to have been accepted. 17.5. In addition, if the Customer did not choose the carrier, it shall preserve Supplier’s rights with this carrier by notifying the carrier, within three (3) days, not including bank holidays, which follow that of said acceptance, of any damage or loss, by reasoned letter sent by recorded delivery or by extra judicial act, in accordance with Article L133-3 of the French Commercial Code. 18. ASSEMBLY AND COMMISSIONING 18.1. The Customer shall have assembly carried out by suitably qualified personnel under the Supplier’s supervision. 18.2. Commissioning and inspection of assembly work shall be carried out by the Supplier’s personnel or personnel authorised by the Supplier. 18.3. The Services provided shall be the subject of an acceptance report immediately after their completion. 18.4. In the case of assembly and/or commissioning carried out by the Customer, outside the context indicated above, the latter shall not claim the benefit of contractual guarantees.
B203: =IF(Configuration!B2="Français",Configuration!AH49,Configuration!AG49) -> 19. COMMERCIAL GUARANTEE 19.1. Unless the Customer has the same specialty as the Supplier, this commercial guarantee does not preclude the legal guarantee against hidden defects provided for in Articles 1641 et seq. of the French Civil Code. During the commercial guarantee period, the Supplier shall promptly and upon written notice from the Customer repair or replace, at its option, all parts that the Customer proves to be defective or unusable. All parts replaced shall become the Supplier's property. 19.2. The Supplier shall only bear the costs resulting from the repair or replacement of defective parts in its Workshops. The Supplier shall, in no case, be liable for expenses other than those chargeable under this guarantee provision. If the defective parts cannot be repaired or replaced in its Workshops for reasons which are not attributable to it, all additional costs resulting therefrom, in particular travel costs, shall be borne by the Customer as well as all expenses incurred by the Customer or a third party during the Equipment’s immobilisation due to work in accordance with the guarantee. 19.3. Any other claim from the Customer based on a defective delivery, in particular damages and Agreement termination, shall be excluded under this commercial guarantee. 19.4. The guarantee period is twelve months. It shall take effect when the Equipment is ready to be shipped or upon completion of commissioning if the Supplier also provides this service, in accordance with Article 11.2 above. If shipment or commissioning is delayed for reasons that are not attributable to the Supplier, the commercial guarantee shall end no later than eighteen months after the time the Equipment was ready for shipment. 19.5. The replaced parts shall benefit from the same commercial guarantee period as the main object. However, this commercial guarantee shall cease no later than eighteen months after the start of the commercial guarantee for the main object or, if the shipment or commissioning of the main object has been delayed for reasons which are not attributable to the Supplier, no later than twenty-four months from the time the main object was ready for shipment. 19.6. The following cases are excluded from the commercial guarantee: - damage due to natural wear and tear, insufficient maintenance, incorrect handling, excessive use, the use of operating means according to factory specifications, the use of contraindicated operation, chemical or electrolytic influences, power surges or lightning strikes, corrosion, erosion, cavitation or similar phenomena, civil engineering and faulty assembly work that has not been carried out by the Supplier, as well as for other causes not attributable to it; - defects attributable to the design, material, or manufacturing or assembly techniques imposed by the Customer and for which the Supplier submitted written comments to the Customer; - non-compliance with the Supplier's instructions; - maintenance of the Equipment, specified in the Agreement, by the Customer or by third parties, under conditions not previously approved by the Supplier in writing; - routine maintenance or replacement of parts required by normal wear and tear of the Equipment or by exposure of the Equipment to the elements; - defects or damage caused by error or negligence of the Equipment user, a case of Force Majeure, or unforeseeable circumstances. The components and parts of the Equipment comply with standards, design characteristics, and quality measurements that correspond to specific requirements and are appropriate for the use for which the Equipment is intended. Therefore, the Supplier's guarantee obligation shall automatically expire if all or part of the components or parts of the Equipment are replaced by components or parts not supplied by the Supplier. 19.7. The commercial guarantee shall cease if the Customer (or third parties) makes changes or repairs to the delivery without the Supplier’s written consent or if the Customer does not immediately take appropriate measures to prevent the damage from worsening and enable the Supplier to remedy the defect. 19.8. If the Customer does not assert in writing, before the expiry of the commercial guarantee period, specific claims arising from the latter, the Supplier shall be released from its obligations under said guarantee. 19.9. The Supplier's guarantee under this provision is in place and excludes any other guarantee or commitment of any kind. 19.10. For deliveries from another manufacturer, the Supplier shall only assume the commercial guarantee as part of the subcontractor's obligations. 20. SUSPENSION 20.1. If Agreement execution is suspended due to a case of Force Majeure or as a result of the Customer, the Supplier’s Agreement execution period shall be extended. Any subsequent costs incurred by the Supplier shall be reimbursed by the Customer. 20.2. If Agreement execution is suspended for any reason and continues for more than 3 (three) months, the Supplier or Customer may, at any time during this uninterrupted suspension, terminate the Agreement with written notice of more than 30 (thirty) days. 21. LIABILITY 21.1. The Supplier undertakes to deliver Equipment in accordance with the Agreement. 21.2. Once the Customer has fulfilled its obligation of inspection in accordance with Article 17.4 of these General Terms and Conditions of Sale, the Supplier shall fulfil its obligations under Article 1641 et seq. of the French Civil Code and the commercial guarantee. 21.3. Under no circumstances shall the Supplier's liability under the Agreement exceed the amount excluding tax of the sums collected under the Agreement. 21.4. Under no circumstances shall the Supplier be held liable for any immaterial damage, such as loss of profit, loss of production, operation, etc. suffered by the Customer. 21.5. The Customer shall waive all recourse against the Supplier to obtain compensation for the financial consequences of any damage caused to third parties and shall pay compensation to the Supplier for all claims by third parties directly or indirectly related to Agreement execution. The conditions mentioned above are understood to be exclusive of hidden defects. 22. LAW AND ARBITRATION 22.1. The Agreement is governed and interpreted in accordance with French law. 22.2. The language of proceedings shall be French. 22.3. In the event of a dispute between the Customer and the Supplier on a technical matter, the parties agree to have recourse to the ICC International Centre for Expertise in Paris, in accordance with the ICC’s rules of Technical Expertise. 22.4. If, at any time, any question, dispute, or difference arises between the Customer and the Supplier, the parties shall attempt to reasonably settle the matter. If any dispute related to the Agreement (including any dispute as to its validity, meaning, effect, or termination) cannot be settled by the Customer and the Supplier within 6 (six) weeks of initial notification of the case, the Customer and the Supplier agree that it shall be finally settled by arbitration in accordance with the Rules of Arbitration of the ICC.
